date,department/service,beneficiary,amount,summary of purpose,category,transaction number,SAP vendor number
01.09.2022,ASSET MANAGEMENT,LONDON TOOLS LIMITED,"8,400.00",REPAIRS OPERATIONS,MATERIALS,5902540175,1000003017
01.09.2022,ASSET MANAGEMENT HGF,ROYAL MAIL GROUP LTD,"1,725.39",160 TOOLEY ST.,POSTAGES,5902539273,1000061535
01.09.2022,ASSET MANAGEMENT HGF,EVOTIX LTD,"28,485.00",CFM OPERATIONAL BUDGET,SOFTWARE,5902539366,1000088730
01.09.2022,ASSET MANAGEMENT HGF,MITIE FM LIMITED,"52,946.94",FM SERVICES BY INTERSERVE,SECURITY SERVICES,5902540422,1000070792
01.09.2022,CHIEF EXECUTIVE,LOVE DESIGN STUDIO LTD,"5,900.00",CAPITAL PS (REGEN),CONSTRUCTION FEES  - EXTERNAL,5902539621,1000087918
01.09.2022,CHILDREN AND FAMILIES,INTERCOUNTRY ADOPTION CENTRE,"1,110.00",ADOPT LONDON SOUTH,EXTERNAL AGENCIES AND BODIES,5902539248,1000035796
01.09.2022,CHILDREN AND FAMILIES,INTERCOUNTRY ADOPTION CENTRE,"1,480.00",ADOPT LONDON SOUTH,EXTERNAL AGENCIES AND BODIES,5902539250,1000035796
01.09.2022,CHILDREN AND FAMILIES,JORDAN AND ASSOCIATES LTD,630,ADOPTION SUPP FUND,EXTERNAL AGENCIES AND BODIES,5902539347,1000088103
01.09.2022,CHILDREN AND FAMILIES,MAGIC ROUNDABOUT NURSERIES LTD,580.32,TEAM D,OTHER PAYMENTS FOR CLIENTS,5902539993,1000045128
01.09.2022,ENV & LEIS,BELL BRUSH COMPANY,981.6,MANAGEMENT TEAM,MATERIALS,5902539335,1259776
01.09.2022,ENVIRONMENT AND LEISURE,ASKEWS & HOLTS LIBRARY SERVICES LTD,"2,866.61",CAPITAL PS (LEISURE),CAPITAL GRANTS,5902540451,1494168
01.09.2022,ENVIRONMENT AND LEISURE,BIKEAWAY,620,CAPITAL PS (LEISURE),CONST'N MAIN CONTRACT - NON CERTIFICATED,5902539584,1000036918
01.09.2022,ENVIRONMENT AND LEISURE,INTO SERVICES LONDON LTD,"7,800.00",CAPITAL PS (LEISURE),CONSTRUCTION FEES - INTERNAL,5902539352,1000059328
01.09.2022,ENVIRONMENT DIRECTORATE,GRADKO INTERNATIONAL LTD,312.85,ENVIRONMENTAL PROTECTION,EQUIPMENT PURCHASE & REPAIR,5902539555,1000068330
01.09.2022,HOUSING GENERAL FUND,LIBRA CONSTRUCTION SERVICES LTD,"42,086.88",CAPITAL PS (REGEN),CONSTRUCTION MAIN CONTRACT,2103550090,3000000875
01.09.2022,HOUSING HRA,JOHN ROWAN & PARTNERS,"5,956.50",CAPITAL PS (HRA),CONSTRUCTION FEES - EMPLOYERS AGENT,5902539658,1000053970
01.09.2022,HOUSING HRA,POTTER RAPER LTD,"10,350.00",CAPITAL PS (HRA),CONSTRUCTION FEES - QUANTITY SURVEYOR,5902539351,1009369
01.09.2022,LEISURE DIRECTORATE,ADVANCED TREE SERVICES LTD,410,EMERGENCY TREES RECOVERY PROJECT,OTHER CONTRACTORS,5902539398,1000079711
01.09.2022,LEISURE DIRECTORATE,ADVANCED TREE SERVICES LTD,"1,200.00",EMERGENCY TREES RECOVERY PROJECT,OTHER CONTRACTORS,5902539408,1000079711
01.09.2022,LEISURE DIRECTORATE,ADVANCED TREE SERVICES LTD,"2,050.00",EMERGENCY TREES RECOVERY PROJECT,OTHER CONTRACTORS,5902539406,1000079711
01.09.2022,LEISURE DIRECTORATE,ASKEWS & HOLTS LIBRARY SERVICES LTD,"4,413.86",STOCK SERVICES,BOOKS & PUBLICATIONS,5902540454,1494168
01.09.2022,LEISURE DIRECTORATE,LANDSCAPE SUPPLY COMPANY,738.01,TREES � IN-HOUSE TEAM,EQUIPMENT PURCHASE & REPAIR,5902539484,1000051937
01.09.2022,LEISURE DIRECTORATE,ADVANCED TREE SERVICES LTD,"1,210.00",TREES PRINCIPAL ROADS,OTHER CONTRACTORS,5902539394,1000079711
01.09.2022,LEISURE DIRECTORATE,ADVANCED TREE SERVICES LTD,"3,060.00",TREES PRINCIPAL ROADS,OTHER CONTRACTORS,5902539376,1000079711
01.09.2022,LEISURE DIRECTORATE,ADVANCED TREE SERVICES LTD,491,TREES PRINCIPAL ROADS,TREE MAINTENANCE,5902539397,1000079711
01.09.2022,LEISURE DIRECTORATE,ADVANCED TREE SERVICES LTD,976,TREES PRINCIPAL ROADS,TREE MAINTENANCE,5902539389,1000079711
01.09.2022,REGENERATION,WORKMAN LLP,"-9,553.66",14-20 SHAND STREET,SERVICE CHARGES,2103388955,1000063692
01.09.2022,REGENERATION,WORKMAN LLP,"-1,744.59",14-20 SHAND STREET,SERVICE CHARGES,2103388956,1000063692
01.09.2022,REGENERATION,WORKMAN LLP,453.12,14-20 SHAND STREET,SERVICE CHARGES,2103389247,1000063692
01.09.2022,REGENERATION,WORKMAN LLP,"1,850.24",14-20 SHAND STREET,SERVICE CHARGES,2103389246,1000063692
01.09.2022,REGENERATION,WORKMAN LLP,"2,176.16",14-20 SHAND STREET,SERVICE CHARGES,2103389248,1000063692
01.09.2022,REGENERATION,WORKMAN LLP,"-32,584.76",22 SHAND STREET,SERVICE CHARGES,2103388957,1000063692
01.09.2022,REGENERATION,WORKMAN LLP,410.61,22 SHAND STREET,SERVICE CHARGES,2103389251,1000063692
01.09.2022,REGENERATION,WORKMAN LLP,813.36,22 SHAND STREET,SERVICE CHARGES,2103389249,1000063692
01.09.2022,REGENERATION,WORKMAN LLP,840.22,22 SHAND STREET,SERVICE CHARGES,2103389252,1000063692
01.09.2022,REGENERATION,WORKMAN LLP,"1,320.06",22 SHAND STREET,SERVICE CHARGES,2103389250,1000063692
01.09.2022,REGENERATION,WORKMAN LLP,"-1,184.54",7 HOLYROOD STREET,SERVICE CHARGES,2103381160,1000063692
01.09.2022,REGENERATION,WORKMAN LLP,"-1,078.88",7 HOLYROOD STREET,SERVICE CHARGES,2103381161,1000063692
01.09.2022,REGENERATION,WORKMAN LLP,"-2,467.55",9 HOLYROOD STREET,SERVICE CHARGES,2103381159,1000063692
01.09.2022,REGENERATION,WORKMAN LLP,"-2,088.32",9 HOLYROOD STREET,SERVICE CHARGES,2103388962,1000063692
01.09.2022,REGENERATION,WORKMAN LLP,292.03,9 HOLYROOD STREET,SERVICE CHARGES,2103389257,1000063692
01.09.2022,REGENERATION,WORKMAN LLP,"1,068.98",9 HOLYROOD STREET,SERVICE CHARGES,2103389259,1000063692
01.09.2022,REGENERATION,WORKMAN LLP,"1,105.20",9 HOLYROOD STREET,SERVICE CHARGES,2103389256,1000063692
01.09.2022,REGENERATION,WORKMAN LLP,"1,937.62",9 HOLYROOD STREET,SERVICE CHARGES,2103389258,1000063692
01.09.2022,REGENERATION,WORKMAN LLP,"-14,865.25","COURAGE YARD, SHAD THAMES",SERVICE CHARGES,2103388963,1000063692
01.09.2022,REGENERATION,WORKMAN LLP,"-9,130.04","COURAGE YARD, SHAD THAMES",SERVICE CHARGES,2103388958,1000063692
01.09.2022,REGENERATION,WORKMAN LLP,"-8,999.62","COURAGE YARD, SHAD THAMES",SERVICE CHARGES,2103388961,1000063692
01.09.2022,REGENERATION,WORKMAN LLP,"-1,283.05","COURAGE YARD, SHAD THAMES",SERVICE CHARGES,2103388954,1000063692
01.09.2022,REGENERATION,WORKMAN LLP,"-1,114.10","COURAGE YARD, SHAD THAMES",SERVICE CHARGES,2103388952,1000063692
01.09.2022,REGENERATION,WORKMAN LLP,378.86,"COURAGE YARD, SHAD THAMES",SERVICE CHARGES,2103389244,1000063692
01.09.2022,SBS OPERATIONS,HOWDENS JOINERY CO,368.85,ROTHERHITHE DD,MATERIALS,5902539906,1000027491
01.09.2022,SBS OPERATIONS,AKW MEDI-CARE LTD,355.81,SBS AIDS AND ADAPTATIONS,MATERIALS,5902540328,1000047103
02.09.2022,ADULT SOCIAL CARE,INDEPENDENT PEOPLE HOMECARE LTD,"3,985.71",CARERS SERVICES,PLACEMENTS - RESPITE,2103553988,1000083488
02.09.2022,ADULT SOCIAL CARE,ACCESS MOBILITY TRANSPORT LTD,"3,229.60",LD LTS 18-64,CLIENT TRANSPORT,2103553987,1000074637
02.09.2022,ADULT SOCIAL CARE,MULTI-ACTIVITY CENTER,"1,804.80",LD LTS 18-64,DAYCARE,2103554037,1000087749
02.09.2022,ADULT SOCIAL CARE,CHOICE SUPPORT,293.92,LD LTS 18-64,SUPPORTED LIVING,2103553981,1104183
02.09.2022,ADULT SOCIAL CARE,CHOICE SUPPORT,661.32,LD LTS 18-64,SUPPORTED LIVING,2103553970,1104183
02.09.2022,ADULT SOCIAL CARE,CHOICE SUPPORT,661.32,LD LTS 18-64,SUPPORTED LIVING,2103553973,1104183
02.09.2022,ADULT SOCIAL CARE,CHOICE SUPPORT,661.32,LD LTS 18-64,SUPPORTED LIVING,2103553976,1104183
02.09.2022,ADULT SOCIAL CARE,CHOICE SUPPORT,734.8,LD LTS 18-64,SUPPORTED LIVING,2103553972,1104183
02.09.2022,ADULT SOCIAL CARE,CONTACT PROFESSIONALS,532,LD LTS 18-64,SUPPORTED LIVING,2103553978,1000057263
02.09.2022,ADULT SOCIAL CARE,CONTACT PROFESSIONALS,684,LD LTS 18-64,SUPPORTED LIVING,2103553974,1000057263
02.09.2022,ADULT SOCIAL CARE,CONTACT PROFESSIONALS,912,LD LTS 18-64,SUPPORTED LIVING,2103553979,1000057263
02.09.2022,ADULT SOCIAL CARE,ABILITY FOCUS LTD,630,LD LTS 18-64,SUPPORTED LIVING,2103553975,1000084199
02.09.2022,ADULT SOCIAL CARE,ABILITY FOCUS LTD,"2,534.00",LD LTS 18-64,SUPPORTED LIVING,2103553985,1000084199
02.09.2022,ADULT SOCIAL CARE,OLUMBA CARE LIMITED,640,LD LTS 18-64,SUPPORTED LIVING,2103553984,1000087828
02.09.2022,ADULT SOCIAL CARE,OLUMBA CARE LIMITED,936,LD LTS 18-64,SUPPORTED LIVING,2103553982,1000087828
02.09.2022,ADULT SOCIAL CARE,CHOICE SUPPORT,"1,028.72",LD LTS 65+,SUPPORTED LIVING,2103553983,1104183
02.09.2022,ADULT SOCIAL CARE,SAGECARE LTD,888.45,MEM LTS 65+,HOMECARE - C&V,2103554016,1000080924
02.09.2022,ADULT SOCIAL CARE,THAMES HOMECARE SERVICE LTD,671.65,MEM LTS 65+,HOMECARE - SPOT,2103553921,1000079295
02.09.2022,ADULT SOCIAL CARE,THAMES HOMECARE SERVICE LTD,738.82,MEM LTS 65+,HOMECARE - SPOT,2103553863,1000079295
02.09.2022,ADULT SOCIAL CARE,OLUMBA CARE LIMITED,432,MH LTS 18-64,SUPPORTED LIVING,2103553980,1000087828
02.09.2022,ADULT SOCIAL CARE,OASIS CARE AND TRAINING AGENCY,824.2,MH LTS 65+,SUPPORTED LIVING,2103553989,1000003687
02.09.2022,ADULT SOCIAL CARE,BRITISH GAS,942.42,MH PREMISES COSTS,ELECTRICITY,5902539694,1000054825
02.09.2022,ADULT SOCIAL CARE,PHOENIX HEALTHCARE & RECRUITMENT,878.72,PHY LTS 18-64,DAYCARE,2103553986,1000065636
02.09.2022,ADULT SOCIAL CARE,THAMES HOMECARE SERVICE LTD,"1,007.48",PHY LTS 18-64,HOMECARE - C&V,2103553966,1000079295
02.09.2022,ADULT SOCIAL CARE,SAGECARE LTD,270,PHY LTS 18-64,HOMECARE - C&V,2103553993,1000080924
02.09.2022,ADULT SOCIAL CARE,SAGECARE LTD,562.47,PHY LTS 18-64,HOMECARE - C&V,2103553995,1000080924
02.09.2022,ADULT SOCIAL CARE,SAGECARE LTD,"1,070.83",PHY LTS 18-64,HOMECARE - C&V,2103554018,1000080924
02.09.2022,ADULT SOCIAL CARE,SAGECARE LTD,"1,767.56",PHY LTS 18-64,HOMECARE - C&V,2103554003,1000080924
02.09.2022,ADULT SOCIAL CARE,SAGECARE LTD,"4,847.49",PHY LTS 18-64,HOMECARE - C&V,2103554017,1000080924
02.09.2022,ADULT SOCIAL CARE,THAMES HOMECARE SERVICE LTD,273.46,PHY LTS 18-64,HOMECARE - SPOT,2103553949,1000079295
02.09.2022,ADULT SOCIAL CARE,THAMES HOMECARE SERVICE LTD,335.83,PHY LTS 18-64,HOMECARE - SPOT,2103553923,1000079295
02.09.2022,ADULT SOCIAL CARE,THAMES HOMECARE SERVICE LTD,388.6,PHY LTS 18-64,HOMECARE - SPOT,2103553917,1000079295
02.09.2022,ADULT SOCIAL CARE,THAMES HOMECARE SERVICE LTD,805.98,PHY LTS 18-64,HOMECARE - SPOT,2103553853,1000079295
02.09.2022,ADULT SOCIAL CARE,THAMES HOMECARE SERVICE LTD,820.37,PHY LTS 18-64,HOMECARE - SPOT,2103553877,1000079295
02.09.2022,ADULT SOCIAL CARE,THAMES HOMECARE SERVICE LTD,988.29,PHY LTS 18-64,HOMECARE - SPOT,2103553947,1000079295
02.09.2022,ADULT SOCIAL CARE,THAMES HOMECARE SERVICE LTD,302.24,PHY LTS 65+,HOMECARE - C&V,2103553911,1000079295
02.09.2022,ADULT SOCIAL CARE,THAMES HOMECARE SERVICE LTD,307.04,PHY LTS 65+,HOMECARE - C&V,2103553959,1000079295
02.09.2022,ADULT SOCIAL CARE,THAMES HOMECARE SERVICE LTD,805.98,PHY LTS 65+,HOMECARE - C&V,2103553899,1000079295
02.09.2022,ADULT SOCIAL CARE,THAMES HOMECARE SERVICE LTD,825.17,PHY LTS 65+,HOMECARE - C&V,2103553893,1000079295
02.09.2022,ADULT SOCIAL CARE,SAGECARE LTD,274.05,PHY LTS 65+,HOMECARE - C&V,2103553997,1000080924
02.09.2022,ADULT SOCIAL CARE,SAGECARE LTD,307.8,PHY LTS 65+,HOMECARE - C&V,2103554011,1000080924
02.09.2022,ADULT SOCIAL CARE,SAGECARE LTD,330.75,PHY LTS 65+,HOMECARE - C&V,2103553996,1000080924
02.09.2022,ADULT SOCIAL CARE,SAGECARE LTD,415.8,PHY LTS 65+,HOMECARE - C&V,2103554019,1000080924
02.09.2022,ADULT SOCIAL CARE,SAGECARE LTD,433.5,PHY LTS 65+,HOMECARE - C&V,2103554026,1000080924
02.09.2022,ADULT SOCIAL CARE,SAGECARE LTD,491.5,PHY LTS 65+,HOMECARE - C&V,2103554012,1000080924
02.09.2022,ADULT SOCIAL CARE,SAGECARE LTD,529.2,PHY LTS 65+,HOMECARE - C&V,2103553999,1000080924
02.09.2022,ADULT SOCIAL CARE,SAGECARE LTD,538.77,PHY LTS 65+,HOMECARE - C&V,2103554004,1000080924
02.09.2022,ADULT SOCIAL CARE,SAGECARE LTD,661.64,PHY LTS 65+,HOMECARE - C&V,2103554014,1000080924
02.09.2022,ADULT SOCIAL CARE,SAGECARE LTD,"1,104.24",PHY LTS 65+,HOMECARE - C&V,2103554009,1000080924
02.09.2022,ADULT SOCIAL CARE,SAGECARE LTD,"1,190.70",PHY LTS 65+,HOMECARE - C&V,2103554027,1000080924
02.09.2022,ADULT SOCIAL CARE,SAGECARE LTD,"1,261.72",PHY LTS 65+,HOMECARE - C&V,2103554022,1000080924
02.09.2022,ADULT SOCIAL CARE,SAGECARE LTD,"3,221.74",PHY LTS 65+,HOMECARE - C&V,2103554002,1000080924
02.09.2022,ADULT SOCIAL CARE,THAMES HOMECARE SERVICE LTD,254.27,PHY LTS 65+,HOMECARE - SPOT,2103553842,1000079295
02.09.2022,ADULT SOCIAL CARE,THAMES HOMECARE SERVICE LTD,254.27,PHY LTS 65+,HOMECARE - SPOT,2103553897,1000079295
02.09.2022,ADULT SOCIAL CARE,THAMES HOMECARE SERVICE LTD,254.27,PHY LTS 65+,HOMECARE - SPOT,2103553933,1000079295
02.09.2022,ADULT SOCIAL CARE,THAMES HOMECARE SERVICE LTD,273.46,PHY LTS 65+,HOMECARE - SPOT,2103553865,1000079295
02.09.2022,ADULT SOCIAL CARE,THAMES HOMECARE SERVICE LTD,297.45,PHY LTS 65+,HOMECARE - SPOT,2103553931,1000079295
02.09.2022,ADULT SOCIAL CARE,THAMES HOMECARE SERVICE LTD,302.24,PHY LTS 65+,HOMECARE - SPOT,2103553909,1000079295
02.09.2022,ADULT SOCIAL CARE,THAMES HOMECARE SERVICE LTD,307.04,PHY LTS 65+,HOMECARE - SPOT,2103553883,1000079295
02.09.2022,ADULT SOCIAL CARE,THAMES HOMECARE SERVICE LTD,340.62,PHY LTS 65+,HOMECARE - SPOT,2103553965,1000079295
02.09.2022,ADULT SOCIAL CARE,THAMES HOMECARE SERVICE LTD,369.41,PHY LTS 65+,HOMECARE - SPOT,2103553901,1000079295
02.09.2022,ADULT SOCIAL CARE,THAMES HOMECARE SERVICE LTD,379,PHY LTS 65+,HOMECARE - SPOT,2103553919,1000079295
02.09.2022,ADULT SOCIAL CARE,THAMES HOMECARE SERVICE LTD,388.6,PHY LTS 65+,HOMECARE - SPOT,2103553915,1000079295
02.09.2022,ADULT SOCIAL CARE,THAMES HOMECARE SERVICE LTD,402.99,PHY LTS 65+,HOMECARE - SPOT,2103553891,1000079295
02.09.2022,ADULT SOCIAL CARE,THAMES HOMECARE SERVICE LTD,537.32,PHY LTS 65+,HOMECARE - SPOT,2103553963,1000079295
02.09.2022,ADULT SOCIAL CARE,THAMES HOMECARE SERVICE LTD,604.49,PHY LTS 65+,HOMECARE - SPOT,2103553953,1000079295
02.09.2022,ADULT SOCIAL CARE,THAMES HOMECARE SERVICE LTD,633.27,PHY LTS 65+,HOMECARE - SPOT,2103553961,1000079295
02.09.2022,ADULT SOCIAL CARE,THAMES HOMECARE SERVICE LTD,638.07,PHY LTS 65+,HOMECARE - SPOT,2103553955,1000079295
02.09.2022,ADULT SOCIAL CARE,THAMES HOMECARE SERVICE LTD,671.65,PHY LTS 65+,HOMECARE - SPOT,2103553855,1000079295
02.09.2022,ADULT SOCIAL CARE,THAMES HOMECARE SERVICE LTD,676.45,PHY LTS 65+,HOMECARE - SPOT,2103553881,1000079295
02.09.2022,ADULT SOCIAL CARE,THAMES HOMECARE SERVICE LTD,700.44,PHY LTS 65+,HOMECARE - SPOT,2103553962,1000079295
02.09.2022,ADULT SOCIAL CARE,THAMES HOMECARE SERVICE LTD,738.82,PHY LTS 65+,HOMECARE - SPOT,2103553873,1000079295
02.09.2022,ADULT SOCIAL CARE,THAMES HOMECARE SERVICE LTD,738.82,PHY LTS 65+,HOMECARE - SPOT,2103553945,1000079295
02.09.2022,ADULT SOCIAL CARE,THAMES HOMECARE SERVICE LTD,805.98,PHY LTS 65+,HOMECARE - SPOT,2103553871,1000079295
02.09.2022,ADULT SOCIAL CARE,THAMES HOMECARE SERVICE LTD,825.17,PHY LTS 65+,HOMECARE - SPOT,2103553905,1000079295
02.09.2022,ADULT SOCIAL CARE,THAMES HOMECARE SERVICE LTD,873.15,PHY LTS 65+,HOMECARE - SPOT,2103553851,1000079295
02.09.2022,ADULT SOCIAL CARE,THAMES HOMECARE SERVICE LTD,978.69,PHY LTS 65+,HOMECARE - SPOT,2103553887,1000079295
02.09.2022,ADULT SOCIAL CARE,THAMES HOMECARE SERVICE LTD,"1,036.26",PHY LTS 65+,HOMECARE - SPOT,2103553935,1000079295
02.09.2022,ADULT SOCIAL CARE,OLUMBA CARE LIMITED,"1,216.00",PHY LTS 65+,SUPPORTED LIVING,2103553971,1000087828
02.09.2022,ADULT SOCIAL CARE,SAGECARE LTD,287.12,PHY STS 18-64,HOMECARE - IC,2103553992,1000080924
02.09.2022,ADULT SOCIAL CARE,SAGECARE LTD,916.8,PHY STS 18-64,HOMECARE - IC,2103554024,1000080924
02.09.2022,ADULT SOCIAL CARE,SAGECARE LTD,618.54,PHY STS 65+,HOMECARE - IC,2103554007,1000080924
02.09.2022,ADULT SOCIAL CARE,SAGECARE LTD,727.26,PHY STS 65+,HOMECARE - IC,2103554010,1000080924
02.09.2022,ADULT SOCIAL CARE,SAGECARE LTD,774.92,PHY STS 65+,HOMECARE - IC,2103553990,1000080924
02.09.2022,ADULT SOCIAL CARE,SAGECARE LTD,861.3,PHY STS 65+,HOMECARE - IC,2103554025,1000080924
02.09.2022,ADULT SOCIAL CARE,SAGECARE LTD,"1,181.66",PHY STS 65+,HOMECARE - IC,2103553998,1000080924
02.09.2022,ADULT SOCIAL CARE,THAMES HOMECARE SERVICE LTD,321.43,SEN LTS 65+,HOMECARE - SPOT,2103553927,1000079295
02.09.2022,ADULT SOCIAL CARE,GLS EDUCATIONAL SUPPLIES LTD,277.72,SOUTHWARK RESOURCE CENTRE,"CLOTHING, UNIFORMS & LAUNDRY",5902539830,1318282
02.09.2022,ADULT SOCIAL CARE,KENT COUNTY COUNCIL - LASER,"1,664.83",SOUTHWARK RESOURCE CENTRE,ELECTRICITY,5902540619,1000012926
02.09.2022,ADULT SOCIAL CARE,KAIROS COMMUNITY TRUST,"3,705.00",SUB LTS 18-64,DAYCARE,2103553833,1000025479
02.09.2022,ASSET MANAGEMENT,FRANKHAM CONSULTANCY GROUP LTD,375,DISREPAIR,BUILDING R&M,5902540504,1000043952
02.09.2022,ASSET MANAGEMENT,FRANKHAM CONSULTANCY GROUP LTD,"1,250.00",DISREPAIR,BUILDING R&M,5902540507,1000043952
02.09.2022,ASSET MANAGEMENT,FRANKHAM CONSULTANCY GROUP LTD,"1,250.00",DISREPAIR,BUILDING R&M,5902540511,1000043952
02.09.2022,ASSET MANAGEMENT,FRANKHAM CONSULTANCY GROUP LTD,"1,250.00",DISREPAIR,BUILDING R&M,5902540514,1000043952
02.09.2022,ASSET MANAGEMENT,1st ACTIVE PROPERTY SERVICES LTD,970,DISREPAIR,PAYMENTS FOR LEGAL SERVICES,2103553811,3000001655
02.09.2022,ASSET MANAGEMENT,GAS & ENVIRONMENTAL SERVICES LTD,581.75,REPAIRS OPERATIONS,OTHER R&M,5902539686,1000066947
02.09.2022,ASSET MANAGEMENT HGF,DIGITAL ID LTD T/A ESSENTRA SECURITY,"1,030.85",160 TOOLEY ST.,BUILDING R&M,5902539791,1000025760
02.09.2022,ASSET MANAGEMENT HGF,IRON MOUNTAIN (UK) LTD,"9,271.00",REPAIR AND MAINTENANCE SERVICES,INFORMATION MANAGEMENT,5902540629,1000078591
02.09.2022,CENTRAL FUNCTIONS,STANDAGE & CO LTD,"11,900.00",AYLESBURY,SECURITY SERVICES,2103554046,4002817
02.09.2022,CENTRAL FUNCTIONS,DSI BILLING SERVICES LTD,287.04,OPERATIONAL TEAM,POSTAGES,5902540276,1000058640
02.09.2022,CHIEF EXECUTIVE,TMP UK,"44,952.43",ADVERTISING,RECRUITMENT ADVERTISING,6102046002,CHAPS PAYMENT
02.09.2022,CHILDREN AND ADULT,SHARPE PRITCHARD LLP,252,CAPITAL PS (EDUCATION),CONSTRUCTION FEES - LEGAL,5902540551,1790085
02.09.2022,CHILDREN AND ADULT,SHARPE PRITCHARD LLP,"6,112.00",CAPITAL PS (EDUCATION),CONSTRUCTION FEES - LEGAL,5902540558,1790085
02.09.2022,CHILDREN AND ADULT,SHARPE PRITCHARD LLP,"9,248.00",CAPITAL PS (EDUCATION),CONSTRUCTION FEES - LEGAL,5902540549,1790085
02.09.2022,CHILDREN AND ADULT,PRIDE DEVELOPMENTS,"1,798.03",CAPITAL PS (SOC SERV),CONSTRUCTION MAIN CONTRACT,2103553809,3000002126
02.09.2022,CHILDREN AND FAMILIES,ACAINN LTD,"2,600.00",ADOPT LONDON SOUTH,EXTERNAL AGENCIES AND BODIES,5902540675,1000083763
02.09.2022,CHILDREN AND FAMILIES,MARK  RUSSELL,600,ADOPT LONDON SOUTH,MARKETING & PUBLICITY SERVICES,5902540520,1000055481
02.09.2022,CHILDREN AND FAMILIES,PLACEMENT SUPPORT LTD,"1,605.00",ADOPTION SUPP FUND,EXTERNAL AGENCIES AND BODIES,5902540680,1000085153
02.09.2022,CHILDREN AND FAMILIES,REDACTED PERSONAL DATA,400,FRIENDS &FAMILY FOST,ADDITIONAL PAYMENTS TO AGENCIES/CARERS,REDACTED,REDACTED
02.09.2022,CHILDREN AND FAMILIES,REDACTED PERSONAL DATA,300,FRIENDS &FAMILY FOST,OTHER PAYMENTS FOR CLIENTS,REDACTED,REDACTED
02.09.2022,CHILDREN AND FAMILIES,REDACTED PERSONAL DATA,850,FRIENDS &FAMILY FOST,PAYMENTS TO CARERS,REDACTED,REDACTED
02.09.2022,CHILDREN AND FAMILIES,KENT COUNTY COUNCIL - LASER,"1,261.01",MGMT & PARENTING,ELECTRICITY,5902540635,1000012926
02.09.2022,CHILDREN AND FAMILIES,WAY4WARD SOLUTIONS CIC,"1,920.00",NEW ASF,EXTERNAL AGENCIES AND BODIES,5902540686,1000087996
02.09.2022,CHILDREN AND FAMILIES,NURSERIES BY GYMFINITY KIDS MAIDSTONE,528.75,SPECIAL GUARDIANSHIP,OTHER PAYMENTS FOR CLIENTS,5902539395,1000087919
02.09.2022,COMMUNITIES,THAMES HOMECARE SERVICE LTD,431.78,NO RECOURSE TO PUBLIC FUNDS,HOMECARE - C&V,2103553845,1000079295
02.09.2022,COMMUNITIES,SAGECARE LTD,"1,214.34",NO RECOURSE TO PUBLIC FUNDS,HOMECARE - C&V,2103554023,1000080924
02.09.2022,COMMUNITIES,SAGECARE LTD,"1,790.78",NO RECOURSE TO PUBLIC FUNDS,HOMECARE - C&V,2103554005,1000080924
02.09.2022,DSG,RG SOUND SOLUTIONS LTD,"1,661.00",HEARING AND VISUAL IMPAIRMENT TEAM,OP LEASE/HIRE CHARGES:PLANT/EQUIP/FURNIT,5902539825,1000081824
02.09.2022,DSG,SHIRLEY MOYSE,700,SEN INCLUSION TEAM,CONSULTANTS SERVICES,5902539704,1000083073
02.09.2022,EDUCATION,MA EDUCATION LIMITED,498,EY & PUPIL TRACKING,TRAINING,5902539617,1000047027
02.09.2022,EDUCATION,GREATER LONDON AUTHORITY,"10,000.00",SIAS,SUBSCRIPTIONS,5902540584,1000015827
02.09.2022,ENV&LEIS,BIONICAL SOLUTIONS LIMITED,275,STOP SMOKING,EXTERNAL AGENCIES AND BODIES,5902540410,1000084774
02.09.2022,ENVIRONMENT AND LEISURE,CONWAY AECOM LTD,"1,130.00",CAPITAL PS (LEISURE),CAPITAL GRANTS,5902540602,1000071205
02.09.2022,ENVIRONMENT AND LEISURE,CONWAY AECOM LTD,"1,776.95",CAPITAL PS (LEISURE),CAPITAL GRANTS,5902540598,1000071205
02.09.2022,ENVIRONMENT AND LEISURE,CONWAY AECOM LTD,"1,970.00",CAPITAL PS (LEISURE),CAPITAL GRANTS,5902540602,1000071205
02.09.2022,ENVIRONMENT AND LEISURE,CONWAY AECOM LTD,"2,600.00",CAPITAL PS (LEISURE),CAPITAL GRANTS,5902540597,1000071205
02.09.2022,ENVIRONMENT AND LEISURE,CONWAY AECOM LTD,750,CAPITAL PS (REGEN),CAPITAL GRANTS,5902540605,1000071205
02.09.2022,ENVIRONMENT AND LEISURE,CONWAY AECOM LTD,"1,692.56",CAPITAL PS (REGEN),CAPITAL GRANTS,5902540595,1000071205
02.09.2022,ENVIRONMENT DIRECTORATE,ARNOLD CLARK VEHICLE MANAGEMENT,-604.46,CAR LEASING CTRL A/C,VEHICLE LEASING CHARGES,5902540518,1000079116
02.09.2022,ENVIRONMENT DIRECTORATE,ARNOLD CLARK VEHICLE MANAGEMENT,-595.89,CAR LEASING CTRL A/C,VEHICLE LEASING CHARGES,5902540518,1000079116
02.09.2022,ENVIRONMENT DIRECTORATE,ARNOLD CLARK VEHICLE MANAGEMENT,-335.99,CAR LEASING CTRL A/C,VEHICLE LEASING CHARGES,5902540510,1000079116
02.09.2022,ENVIRONMENT DIRECTORATE,ARNOLD CLARK VEHICLE MANAGEMENT,-324.92,CAR LEASING CTRL A/C,VEHICLE LEASING CHARGES,5902540510,1000079116
02.09.2022,ENVIRONMENT DIRECTORATE,ARNOLD CLARK VEHICLE MANAGEMENT,-292.42,CAR LEASING CTRL A/C,VEHICLE LEASING CHARGES,5902540527,1000079116
02.09.2022,ENVIRONMENT DIRECTORATE,ARNOLD CLARK VEHICLE MANAGEMENT,-283.09,CAR LEASING CTRL A/C,VEHICLE LEASING CHARGES,5902540527,1000079116
02.09.2022,ENVIRONMENT DIRECTORATE,ARNOLD CLARK VEHICLE MANAGEMENT,-257.12,CAR LEASING CTRL A/C,VEHICLE LEASING CHARGES,5902540518,1000079116
02.09.2022,ENVIRONMENT DIRECTORATE,ARNOLD CLARK VEHICLE MANAGEMENT,265.66,CAR LEASING CTRL A/C,VEHICLE LEASING CHARGES,5902540519,1000079116
02.09.2022,ENVIRONMENT DIRECTORATE,ARNOLD CLARK VEHICLE MANAGEMENT,358.27,CAR LEASING CTRL A/C,VEHICLE LEASING CHARGES,5902540528,1000079116
02.09.2022,ENVIRONMENT DIRECTORATE,ARNOLD CLARK VEHICLE MANAGEMENT,374.41,CAR LEASING CTRL A/C,VEHICLE LEASING CHARGES,5902540521,1000079116
02.09.2022,ENVIRONMENT DIRECTORATE,ARNOLD CLARK VEHICLE MANAGEMENT,386.9,CAR LEASING CTRL A/C,VEHICLE LEASING CHARGES,5902540521,1000079116
02.09.2022,ENVIRONMENT DIRECTORATE,ARNOLD CLARK VEHICLE MANAGEMENT,394.68,CAR LEASING CTRL A/C,VEHICLE LEASING CHARGES,5902540528,1000079116
02.09.2022,ENVIRONMENT DIRECTORATE,ARVAL UK LTD,"1,126.29",CAR LEASING CTRL A/C,VEHICLE LEASING CHARGES,5902540561,1000079802
02.09.2022,ENVIRONMENT DIRECTORATE,ARVAL UK LTD,"1,142.42",CAR LEASING CTRL A/C,VEHICLE LEASING CHARGES,5902540561,1000079802
02.09.2022,ENVIRONMENT DIRECTORATE,TIPPERHIRE LTD,351.6,COMMERCIAL VEH CTRL A/C,HIRED VEHICLES,5902540615,1000055357
02.09.2022,ENVIRONMENT DIRECTORATE,TIPPERHIRE LTD,640.05,COMMERCIAL VEH CTRL A/C,HIRED VEHICLES,5902540617,1000055357
02.09.2022,ENVIRONMENT DIRECTORATE,LEX AUTOLEASE,"19,188.35",COMMERCIAL VEH CTRL A/C,HIRED VEHICLES,5902540640,1000069462
02.09.2022,ENVIRONMENT DIRECTORATE,SHELL UK OIL PRODUCTS LTD,264.91,COMMERCIAL VEH CTRL A/C,VEHICLE FUEL,5902540644,1000081254
02.09.2022,ENVIRONMENT DIRECTORATE,SHELL UK OIL PRODUCTS LTD,269.49,COMMERCIAL VEH CTRL A/C,VEHICLE FUEL,5902540668,1000081254
02.09.2022,ENVIRONMENT DIRECTORATE,SHELL UK OIL PRODUCTS LTD,281.22,COMMERCIAL VEH CTRL A/C,VEHICLE FUEL,5902540646,1000081254
02.09.2022,ENVIRONMENT DIRECTORATE,SHELL UK OIL PRODUCTS LTD,283.52,COMMERCIAL VEH CTRL A/C,VEHICLE FUEL,5902540648,1000081254
02.09.2022,ENVIRONMENT DIRECTORATE,SHELL UK OIL PRODUCTS LTD,291.46,COMMERCIAL VEH CTRL A/C,VEHICLE FUEL,5902540666,1000081254
02.09.2022,ENVIRONMENT DIRECTORATE,SHELL UK OIL PRODUCTS LTD,324.64,COMMERCIAL VEH CTRL A/C,VEHICLE FUEL,5902540620,1000081254
02.09.2022,ENVIRONMENT DIRECTORATE,SHELL UK OIL PRODUCTS LTD,469.36,COMMERCIAL VEH CTRL A/C,VEHICLE FUEL,5902540627,1000081254
02.09.2022,ENVIRONMENT DIRECTORATE,SHELL UK OIL PRODUCTS LTD,487.95,COMMERCIAL VEH CTRL A/C,VEHICLE FUEL,5902540593,1000081254
02.09.2022,ENVIRONMENT DIRECTORATE,SHELL UK OIL PRODUCTS LTD,580.66,COMMERCIAL VEH CTRL A/C,VEHICLE FUEL,5902540633,1000081254
02.09.2022,ENVIRONMENT DIRECTORATE,SHELL UK OIL PRODUCTS LTD,706.88,COMMERCIAL VEH CTRL A/C,VEHICLE FUEL,5902540634,1000081254
02.09.2022,ENVIRONMENT DIRECTORATE,SHELL UK OIL PRODUCTS LTD,723.02,COMMERCIAL VEH CTRL A/C,VEHICLE FUEL,5902540650,1000081254
02.09.2022,ENVIRONMENT DIRECTORATE,SHELL UK OIL PRODUCTS LTD,"1,095.70",COMMERCIAL VEH CTRL A/C,VEHICLE FUEL,5902540663,1000081254
02.09.2022,ENVIRONMENT DIRECTORATE,SHELL UK OIL PRODUCTS LTD,"1,133.43",COMMERCIAL VEH CTRL A/C,VEHICLE FUEL,5902540588,1000081254
02.09.2022,ENVIRONMENT DIRECTORATE,SHELL UK OIL PRODUCTS LTD,"1,544.90",COMMERCIAL VEH CTRL A/C,VEHICLE FUEL,5902540586,1000081254
02.09.2022,ENVIRONMENT DIRECTORATE,SHELL UK OIL PRODUCTS LTD,"1,675.93",COMMERCIAL VEH CTRL A/C,VEHICLE FUEL,5902540679,1000081254
02.09.2022,ENVIRONMENT DIRECTORATE,SHELL UK OIL PRODUCTS LTD,"1,699.19",COMMERCIAL VEH CTRL A/C,VEHICLE FUEL,5902540672,1000081254
02.09.2022,ENVIRONMENT DIRECTORATE,SHELL UK OIL PRODUCTS LTD,"5,276.97",COMMERCIAL VEH CTRL A/C,VEHICLE FUEL,5902540600,1000081254
02.09.2022,ENVIRONMENT DIRECTORATE,SHELL UK OIL PRODUCTS LTD,"6,759.31",COMMERCIAL VEH CTRL A/C,VEHICLE FUEL,5902540581,1000081254
02.09.2022,ENVIRONMENT DIRECTORATE,CARRYLIFT MATERIALS HANDLING LTD,370.44,COMMERCIAL VEH CTRL A/C,VEHICLE REPAIRS & MAINTENANCE,5902540626,1000081237
02.09.2022,ENVIRONMENT DIRECTORATE,CHARTERED INST. OF ENVIRONMENTAL HEALTH,640,RESIDENTIAL SERVICES,TRAINING,5902540577,1605413
02.09.2022,ENVIRONMENT DIRECTORATE,CHARTERED INST. OF ENVIRONMENTAL HEALTH,"3,960.00",RESIDENTIAL SERVICES,TRAINING,5902540577,1605413
02.09.2022,ENVIRONMENT DIRECTORATE,HENRY SHEACH LAWNMOWER SERVICES LTD,502.12,STREET CLEANING-GENERAL,EQUIPMENT PURCHASE & REPAIR,5902540531,1000045980
02.09.2022,ENVIRONMENT DIRECTORATE,HENRY SHEACH LAWNMOWER SERVICES LTD,615.12,STREET CLEANING-GENERAL,EQUIPMENT PURCHASE & REPAIR,5902540534,1000045980
02.09.2022,ENVIRONMENT DIRECTORATE,NPOWER LTD,587.24,STREET TRADING A/C,ELECTRICITY,5902540641,1000078994
02.09.2022,F & C S EXCLUDING CORPORATE BUDGETS,DSI BILLING SERVICES LTD,"2,213.85",ADMINISTRATIVE SUPPORT,POSTAGES,5902540273,1000058640
02.09.2022,F & C S EXCLUDING CORPORATE BUDGETS,CIPFA BUSINESS LTD,290,CORPORATE SERVICES AND F&G,TRAINING,5902540517,1000024688
02.09.2022,F & C S EXCLUDING CORPORATE BUDGETS,POST OFFICE LTD (PRE -FUNDING),"481,080.00",COST OF LIVING FUND,EXTERNAL AGENCIES AND BODIES,5902540583,1000087679
02.09.2022,F & C S EXCLUDING CORPORATE BUDGETS,POST OFFICE LTD (PRE -FUNDING),"1,698,900.00",DISCRETIONARY RATES REBATE,EXTERNAL AGENCIES AND BODIES,5902540580,1000087679
02.09.2022,F & C S EXCLUDING CORPORATE BUDGETS,ZALARIS CONSULTING UK LTD,"7,540.00",INCOME MANAGEMENT,OFFICE EXPENSES,5902540623,1000062505
02.09.2022,F & C S EXCLUDING CORPORATE BUDGETS,THE ASSOCIATION OF ELECTORAL ADMINISTRATION,270,LEGAL SVCES MANAGEMENT,TRAINING,5902539534,1000045146
02.09.2022,F & C S EXCLUDING CORPORATE BUDGETS,LONDON BRIDGE BUSINESS IMPROVEMENT,"229,816.26",TEAM LONDON BRIDGE,EXTERNAL AGENCIES AND BODIES,5902540564,1000050879
02.09.2022,HOUSING,GUIDELINE LIFT SERVICES LTD,"71,459.10",GUIDELINE,I-WORLD CONTRACTORS HOLDING ACCOUNT,5902540638,1000064176
02.09.2022,HOUSING GENERAL FUND,UNIFIED CONSULTANCY LTD,350,CAPITAL PS (HOUSING GF),ICT ACQUISITION,5902540645,1000081827
02.09.2022,HOUSING GENERAL FUND,UNIFIED CONSULTANCY LTD,527.27,CAPITAL PS (HOUSING GF),ICT ACQUISITION,5902540651,1000081827
02.09.2022,HOUSING GENERAL FUND,UNIFIED CONSULTANCY LTD,"1,500.00",CAPITAL PS (HOUSING GF),ICT ACQUISITION,5902540654,1000081827
02.09.2022,HOUSING GENERAL FUND,UNIFIED CONSULTANCY LTD,"4,000.00",CAPITAL PS (HOUSING GF),ICT ACQUISITION,5902540660,1000081827
02.09.2022,HOUSING GENERAL FUND,UNIFIED CONSULTANCY LTD,"5,310.29",CAPITAL PS (HOUSING GF),ICT ACQUISITION,5902540656,1000081827
02.09.2022,HOUSING GENERAL FUND,UNIFIED CONSULTANCY LTD,"13,000.00",CAPITAL PS (HOUSING GF),ICT ACQUISITION,5902540657,1000081827
02.09.2022,HOUSING GENERAL FUND,UNIFIED CONSULTANCY LTD,"57,418.00",CAPITAL PS (HOUSING GF),ICT ACQUISITION,5902540649,1000081827
02.09.2022,HOUSING GENERAL FUND,MITIE FM LTD,"5,819.02",CAPITAL PS (REGEN),CONSTRUCTION MAIN CONTRACT,2103554034,3000000166
02.09.2022,HOUSING GENERAL FUND,MITIE FM LTD,"6,695.25",CAPITAL PS (REGEN),CONSTRUCTION MAIN CONTRACT,2103553814,3000000166
02.09.2022,HOUSING GENERAL FUND,STONEGROVE LIMITED,"21,449.08",CAPITAL PS (REGEN),LAND & BUILDINGS ACQUISITION,2103553822,3000001525
02.09.2022,HOUSING GENERAL FUND,STONEGROVE LIMITED,"46,818.47",CAPITAL PS (REGEN),LAND & BUILDINGS ACQUISITION,2103553823,3000001525
02.09.2022,HOUSING HRA,POTTER RAPER LTD,"7,026.67",CAPITAL PS (HRA),CONSTRUCTION FEES - EMPLOYERS AGENT,5902540589,1009369
02.09.2022,HOUSING HRA,HIGHER ELEVATION LTD,"2,574.00",CAPITAL PS (HRA),UTILITIES INSTALLATION,5902540594,1000067328
02.09.2022,HOUSING HRA,CALFORD SEADEN LLP,"1,890.00",CAPITAL PS (REGEN),CONSTRUCTION FEES  - EXTERNAL,5902540274,1061592
02.09.2022,HOUSING HRA,CALFORD SEADEN LLP,"2,088.75",CAPITAL PS (REGEN),CONSTRUCTION FEES  - EXTERNAL,5902540275,1061592
02.09.2022,HR & OT,TMP (UK) LIMITED,385,ADVERTISING,GENERAL RECHARGES,5902540578,1000041810
02.09.2022,HR & OT,TMP (UK) LIMITED,954,ADVERTISING,GENERAL RECHARGES,5902540582,1000041810
02.09.2022,HR & OT,TMP (UK) LIMITED,"21,137.50",ADVERTISING,GENERAL RECHARGES,5902540508,1000041810
02.09.2022,HR & OT,SHARPSTONE SKINNER LIMITED,"2,070.50",MEMBER DEVELOPMENT,TRAINING,5902540585,1000088725
02.09.2022,LEISURE DIRECTORATE,CONSTELLIA PUBLIC LIMITED,"-13,319.66",TREES PRINCIPAL ROADS,TREE MAINTENANCE,5902539832,1000088137
02.09.2022,LEISURE DIRECTORATE,CONSTELLIA PUBLIC LIMITED,"15,983.59",TREES PRINCIPAL ROADS,TREE MAINTENANCE,5902539709,1000088137
02.09.2022,LEISURE DIRECTORATE,CONSTELLIA PUBLIC LIMITED,"19,905.29",TREES PRINCIPAL ROADS,TREE MAINTENANCE,5902539707,1000088137
02.09.2022,PUBLIC HEALTH,CITY HOPE CHURCH,587.55,HOLIDAY ACTIVITIES & FOOD,EXTERNAL AGENCIES AND BODIES,5902540636,1000035253
02.09.2022,REGENERATION,BUTLER HEGARTY ARCHITECTS LTD,"1,238.10",PECKHAM THI,MARKETING & PUBLICITY SERVICES,5902540285,1000077437
02.09.2022,REGENERATION,BUTLER HEGARTY ARCHITECTS LTD,"5,879.16",PECKHAM THI,MARKETING & PUBLICITY SERVICES,5902540285,1000077437
02.09.2022,RESIDENT SERVICES,SATCHELL MORAN SOLICITORS LTD,"1,000.00",TA HOSTELS,PAYMENTS FOR LEGAL SERVICES,2103554030,1000087281
02.09.2022,RESIDENT SERVICES,SATCHELL MORAN SOLICITORS LTD,"3,500.00",TA HOSTELS,PAYMENTS FOR LEGAL SERVICES,2103554031,1000087281
02.09.2022,RESIDENT SERVICES HGF,KINDLY PROPERTIES LTD,"27,127.50",NIGHTLY TA (NSC),EXTERNAL AGENCIES AND BODIES,5902540523,1000060734
02.09.2022,RESIDENT SERVICES HGF,DENHAN INTERNATIONAL LIMITED,"24,843.80",NIGHTLY TA (NSC),EXTERNAL AGENCIES AND BODIES,5902540610,1000075567
02.09.2022,RESIDENT SERVICES HGF,KINGSPRIDE INVESTMENTS LTD,"1,185.00",RAPID REHOUSING,EXTERNAL AGENCIES AND BODIES,5902540530,1000084216
03.09.2022,CENTRAL FUNCTIONS,GEMINI CONSULTANTS LTD,"1,390.00",HOME LOANS HRA,SUBSCRIPTIONS,5902540282,1384854
03.09.2022,CUSTOMER EXPERIENCE,PARK RETAIL LTD,459,PECKHAM MSSP,OFFICE EXPENSES,5902539806,1000053528
03.09.2022,EDUCATION,WALWORTH GARDEN LTD,"2,550.00",ADULT SKILLS BUDGET,GRANTS,5902540456,1000042204
03.09.2022,HOUSING HRA,SILVER DCC LTD,"1,181.19",CAPITAL PS (HRA),CONSTRUCTION FEES  - EXTERNAL,5902540565,1000087546
03.09.2022,HOUSING HRA,SILVER DCC LTD,"1,315.18",CAPITAL PS (HRA),CONSTRUCTION FEES  - EXTERNAL,5902539976,1000087546
03.09.2022,HOUSING HRA,SILVER DCC LTD,"1,342.65",CAPITAL PS (HRA),CONSTRUCTION FEES  - EXTERNAL,5902540481,1000087546
03.09.2022,HOUSING HRA,SILVER DCC LTD,"2,445.94",CAPITAL PS (HRA),CONSTRUCTION FEES  - EXTERNAL,5902540460,1000087546
03.09.2022,HOUSING HRA,LUSTRE CONSULTING LTD,"12,304.00",CAPITAL PS (REGEN),CONSTRUCTION FEES  - EXTERNAL,5902540291,1000074552
03.09.2022,PUBLIC HEALTH,FOOD MATTERS,"1,200.00",PLACE & HEALTH IMPROVEMENT,EXTERNAL AGENCIES AND BODIES,5902539951,1000088246
04.09.2022,ADULT SOCIAL CARE,REALITY FAMILY SUPPORT SERVICES LTD,"1,185.80",PHY LTS 18-64,OTHER PAYMENTS FOR CLIENTS,5902540272,1000087878
04.09.2022,ASSET MANAGEMENT,ARMINA LTD,"1,761.91",DISREPAIR,BUILDING R&M,2103553806,3000002121
04.09.2022,ASSET MANAGEMENT,ARMINA LTD,"1,795.59",DISREPAIR,BUILDING R&M,2103553813,3000002121
04.09.2022,ASSET MANAGEMENT,ARMINA LTD,"2,477.63",DISREPAIR,BUILDING R&M,2103553805,3000002121
04.09.2022,ASSET MANAGEMENT,ARMINA LTD,"8,681.64",DISREPAIR,BUILDING R&M,2103553825,3000002121
04.09.2022,ASSET MANAGEMENT HGF,KENT COUNTY COUNCIL - LASER,297.52,BOURNEMOUTH GROVE,GAS,5902540277,1000012926
04.09.2022,ASSET MANAGEMENT HGF,KENT COUNTY COUNCIL - LASER,316.74,BOURNEMOUTH GROVE,GAS,5902540279,1000012926
04.09.2022,CHILDREN AND ADULT,FAITHFUL & GOULD,"42,252.50",CAPITAL PS (SOC SERV),CONSTRUCTION FEES,5902540435,1000061390
04.09.2022,CHILDREN AND FAMILIES,KENT COUNTY COUNCIL - LASER,709.69,CENTRAL SUPPORT,GAS,5902540316,1000012926
04.09.2022,CHILDREN AND FAMILIES,REALITY FAMILY SUPPORT SERVICES LTD,508.2,EDGE OF CARE DECIS�S,OTHER PAYMENTS FOR CLIENTS,5902540272,1000087878
04.09.2022,CHILDREN AND FAMILIES,REVIVE THERAPY LTD,"1,600.00",NEW ASF,EXTERNAL AGENCIES AND BODIES,5902539996,1000086960
04.09.2022,DSG,WELFARE CALL (LAC) LTD,"37,234.08",VIRTUAL SCHOOL PP,EXTERNAL AGENCIES AND BODIES,5902540387,1000057872
04.09.2022,EDUCATION,KENT COUNTY COUNCIL - LASER,640.74,THOMAS CALTON CENTRE,GAS,5902540426,1000012926
04.09.2022,ENVIRONMENT DIRECTORATE,THE OUT OF HOME MEDIA CONSULTANCY LTD,"4,250.00",ADVERTISING HOARDINGS,HIGHWAYS TERM CONTRACT,5902540491,1000078969
04.09.2022,ENVIRONMENT DIRECTORATE,SOUTHWARK NEWSPAPER LTD,669,HIGHWAYS DEVELOPMENT,MARKETING & PUBLICITY SERVICES,5902540284,1556957
04.09.2022,HOUSING HRA,SMITH & BYFORD LTD,"8,250.00",CAPITAL PS (HRA),CONSTRUCTION,2103554043,3000000520
04.09.2022,HOUSING HRA,SMITH & BYFORD LTD,"8,853.80",CAPITAL PS (HRA),CONSTRUCTION,2103554042,3000000520
04.09.2022,HOUSING HRA,SMITH & BYFORD LTD,"35,894.52",CAPITAL PS (HRA),CONSTRUCTION,2103554041,3000000520
04.09.2022,HOUSING HRA,SMITH & BYFORD LTD,"36,068.43",CAPITAL PS (HRA),CONSTRUCTION,2103554045,3000000520
04.09.2022,HOUSING HRA,SMITH & BYFORD LTD,"42,234.39",CAPITAL PS (HRA),CONSTRUCTION,2103554044,3000000520
04.09.2022,HOUSING HRA,MARTIN ARNOLD LTD,625,CAPITAL PS (REGEN),CONSTRUCTION FEES - QUANTITY SURVEYOR,5902540381,1000076993
04.09.2022,HOUSING HRA,MARTIN ARNOLD LTD,"1,250.00",CAPITAL PS (REGEN),CONSTRUCTION FEES - QUANTITY SURVEYOR,5902540380,1000076993
04.09.2022,LEISURE DIRECTORATE,KENT COUNTY COUNCIL - LASER,"-2,784.50",CREMATORIUM,ELECTRICITY,5902540370,1000012926
04.09.2022,LEISURE DIRECTORATE,KENT COUNTY COUNCIL - LASER,"2,830.32",CREMATORIUM,ELECTRICITY,5902540369,1000012926
04.09.2022,LEISURE DIRECTORATE,MILLWALL COMMUNITY TRUST,"7,500.00",GRANTS COMMISSIONING,GRANTS,5902540228,11011221
04.09.2022,LEISURE DIRECTORATE,P D CONSTRUCTION LTD,"2,360.00",SOUTHWARK AREA TEAM,OTHER R&M,2103553824,4001883
04.09.2022,PLANNING AND TRANSPORT,PORTALPLANQUEST LTD,924,DEV MGT ADMIN & INCOME,MANDATORY STATUTORY FEES & CHARGES,5902539980,1000081761
05.09.2022,ADULT SOCIAL CARE,ROSIE SCOTT,"1,500.00",AAD TEAM,LEGAL FEES & COURT COSTS,2103554404,1000087063
05.09.2022,ADULT SOCIAL CARE,REDACTED PERSONAL DATA,262.6,APPOINTEESHIPS,OTHER PAYMENTS FOR CLIENTS,REDACTED,REDACTED
05.09.2022,ADULT SOCIAL CARE,REDACTED PERSONAL DATA,279.85,APPOINTEESHIPS,OTHER PAYMENTS FOR CLIENTS,REDACTED,REDACTED
05.09.2022,ADULT SOCIAL CARE,BLANDFORD HOUSE UK LTD,"20,607.24",DISABILITIES LAC,EXTERNAL AGENCIES AND BODIES,2103554341,1000088662
05.09.2022,ADULT SOCIAL CARE,BLANDFORD HOUSE UK LTD,"3,510.09",DISABILITIES LAC,RESIDENTIAL CARE,2103554340,1000088662
05.09.2022,ADULT SOCIAL CARE,UNIQUE PERSONNEL (UK) LTD,"1,413.17",DISCHARGE TO ACCESS,HOMECARE - C&V,2103554215,1000075451
05.09.2022,ADULT SOCIAL CARE,SURREY DOCKS FARM PROVIDENT SOCIETY,480,LD LTS 18-64,DAYCARE,2103554344,1000000958
05.09.2022,ADULT SOCIAL CARE,SURREY DOCKS FARM PROVIDENT SOCIETY,500,LD LTS 18-64,DAYCARE,2103554345,1000000958
05.09.2022,ADULT SOCIAL CARE,SWEETTREE HOME CARE SERVICES LTD,"1,351.93",LD LTS 18-64,SUPPORTED LIVING,2103554176,1000058171
05.09.2022,ADULT SOCIAL CARE,SURREY DOCKS FARM PROVIDENT SOCIETY,360,LD LTS 65+,DAYCARE,2103554346,1000000958
05.09.2022,ADULT SOCIAL CARE,KEEVA CARE LIMITED,"6,524.00",LD LTS 65+,SUPPORTED LIVING,2103554179,1000086100
05.09.2022,ADULT SOCIAL CARE,KEEVA CARE LIMITED,"6,524.00",LD LTS 65+,SUPPORTED LIVING,2103554180,1000086100
05.09.2022,ADULT SOCIAL CARE,UNIQUE PERSONNEL (UK) LTD,868.28,MEM LTS 18-64,HOMECARE - C&V,2103554190,1000075451
05.09.2022,ADULT SOCIAL CARE,WESTMINSTER HOMECARE LTD,590.63,MH LTS 65+,HOMECARE - SPOT,2103554131,1000075287
05.09.2022,ADULT SOCIAL CARE,WESTMINSTER HOMECARE LTD,775.2,MH LTS 65+,HOMECARE - SPOT,2103554137,1000075287
05.09.2022,ADULT SOCIAL CARE,UNIQUE PERSONNEL (UK) LTD,903.72,MH LTS 65+,HOMECARE - SPOT,2103554238,1000075451
05.09.2022,ADULT SOCIAL CARE,WESTMINSTER HOMECARE LTD,"3,051.20",PHY LTS 18-64,HOMECARE - C&V,2103554129,1000075287
05.09.2022,ADULT SOCIAL CARE,UNIQUE PERSONNEL (UK) LTD,699.94,PHY LTS 18-64,HOMECARE - C&V,2103554210,1000075451
05.09.2022,ADULT SOCIAL CARE,UNIQUE PERSONNEL (UK) LTD,713.23,PHY LTS 18-64,HOMECARE - C&V,2103554229,1000075451
05.09.2022,ADULT SOCIAL CARE,UNIQUE PERSONNEL (UK) LTD,726.52,PHY LTS 18-64,HOMECARE - C&V,2103554194,1000075451
05.09.2022,ADULT SOCIAL CARE,UNIQUE PERSONNEL (UK) LTD,735.38,PHY LTS 18-64,HOMECARE - C&V,2103554211,1000075451
05.09.2022,ADULT SOCIAL CARE,UNIQUE PERSONNEL (UK) LTD,744.24,PHY LTS 18-64,HOMECARE - C&V,2103554237,1000075451
05.09.2022,ADULT SOCIAL CARE,UNIQUE PERSONNEL (UK) LTD,933.84,PHY LTS 18-64,HOMECARE - C&V,2103554213,1000075451
05.09.2022,ADULT SOCIAL CARE,UNIQUE PERSONNEL (UK) LTD,956.88,PHY LTS 18-64,HOMECARE - C&V,2103554231,1000075451
05.09.2022,ADULT SOCIAL CARE,UNIQUE PERSONNEL (UK) LTD,"1,063.20",PHY LTS 18-64,HOMECARE - C&V,2103554196,1000075451
05.09.2022,ADULT SOCIAL CARE,UNIQUE PERSONNEL (UK) LTD,"1,355.58",PHY LTS 18-64,HOMECARE - C&V,2103554195,1000075451
05.09.2022,ADULT SOCIAL CARE,UNIQUE PERSONNEL (UK) LTD,"1,382.16",PHY LTS 18-64,HOMECARE - C&V,2103554250,1000075451
05.09.2022,ADULT SOCIAL CARE,UNIQUE PERSONNEL (UK) LTD,"3,544.00",PHY LTS 18-64,HOMECARE - C&V,2103554223,1000075451
05.09.2022,ADULT SOCIAL CARE,SAGECARE LTD,461,PHY LTS 18-64,HOMECARE - C&V,2103554349,1000080924
05.09.2022,ADULT SOCIAL CARE,SAGECARE LTD,465.11,PHY LTS 18-64,HOMECARE - C&V,2103554350,1000080924
05.09.2022,ADULT SOCIAL CARE,SAGECARE LTD,472.52,PHY LTS 18-64,HOMECARE - C&V,2103554352,1000080924
05.09.2022,ADULT SOCIAL CARE,SAGECARE LTD,472.52,PHY LTS 18-64,HOMECARE - C&V,2103554356,1000080924
05.09.2022,ADULT SOCIAL CARE,SAGECARE LTD,826.89,PHY LTS 18-64,HOMECARE - C&V,2103554354,1000080924
05.09.2022,ADULT SOCIAL CARE,CARE DIRECT UK LTD,381.44,PHY LTS 18-64,HOMECARE - SPOT,2103554150,1000066322
05.09.2022,ADULT SOCIAL CARE,CARE DIRECT UK LTD,403.88,PHY LTS 18-64,HOMECARE - SPOT,2103554149,1000066322
05.09.2022,ADULT SOCIAL CARE,CARE DIRECT UK LTD,538.5,PHY LTS 18-64,HOMECARE - SPOT,2103554165,1000066322
05.09.2022,ADULT SOCIAL CARE,CARE DIRECT UK LTD,646.2,PHY LTS 18-64,HOMECARE - SPOT,2103554173,1000066322
05.09.2022,ADULT SOCIAL CARE,CARE DIRECT UK LTD,"1,166.75",PHY LTS 18-64,HOMECARE - SPOT,2103554171,1000066322
05.09.2022,ADULT SOCIAL CARE,WESTMINSTER HOMECARE LTD,894.93,PHY LTS 18-64,HOMECARE - SPOT,2103554121,1000075287
05.09.2022,ADULT SOCIAL CARE,WESTMINSTER HOMECARE LTD,"2,337.44",PHY LTS 18-64,HOMECARE - SPOT,2103554122,1000075287
05.09.2022,ADULT SOCIAL CARE,WESTMINSTER HOMECARE LTD,"2,445.73",PHY LTS 18-64,HOMECARE - SPOT,2103554125,1000075287
05.09.2022,ADULT SOCIAL CARE,WESTMINSTER HOMECARE LTD,"2,974.92",PHY LTS 18-64,HOMECARE - SPOT,2103554120,1000075287
05.09.2022,ADULT SOCIAL CARE,WESTMINSTER HOMECARE LTD,"2,974.92",PHY LTS 18-64,HOMECARE - SPOT,2103554135,1000075287
05.09.2022,ADULT SOCIAL CARE,WESTMINSTER HOMECARE LTD,"3,604.24",PHY LTS 18-64,HOMECARE - SPOT,2103554124,1000075287
05.09.2022,ADULT SOCIAL CARE,UNIQUE PERSONNEL (UK) LTD,513.88,PHY LTS 18-64,HOMECARE - SPOT,2103554240,1000075451
05.09.2022,ADULT SOCIAL CARE,UNIQUE PERSONNEL (UK) LTD,"2,799.76",PHY LTS 18-64,HOMECARE - SPOT,2103554228,1000075451
05.09.2022,ADULT SOCIAL CARE,CARE DIRECT UK LTD,601.33,PHY LTS 65+,HOMECARE - C&V,2103554172,1000066322
05.09.2022,ADULT SOCIAL CARE,WESTMINSTER HOMECARE LTD,"1,334.92",PHY LTS 65+,HOMECARE - C&V,2103554127,1000075287
05.09.2022,ADULT SOCIAL CARE,WESTMINSTER HOMECARE LTD,"1,334.92",PHY LTS 65+,HOMECARE - C&V,2103554132,1000075287
05.09.2022,ADULT SOCIAL CARE,UNIQUE PERSONNEL (UK) LTD,250.61,PHY LTS 65+,HOMECARE - C&V,2103554261,1000075451
05.09.2022,ADULT SOCIAL CARE,UNIQUE PERSONNEL (UK) LTD,389.84,PHY LTS 65+,HOMECARE - C&V,2103554208,1000075451
05.09.2022,ADULT SOCIAL CARE,UNIQUE PERSONNEL (UK) LTD,443,PHY LTS 65+,HOMECARE - C&V,2103554239,1000075451
05.09.2022,ADULT SOCIAL CARE,UNIQUE PERSONNEL (UK) LTD,447.43,PHY LTS 65+,HOMECARE - C&V,2103554220,1000075451
05.09.2022,ADULT SOCIAL CARE,UNIQUE PERSONNEL (UK) LTD,513.88,PHY LTS 65+,HOMECARE - C&V,2103554209,1000075451
05.09.2022,ADULT SOCIAL CARE,UNIQUE PERSONNEL (UK) LTD,567.04,PHY LTS 65+,HOMECARE - C&V,2103554191,1000075451
05.09.2022,ADULT SOCIAL CARE,UNIQUE PERSONNEL (UK) LTD,744.24,PHY LTS 65+,HOMECARE - C&V,2103554251,1000075451
05.09.2022,ADULT SOCIAL CARE,UNIQUE PERSONNEL (UK) LTD,761.96,PHY LTS 65+,HOMECARE - C&V,2103554212,1000075451
05.09.2022,ADULT SOCIAL CARE,UNIQUE PERSONNEL (UK) LTD,815.12,PHY LTS 65+,HOMECARE - C&V,2103554269,1000075451
05.09.2022,ADULT SOCIAL CARE,UNIQUE PERSONNEL (UK) LTD,863.85,PHY LTS 65+,HOMECARE - C&V,2103554243,1000075451
05.09.2022,ADULT SOCIAL CARE,UNIQUE PERSONNEL (UK) LTD,868.28,PHY LTS 65+,HOMECARE - C&V,2103554258,1000075451
05.09.2022,ADULT SOCIAL CARE,UNIQUE PERSONNEL (UK) LTD,872.71,PHY LTS 65+,HOMECARE - C&V,2103554232,1000075451
05.09.2022,ADULT SOCIAL CARE,UNIQUE PERSONNEL (UK) LTD,886,PHY LTS 65+,HOMECARE - C&V,2103554242,1000075451
05.09.2022,ADULT SOCIAL CARE,UNIQUE PERSONNEL (UK) LTD,956.88,PHY LTS 65+,HOMECARE - C&V,2103554244,1000075451
05.09.2022,ADULT SOCIAL CARE,UNIQUE PERSONNEL (UK) LTD,978.14,PHY LTS 65+,HOMECARE - C&V,2103554197,1000075451
05.09.2022,ADULT SOCIAL CARE,UNIQUE PERSONNEL (UK) LTD,992.32,PHY LTS 65+,HOMECARE - C&V,2103554200,1000075451
05.09.2022,ADULT SOCIAL CARE,UNIQUE PERSONNEL (UK) LTD,"1,010.04",PHY LTS 65+,HOMECARE - C&V,2103554245,1000075451
05.09.2022,ADULT SOCIAL CARE,UNIQUE PERSONNEL (UK) LTD,"1,014.47",PHY LTS 65+,HOMECARE - C&V,2103554187,1000075451
05.09.2022,ADULT SOCIAL CARE,UNIQUE PERSONNEL (UK) LTD,"1,063.20",PHY LTS 65+,HOMECARE - C&V,2103554224,1000075451
05.09.2022,ADULT SOCIAL CARE,UNIQUE PERSONNEL (UK) LTD,"1,063.20",PHY LTS 65+,HOMECARE - C&V,2103554263,1000075451
05.09.2022,ADULT SOCIAL CARE,UNIQUE PERSONNEL (UK) LTD,"1,063.20",PHY LTS 65+,HOMECARE - C&V,2103554264,1000075451
05.09.2022,ADULT SOCIAL CARE,UNIQUE PERSONNEL (UK) LTD,"1,076.49",PHY LTS 65+,HOMECARE - C&V,2103554216,1000075451
05.09.2022,ADULT SOCIAL CARE,UNIQUE PERSONNEL (UK) LTD,"1,373.30",PHY LTS 65+,HOMECARE - C&V,2103554199,1000075451
05.09.2022,ADULT SOCIAL CARE,UNIQUE PERSONNEL (UK) LTD,"1,479.62",PHY LTS 65+,HOMECARE - C&V,2103554233,1000075451
05.09.2022,ADULT SOCIAL CARE,UNIQUE PERSONNEL (UK) LTD,"1,577.08",PHY LTS 65+,HOMECARE - C&V,2103554265,1000075451
05.09.2022,ADULT SOCIAL CARE,UNIQUE PERSONNEL (UK) LTD,"1,736.56",PHY LTS 65+,HOMECARE - C&V,2103554192,1000075451
05.09.2022,ADULT SOCIAL CARE,UNIQUE PERSONNEL (UK) LTD,"1,856.17",PHY LTS 65+,HOMECARE - C&V,2103554201,1000075451
05.09.2022,ADULT SOCIAL CARE,UNIQUE PERSONNEL (UK) LTD,"1,887.18",PHY LTS 65+,HOMECARE - C&V,2103554207,1000075451
05.09.2022,ADULT SOCIAL CARE,UNIQUE PERSONNEL (UK) LTD,"1,887.18",PHY LTS 65+,HOMECARE - C&V,2103554266,1000075451
05.09.2022,ADULT SOCIAL CARE,UNIQUE PERSONNEL (UK) LTD,"2,232.72",PHY LTS 65+,HOMECARE - C&V,2103554193,1000075451
05.09.2022,ADULT SOCIAL CARE,UNIQUE PERSONNEL (UK) LTD,"2,312.46",PHY LTS 65+,HOMECARE - C&V,2103554254,1000075451
05.09.2022,ADULT SOCIAL CARE,UNIQUE PERSONNEL (UK) LTD,"2,445.36",PHY LTS 65+,HOMECARE - C&V,2103554188,1000075451
05.09.2022,ADULT SOCIAL CARE,UNIQUE PERSONNEL (UK) LTD,"2,480.80",PHY LTS 65+,HOMECARE - C&V,2103554235,1000075451
05.09.2022,ADULT SOCIAL CARE,UNIQUE PERSONNEL (UK) LTD,"2,626.99",PHY LTS 65+,HOMECARE - C&V,2103554241,1000075451
05.09.2022,ADULT SOCIAL CARE,UNIQUE PERSONNEL (UK) LTD,"2,724.45",PHY LTS 65+,HOMECARE - C&V,2103554257,1000075451
05.09.2022,ADULT SOCIAL CARE,UNIQUE PERSONNEL (UK) LTD,"2,790.90",PHY LTS 65+,HOMECARE - C&V,2103554246,1000075451
05.09.2022,ADULT SOCIAL CARE,UNIQUE PERSONNEL (UK) LTD,"4,049.02",PHY LTS 65+,HOMECARE - C&V,2103554259,1000075451
05.09.2022,ADULT SOCIAL CARE,CARE DIRECT UK LTD,251.3,PHY LTS 65+,HOMECARE - SPOT,2103554169,1000066322
05.09.2022,ADULT SOCIAL CARE,CARE DIRECT UK LTD,280,PHY LTS 65+,HOMECARE - SPOT,2103554154,1000066322
05.09.2022,ADULT SOCIAL CARE,CARE DIRECT UK LTD,350,PHY LTS 65+,HOMECARE - SPOT,2103554152,1000066322
05.09.2022,ADULT SOCIAL CARE,CARE DIRECT UK LTD,439.78,PHY LTS 65+,HOMECARE - SPOT,2103554164,1000066322
05.09.2022,ADULT SOCIAL CARE,CARE DIRECT UK LTD,559.13,PHY LTS 65+,HOMECARE - SPOT,2103554151,1000066322
05.09.2022,ADULT SOCIAL CARE,CARE DIRECT UK LTD,621.25,PHY LTS 65+,HOMECARE - SPOT,2103554170,1000066322
05.09.2022,ADULT SOCIAL CARE,CARE DIRECT UK LTD,"1,059.05",PHY LTS 65+,HOMECARE - SPOT,2103554166,1000066322
05.09.2022,ADULT SOCIAL CARE,WESTMINSTER HOMECARE LTD,405.55,PHY LTS 65+,HOMECARE - SPOT,2103554133,1000075287
05.09.2022,ADULT SOCIAL CARE,WESTMINSTER HOMECARE LTD,518.28,PHY LTS 65+,HOMECARE - SPOT,2103554117,1000075287
05.09.2022,ADULT SOCIAL CARE,WESTMINSTER HOMECARE LTD,666.36,PHY LTS 65+,HOMECARE - SPOT,2103554140,1000075287
05.09.2022,ADULT SOCIAL CARE,WESTMINSTER HOMECARE LTD,674.28,PHY LTS 65+,HOMECARE - SPOT,2103554144,1000075287
05.09.2022,ADULT SOCIAL CARE,WESTMINSTER HOMECARE LTD,775.44,PHY LTS 65+,HOMECARE - SPOT,2103554142,1000075287
05.09.2022,ADULT SOCIAL CARE,WESTMINSTER HOMECARE LTD,953.52,PHY LTS 65+,HOMECARE - SPOT,2103554138,1000075287
05.09.2022,ADULT SOCIAL CARE,WESTMINSTER HOMECARE LTD,"1,048.88",PHY LTS 65+,HOMECARE - SPOT,2103554141,1000075287
05.09.2022,ADULT SOCIAL CARE,WESTMINSTER HOMECARE LTD,"1,065.70",PHY LTS 65+,HOMECARE - SPOT,2103554136,1000075287
05.09.2022,ADULT SOCIAL CARE,WESTMINSTER HOMECARE LTD,"1,411.20",PHY LTS 65+,HOMECARE - SPOT,2103554130,1000075287
05.09.2022,ADULT SOCIAL CARE,WESTMINSTER HOMECARE LTD,"1,411.20",PHY LTS 65+,HOMECARE - SPOT,2103554134,1000075287
05.09.2022,ADULT SOCIAL CARE,WESTMINSTER HOMECARE LTD,"1,678.16",PHY LTS 65+,HOMECARE - SPOT,2103554118,1000075287
05.09.2022,ADULT SOCIAL CARE,WESTMINSTER HOMECARE LTD,"1,678.16",PHY LTS 65+,HOMECARE - SPOT,2103554123,1000075287
05.09.2022,ADULT SOCIAL CARE,WESTMINSTER HOMECARE LTD,"1,678.16",PHY LTS 65+,HOMECARE - SPOT,2103554126,1000075287
05.09.2022,ADULT SOCIAL CARE,WESTMINSTER HOMECARE LTD,"1,705.41",PHY LTS 65+,HOMECARE - SPOT,2103554119,1000075287
05.09.2022,ADULT SOCIAL CARE,UNIQUE PERSONNEL (UK) LTD,398.7,PHY LTS 65+,HOMECARE - SPOT,2103554206,1000075451
05.09.2022,ADULT SOCIAL CARE,UNIQUE PERSONNEL (UK) LTD,505.02,PHY LTS 65+,HOMECARE - SPOT,2103554248,1000075451
05.09.2022,ADULT SOCIAL CARE,UNIQUE PERSONNEL (UK) LTD,531.6,PHY LTS 65+,HOMECARE - SPOT,2103554256,1000075451
05.09.2022,ADULT SOCIAL CARE,UNIQUE PERSONNEL (UK) LTD,620.2,PHY LTS 65+,HOMECARE - SPOT,2103554236,1000075451
05.09.2022,ADULT SOCIAL CARE,UNIQUE PERSONNEL (UK) LTD,620.2,PHY LTS 65+,HOMECARE - SPOT,2103554249,1000075451
05.09.2022,ADULT SOCIAL CARE,UNIQUE PERSONNEL (UK) LTD,779.68,PHY LTS 65+,HOMECARE - SPOT,2103554218,1000075451
05.09.2022,ADULT SOCIAL CARE,UNIQUE PERSONNEL (UK) LTD,806.26,PHY LTS 65+,HOMECARE - SPOT,2103554268,1000075451
05.09.2022,ADULT SOCIAL CARE,UNIQUE PERSONNEL (UK) LTD,823.98,PHY LTS 65+,HOMECARE - SPOT,2103554189,1000075451
05.09.2022,ADULT SOCIAL CARE,UNIQUE PERSONNEL (UK) LTD,912.58,PHY LTS 65+,HOMECARE - SPOT,2103554204,1000075451
05.09.2022,ADULT SOCIAL CARE,UNIQUE PERSONNEL (UK) LTD,956.88,PHY LTS 65+,HOMECARE - SPOT,2103554222,1000075451
05.09.2022,ADULT SOCIAL CARE,UNIQUE PERSONNEL (UK) LTD,"1,116.36",PHY LTS 65+,HOMECARE - SPOT,2103554219,1000075451
05.09.2022,ADULT SOCIAL CARE,UNIQUE PERSONNEL (UK) LTD,"1,116.36",PHY LTS 65+,HOMECARE - SPOT,2103554226,1000075451
05.09.2022,ADULT SOCIAL CARE,UNIQUE PERSONNEL (UK) LTD,"1,134.08",PHY LTS 65+,HOMECARE - SPOT,2103554221,1000075451
05.09.2022,ADULT SOCIAL CARE,UNIQUE PERSONNEL (UK) LTD,"1,311.28",PHY LTS 65+,HOMECARE - SPOT,2103554230,1000075451
05.09.2022,ADULT SOCIAL CARE,UNIQUE PERSONNEL (UK) LTD,"1,541.64",PHY LTS 65+,HOMECARE - SPOT,2103554205,1000075451
05.09.2022,ADULT SOCIAL CARE,UNIQUE PERSONNEL (UK) LTD,"1,718.84",PHY LTS 65+,HOMECARE - SPOT,2103554247,1000075451
05.09.2022,ADULT SOCIAL CARE,UNIQUE PERSONNEL (UK) LTD,"1,816.30",PHY LTS 65+,HOMECARE - SPOT,2103554253,1000075451
05.09.2022,ADULT SOCIAL CARE,UNIQUE PERSONNEL (UK) LTD,"1,984.64",PHY LTS 65+,HOMECARE - SPOT,2103554203,1000075451
05.09.2022,ADULT SOCIAL CARE,SNOWBALL CARE UK LTD,912,PHY LTS 65+,HOMECARE - SPOT,2103554177,1000081483
05.09.2022,ADULT SOCIAL CARE,SNOWBALL CARE UK LTD,"1,696.00",PHY LTS 65+,HOMECARE - SPOT,2103554178,1000081483
05.09.2022,ADULT SOCIAL CARE,CARE DIRECT UK LTD,691.08,PHY STS 65+,HOMECARE - IC,2103554147,1000066322
05.09.2022,ADULT SOCIAL CARE,WESTMINSTER HOMECARE LTD,259.16,PHY STS 65+,HOMECARE - IC,2103554139,1000075287
05.09.2022,ADULT SOCIAL CARE,WESTMINSTER HOMECARE LTD,262.24,PHY STS 65+,HOMECARE - IC,2103554143,1000075287
05.09.2022,ADULT SOCIAL CARE,WESTMINSTER HOMECARE LTD,"1,401.65",PHY STS 65+,HOMECARE - IC,2103554128,1000075287
05.09.2022,ADULT SOCIAL CARE,SAGECARE LTD,698.4,PHY STS 65+,HOMECARE - IC,2103554351,1000080924
05.09.2022,ADULT SOCIAL CARE,SAGECARE LTD,793.78,PHY STS 65+,HOMECARE - IC,2103554357,1000080924
05.09.2022,ADULT SOCIAL CARE,SAGECARE LTD,793.8,PHY STS 65+,HOMECARE - IC,2103554353,1000080924
05.09.2022,ADULT SOCIAL CARE,SAGECARE LTD,857.37,PHY STS 65+,HOMECARE - IC,2103554355,1000080924
05.09.2022,ADULT SOCIAL CARE,F A ALBIN AND SONS,"1,321.00",PUBLIC FUNERALS S.46,OTHER CONTRACTORS,5902540823,11313949
05.09.2022,ADULT SOCIAL CARE,DYSLEXIA BOX LIMITED,"3,501.00",SAFEGUARDING & DOLS,COMPUTER CONSUMABLES,5902540752,1000088363
05.09.2022,ADULT SOCIAL CARE,ROMEDICAL LTD,"2,979.23",SAFEGUARDING & DOLS,OTHER CONTRACTORS,5902540790,1000076318
05.09.2022,ADULT SOCIAL CARE,UNIQUE PERSONNEL (UK) LTD,912.58,SEN LTS 65+,HOMECARE - SPOT,2103554255,1000075451
05.09.2022,ADULT SOCIAL CARE,SURREY DOCKS FARM PROVIDENT SOCIETY,500,SOCIAL ISOLATION,DAYCARE,2103554347,1000000958
05.09.2022,ADULT SOCIAL CARE,CONTACT PROFESSIONALS,270.6,SPECIALIST CARE,SECTION 17 PAYMENTS TO AGENCIES/CARERS,2103554316,1000057263
05.09.2022,ADULT SOCIAL CARE,UNIQUE PERSONNEL (UK) LTD,288.48,SPECIALIST CARE,SECTION 17 PAYMENTS TO AGENCIES/CARERS,2103554314,1000075451
05.09.2022,ADULT SOCIAL CARE,UNIQUE PERSONNEL (UK) LTD,288.48,SPECIALIST CARE,SECTION 17 PAYMENTS TO AGENCIES/CARERS,2103554320,1000075451
05.09.2022,ADULT SOCIAL CARE,UNIQUE PERSONNEL (UK) LTD,288.48,SPECIALIST CARE,SECTION 17 PAYMENTS TO AGENCIES/CARERS,2103554321,1000075451
05.09.2022,ADULT SOCIAL CARE,UNIQUE PERSONNEL (UK) LTD,288.48,SPECIALIST CARE,SECTION 17 PAYMENTS TO AGENCIES/CARERS,2103554324,1000075451
05.09.2022,ADULT SOCIAL CARE,UNIQUE PERSONNEL (UK) LTD,288.48,SPECIALIST CARE,SECTION 17 PAYMENTS TO AGENCIES/CARERS,2103554327,1000075451
05.09.2022,ADULT SOCIAL CARE,UNIQUE PERSONNEL (UK) LTD,288.48,SPECIALIST CARE,SECTION 17 PAYMENTS TO AGENCIES/CARERS,2103554331,1000075451
05.09.2022,ADULT SOCIAL CARE,UNIQUE PERSONNEL (UK) LTD,288.48,SPECIALIST CARE,SECTION 17 PAYMENTS TO AGENCIES/CARERS,2103554333,1000075451
05.09.2022,ADULT SOCIAL CARE,UNIQUE PERSONNEL (UK) LTD,288.48,SPECIALIST CARE,SECTION 17 PAYMENTS TO AGENCIES/CARERS,2103554337,1000075451
05.09.2022,ADULT SOCIAL CARE,UNIQUE PERSONNEL (UK) LTD,360.6,SPECIALIST CARE,SECTION 17 PAYMENTS TO AGENCIES/CARERS,2103554317,1000075451
05.09.2022,ADULT SOCIAL CARE,UNIQUE PERSONNEL (UK) LTD,360.6,SPECIALIST CARE,SECTION 17 PAYMENTS TO AGENCIES/CARERS,2103554325,1000075451
05.09.2022,ADULT SOCIAL CARE,UNIQUE PERSONNEL (UK) LTD,432.72,SPECIALIST CARE,SECTION 17 PAYMENTS TO AGENCIES/CARERS,2103554323,1000075451
05.09.2022,ADULT SOCIAL CARE,UNIQUE PERSONNEL (UK) LTD,432.72,SPECIALIST CARE,SECTION 17 PAYMENTS TO AGENCIES/CARERS,2103554326,1000075451
05.09.2022,ADULT SOCIAL CARE,UNIQUE PERSONNEL (UK) LTD,432.72,SPECIALIST CARE,SECTION 17 PAYMENTS TO AGENCIES/CARERS,2103554334,1000075451
05.09.2022,ADULT SOCIAL CARE,UNIQUE PERSONNEL (UK) LTD,594.99,SPECIALIST CARE,SECTION 17 PAYMENTS TO AGENCIES/CARERS,2103554329,1000075451
05.09.2022,ADULT SOCIAL CARE,UNIQUE PERSONNEL (UK) LTD,649.08,SPECIALIST CARE,SECTION 17 PAYMENTS TO AGENCIES/CARERS,2103554335,1000075451
05.09.2022,ADULT SOCIAL CARE,UNIQUE PERSONNEL (UK) LTD,721.2,SPECIALIST CARE,SECTION 17 PAYMENTS TO AGENCIES/CARERS,2103554315,1000075451
05.09.2022,ADULT SOCIAL CARE,UNIQUE PERSONNEL (UK) LTD,865.44,SPECIALIST CARE,SECTION 17 PAYMENTS TO AGENCIES/CARERS,2103554336,1000075451
05.09.2022,ADULT SOCIAL CARE,UNIQUE PERSONNEL (UK) LTD,"2,361.93",SPECIALIST CARE,SECTION 17 PAYMENTS TO AGENCIES/CARERS,2103554330,1000075451
05.09.2022,ADULT SOCIAL CARE,UNIQUE PERSONNEL (UK) LTD,"7,067.76",SPECIALIST CARE,SECTION 17 PAYMENTS TO AGENCIES/CARERS,2103554328,1000075451
05.09.2022,ASSET MANAGEMENT,FRANKHAM CONSULTANCY GROUP LTD,"1,250.00",DISREPAIR,BUILDING R&M,5902540385,1000043952
05.09.2022,ASSET MANAGEMENT,FRANKHAM CONSULTANCY GROUP LTD,"1,250.00",DISREPAIR,BUILDING R&M,5902540707,1000043952
05.09.2022,ASSET MANAGEMENT,FRANKLYN SHAW ASSOCIATES LTD,"2,309.10",DISREPAIR,BUILDING R&M,5902540706,1000068289
05.09.2022,ASSET MANAGEMENT,ASHFORDS LLP,"5,000.00",DISREPAIR,PAYMENTS FOR LEGAL SERVICES,2103554589,1000055865
05.09.2022,ASSET MANAGEMENT,TRAFFORD LAW  LTD,"2,791.67",DISREPAIR,PAYMENTS FOR LEGAL SERVICES,2103554556,1000088419
05.09.2022,ASSET MANAGEMENT,IRVINGS LAW  LIMITED,"4,583.33",DISREPAIR,PAYMENTS FOR LEGAL SERVICES,2103554566,1000088815
05.09.2022,ASSET MANAGEMENT,ANTONY HODARI  SOLICITORS,642.82,DISREPAIR,PAYMENTS FOR LEGAL SERVICES,2103554605,1000031040
05.09.2022,ASSET MANAGEMENT,ANTONY HODARI  SOLICITORS,"1,500.00",DISREPAIR,PAYMENTS FOR LEGAL SERVICES,2103554588,1000031040
05.09.2022,ASSET MANAGEMENT,BROWN TURNER ROSS SOLICITORS,"3,750.00",DISREPAIR,PAYMENTS FOR LEGAL SERVICES,2103554587,1000082981
05.09.2022,ASSET MANAGEMENT,SBW  LAW,"2,933.33",DISREPAIR,PAYMENTS FOR LEGAL SERVICES,2103554557,1000085191
05.09.2022,ASSET MANAGEMENT,BOND TURNER  SOLICITORS,"4,166.67",DISREPAIR,PAYMENTS FOR LEGAL SERVICES,2103554558,1000085362
05.09.2022,ASSET MANAGEMENT,REED & CO SOLICITORS LIMITED,"1,812.50",DISREPAIR,PAYMENTS FOR LEGAL SERVICES,2103554585,1000088238
05.09.2022,ASSET MANAGEMENT,VERITAS  SOLICITORS,"5,416.67",DISREPAIR,PAYMENTS FOR LEGAL SERVICES,2103554584,1000088269
05.09.2022,CENTRAL FUNCTIONS,KENT COUNTY COUNCIL - LASER,856.99,HEATING ACCOUNT,ELECTRICITY,2103554412,1000012926
05.09.2022,CENTRAL FUNCTIONS,KENT COUNTY COUNCIL - LASER,"1,408.77",HEATING ACCOUNT,ELECTRICITY,2103554413,1000012926
05.09.2022,CENTRAL FUNCTIONS,KENT COUNTY COUNCIL - LASER,"1,564.62",HEATING ACCOUNT,ELECTRICITY,2103554411,1000012926
05.09.2022,CENTRAL FUNCTIONS,KENT COUNTY COUNCIL - LASER,"1,020.02",HEATING ACCOUNT,GAS,2103554410,1000012926
05.09.2022,CHIEF EXECUTIVE,NETWORK RAIL INFRASTRUCTURE LTD,"70,000.00",CAPITAL PS (REGEN),CONSTRUCTION FEES  - EXTERNAL,5902540505,1000053596
05.09.2022,CHIEF EXECUTIVE,LANDOLT & BROWN,"15,905.00",CAPITAL PS (REGEN),CONSTRUCTION FEES - ARCHITECT,5902540495,1000069588
05.09.2022,CHIEF EXECUTIVE,CARTER JONAS LLP,"4,162.50",CAPITAL PS (REGEN),LAND & BUILDINGS ACQUISITION FEES,5902540842,1000073124
05.09.2022,CHIEF EXECUTIVE,CARTER JONAS LLP,"7,628.50",CAPITAL PS (REGEN),LAND & BUILDINGS ACQUISITION FEES,5902540840,1000073124
05.09.2022,CHILDREN AND FAMILIES,INTERCOUNTRY ADOPTION CENTRE,"5,695.00",ADOPT LONDON SOUTH,EXTERNAL AGENCIES AND BODIES,5902540607,1000035796
05.09.2022,CHILDREN AND FAMILIES,DIAGRAMA FOUNDATION CHILDREN SERVICES,"2,352.90",ALS INTER AGENCY,EXTERNAL AGENCIES AND BODIES,5902540777,1000078697
05.09.2022,CHILDREN AND FAMILIES,DIAGRAMA FOUNDATION CHILDREN SERVICES,"2,352.90",ALS INTER AGENCY,EXTERNAL AGENCIES AND BODIES,5902540779,1000078697
05.09.2022,CHILDREN AND FAMILIES,CAMERON & COOPER LIMITED,"17,980.00",CHILDREN�S RESID,RESIDENTIAL CARE,2103554339,1000087598
05.09.2022,CHILDREN AND FAMILIES,A WILDERNESS WAY GROUP LIMITED,"29,936.00",CHILDREN�S RESID,RESIDENTIAL CARE,2103554342,1000088440
05.09.2022,CHILDREN AND FAMILIES,CONTACT PROFESSIONALS,-675,CONTACT SERVICE,OTHER PAYMENTS FOR CLIENTS,2103554303,1000057263
05.09.2022,CHILDREN AND FAMILIES,CONTACT PROFESSIONALS,262,CONTACT SERVICE,OTHER PAYMENTS FOR CLIENTS,2103554309,1000057263
05.09.2022,CHILDREN AND FAMILIES,CONTACT PROFESSIONALS,645,CONTACT SERVICE,OTHER PAYMENTS FOR CLIENTS,2103554297,1000057263
05.09.2022,CHILDREN AND FAMILIES,CONTACT PROFESSIONALS,903,CONTACT SERVICE,OTHER PAYMENTS FOR CLIENTS,2103554296,1000057263
05.09.2022,CHILDREN AND FAMILIES,CONTACT PROFESSIONALS,903,CONTACT SERVICE,OTHER PAYMENTS FOR CLIENTS,2103554301,1000057263
05.09.2022,CHILDREN AND FAMILIES,NEGOTIATORS FAMILY CENTRE LIMITED,340,CONTACT SERVICE,OTHER PAYMENTS FOR CLIENTS,5902540713,1000075672
05.09.2022,CHILDREN AND FAMILIES,CHANCE FURTHER SUPPORT CIC,"8,635.98",FAMILY ASSESSMENTS,RESIDENTIAL CARE,2103554313,1000085852
05.09.2022,CHILDREN AND FAMILIES,OKIE ADEBANJO,260,FAMILY GROUP CONF�S,PROFESSIONAL FEES,5902540795,1000082484
05.09.2022,CHILDREN AND FAMILIES,OKIE ADEBANJO,318.5,FAMILY GROUP CONF�S,PROFESSIONAL FEES,5902540794,1000082484
05.09.2022,CHILDREN AND FAMILIES,OKIE ADEBANJO,414.65,FAMILY GROUP CONF�S,PROFESSIONAL FEES,5902540789,1000082484
05.09.2022,CHILDREN AND FAMILIES,OKIE ADEBANJO,554.99,FAMILY GROUP CONF�S,PROFESSIONAL FEES,5902540792,1000082484
05.09.2022,CHILDREN AND FAMILIES,TACT,264.28,FRIENDS & FAMILY FOSTERING,EXTERNAL AGENCIES AND BODIES,2103554281,1000012941
05.09.2022,CHILDREN AND FAMILIES,TACT,522.45,FRIENDS & FAMILY FOSTERING,EXTERNAL AGENCIES AND BODIES,2103554288,1000012941
05.09.2022,CHILDREN AND FAMILIES,KASPER FOSTERING,"3,513.23",FRIENDS & FAMILY FOSTERING,EXTERNAL AGENCIES AND BODIES,2103554278,1000036628
05.09.2022,CHILDREN AND FAMILIES,KASPER FOSTERING,"4,640.39",FRIENDS & FAMILY FOSTERING,EXTERNAL AGENCIES AND BODIES,2103554279,1000036628
05.09.2022,CHILDREN AND FAMILIES,SUNBEAM FOSTERING AGENCY LTD,"3,432.14",FRIENDS & FAMILY FOSTERING,EXTERNAL AGENCIES AND BODIES,2103554284,1000041457
05.09.2022,CHILDREN AND FAMILIES,SUNBEAM FOSTERING AGENCY LTD,"5,646.43",FRIENDS & FAMILY FOSTERING,EXTERNAL AGENCIES AND BODIES,2103554282,1000041457
05.09.2022,CHILDREN AND FAMILIES,FAMILY FOSTERING LTD,"4,601.64",FRIENDS & FAMILY FOSTERING,EXTERNAL AGENCIES AND BODIES,2103554286,1000075179
05.09.2022,CHILDREN AND FAMILIES,DIVERSITY FOSTER CARE LTD,"2,814.29",FRIENDS & FAMILY FOSTERING,EXTERNAL AGENCIES AND BODIES,2103554283,1000081399
05.09.2022,CHILDREN AND FAMILIES,DIVERSITY FOSTER CARE LTD,"2,814.29",FRIENDS & FAMILY FOSTERING,EXTERNAL AGENCIES AND BODIES,2103554289,1000081399
05.09.2022,CHILDREN AND FAMILIES,DIVERSITY FOSTER CARE LTD,"4,108.69",FRIENDS & FAMILY FOSTERING,EXTERNAL AGENCIES AND BODIES,2103554285,1000081399
05.09.2022,CHILDREN AND FAMILIES,FAMILY WORKS FOSTERING LTD,"6,275.29",FRIENDS & FAMILY FOSTERING,EXTERNAL AGENCIES AND BODIES,2103554280,1000082529
05.09.2022,CHILDREN AND FAMILIES,SILVER LINING FOSTERING LTD,"3,432.14",FRIENDS & FAMILY FOSTERING,EXTERNAL AGENCIES AND BODIES,2103554287,1000087318
05.09.2022,CHILDREN AND FAMILIES,BEDDY BUYZ WAREHOUSE,550,MGMT & PARENTING,FURNITURE PURCHASE & REPAIR,5902540805,1000026704
05.09.2022,CHILDREN AND FAMILIES,ALEX VOLOVISKY LTD,400,NEW ASF,EXTERNAL AGENCIES AND BODIES,5902540783,1000088469
05.09.2022,CHILDREN AND FAMILIES,THE SURREY CENTRE LIMITED,345,NEW ASF,EXTERNAL AGENCIES AND BODIES,5902540774,1000088492
05.09.2022,CHILDREN AND FAMILIES,FUTURE FOUNDATIONS LTD,"1,722.71",SEMI-IND CARELEAVERS,EXTERNAL AGENCIES AND BODIES,2103554182,1000063272
05.09.2022,CHILDREN AND FAMILIES,DREAMFO HOUSING LTD,"3,321.43",SEMI-IND LAC 16-17,EXTERNAL AGENCIES AND BODIES,2103554274,1000087273
05.09.2022,CHILDREN AND FAMILIES,DREAMFO HOUSING LTD,"3,587.01",SEMI-IND LAC 16-17,EXTERNAL AGENCIES AND BODIES,2103554273,1000087273
05.09.2022,CHILDREN AND FAMILIES,DREAMFO HOUSING LTD,"5,712.86",SEMI-IND LAC 16-17,EXTERNAL AGENCIES AND BODIES,2103554276,1000087273
05.09.2022,CHILDREN AND FAMILIES,DREAMFO HOUSING LTD,325.49,SEMI-IND LAC 16-17,OTHER PAYMENTS FOR CLIENTS,2103554277,1000087273
05.09.2022,CHILDREN AND FAMILIES,DREAMFO HOUSING LTD,415.58,SEMI-IND LAC 16-17,OTHER PAYMENTS FOR CLIENTS,2103554275,1000087273
05.09.2022,CHILDREN AND FAMILIES,CHARLES PAULIN & CO SOLICITORS,283.6,SFS MGMT & SUPPORT,LEGAL FEES & COURT COSTS,2103554391,1000082668
05.09.2022,CHILDREN AND FAMILIES,PAULA DIAZ,350,SFS MGMT & SUPPORT,LEGAL FEES & COURT COSTS,2103554399,1000063943
05.09.2022,CHILDREN AND FAMILIES,IAN BROWNHILL,"1,665.00",SFS MGMT & SUPPORT,LEGAL FEES & COURT COSTS,2103554393,1000073234
05.09.2022,CHILDREN AND FAMILIES,RICHARD HARRIS,475,SFS MGMT & SUPPORT,LEGAL FEES & COURT COSTS,2103554402,1000075786
05.09.2022,CHILDREN AND FAMILIES,RICHARD HARRIS,800,SFS MGMT & SUPPORT,LEGAL FEES & COURT COSTS,2103554403,1000075786
05.09.2022,CHILDREN AND FAMILIES,THOMAS JONES,575,SFS MGMT & SUPPORT,LEGAL FEES & COURT COSTS,2103554405,1000081619
05.09.2022,CHILDREN AND FAMILIES,REDACTED PERSONAL DATA,632,TEAM A,PAYMENTS TO CARERS,REDACTED,REDACTED
05.09.2022,CHILDREN AND FAMILIES,OWNLIFE LTD,"2,790.00",UASC CARELEAVERS,EXTERNAL AGENCIES AND BODIES,2103554271,1000056219
05.09.2022,CHILDREN AND FAMILIES,CONCEPT CARE AND SUPPORT,"2,000.00",UASC CARELEAVERS,EXTERNAL AGENCIES AND BODIES,2103554270,1000088377
05.09.2022,CHILDREN AND FAMILIES,DREAMFO HOUSING LTD,"3,737.01",UASC CARELEAVERS,OTHER PAYMENTS FOR CLIENTS,2103554272,1000087273
05.09.2022,COMMUNITIES,UNITY MUSIC ARTS TEAM,"4,850.00",NORTH WEST,GRANTS,5902540766,1000084559
05.09.2022,COMMUNITIES,GRIFFIN ASSOCIATES LTD,"3,774.65",SAFEGUARDING BOARDS,CONSULTANTS SERVICES,5902540710,1000076871
05.09.2022,COMMUNITIES,BELL HOUSE DULWICH,"1,685.00",SOUTH,GRANTS,5902540821,1000088794
05.09.2022,COMMUNITIES,REDACTED PERSONAL DATA,350,UKRAINIAN PROGRAMME,GRANTS,REDACTED,REDACTED
05.09.2022,COMMUNITIES,REDACTED PERSONAL DATA,"1,750.00",UKRAINIAN PROGRAMME,GRANTS,REDACTED,REDACTED
05.09.2022,COMMUNITIES,REDACTED PERSONAL DATA,700,UKRAINIAN PROGRAMME,GRANTS,REDACTED,REDACTED
05.09.2022,COMMUNITIES,REDACTED PERSONAL DATA,350,UKRAINIAN PROGRAMME,GRANTS,REDACTED,REDACTED
05.09.2022,COMMUNITIES,REDACTED PERSONAL DATA,"1,400.00",UKRAINIAN PROGRAMME,GRANTS,REDACTED,REDACTED
05.09.2022,COMMUNITIES,REDACTED PERSONAL DATA,350,UKRAINIAN PROGRAMME,GRANTS,REDACTED,REDACTED
05.09.2022,COMMUNITIES,REDACTED PERSONAL DATA,350,UKRAINIAN PROGRAMME,GRANTS,REDACTED,REDACTED
05.09.2022,COMMUNITIES,REDACTED PERSONAL DATA,"1,750.00",UKRAINIAN PROGRAMME,GRANTS,REDACTED,REDACTED
05.09.2022,COMMUNITIES,REDACTED PERSONAL DATA,350,UKRAINIAN PROGRAMME,GRANTS,REDACTED,REDACTED
05.09.2022,COMMUNITIES,REDACTED PERSONAL DATA,350,UKRAINIAN PROGRAMME,GRANTS,REDACTED,REDACTED
05.09.2022,CUSTOMER EXPERIENCE HGF,VALTECH LTD,394.32,BLUE BADGES,MATERIALS,5902540850,1000082245
05.09.2022,CUSTOMER EXPERIENCE HGF,IMPERIAL COLLEGE PROJECTS LTD,304,CORONER'S,PROFESSIONAL FEES,5902540854,1000080106
05.09.2022,CUSTOMER EXPERIENCE HGF,IMPERIAL COLLEGE PROJECTS LTD,344,CORONER'S,PROFESSIONAL FEES,5902540855,1000080106
05.09.2022,CUSTOMER EXPERIENCE HGF,IMPERIAL COLLEGE PROJECTS LTD,388,CORONER'S,PROFESSIONAL FEES,5902540865,1000080106
05.09.2022,CUSTOMER EXPERIENCE HGF,IMPERIAL COLLEGE PROJECTS LTD,408,CORONER'S,PROFESSIONAL FEES,5902540862,1000080106
05.09.2022,CUSTOMER EXPERIENCE HGF,IMPERIAL COLLEGE PROJECTS LTD,460,CORONER'S,PROFESSIONAL FEES,5902540852,1000080106
05.09.2022,CUSTOMER EXPERIENCE HGF,IMPERIAL COLLEGE PROJECTS LTD,468,CORONER'S,PROFESSIONAL FEES,5902540882,1000080106
05.09.2022,CUSTOMER EXPERIENCE HGF,IMPERIAL COLLEGE PROJECTS LTD,472,CORONER'S,PROFESSIONAL FEES,5902540873,1000080106
05.09.2022,CUSTOMER EXPERIENCE HGF,IMPERIAL COLLEGE PROJECTS LTD,484,CORONER'S,PROFESSIONAL FEES,5902540843,1000080106
05.09.2022,CUSTOMER EXPERIENCE HGF,IMPERIAL COLLEGE PROJECTS LTD,484,CORONER'S,PROFESSIONAL FEES,5902540844,1000080106
05.09.2022,CUSTOMER EXPERIENCE HGF,IMPERIAL COLLEGE PROJECTS LTD,504,CORONER'S,PROFESSIONAL FEES,5902540869,1000080106
05.09.2022,CUSTOMER EXPERIENCE HGF,IMPERIAL COLLEGE PROJECTS LTD,528,CORONER'S,PROFESSIONAL FEES,5902540846,1000080106
05.09.2022,CUSTOMER EXPERIENCE HGF,IMPERIAL COLLEGE PROJECTS LTD,528,CORONER'S,PROFESSIONAL FEES,5902540847,1000080106
05.09.2022,CUSTOMER EXPERIENCE HGF,IMPERIAL COLLEGE PROJECTS LTD,568,CORONER'S,PROFESSIONAL FEES,5902540839,1000080106
05.09.2022,CUSTOMER EXPERIENCE HGF,IMPERIAL COLLEGE PROJECTS LTD,576,CORONER'S,PROFESSIONAL FEES,5902540849,1000080106
05.09.2022,CUSTOMER EXPERIENCE HGF,IMPERIAL COLLEGE PROJECTS LTD,600,CORONER'S,PROFESSIONAL FEES,5902540845,1000080106
05.09.2022,CUSTOMER EXPERIENCE HGF,T.M.L.E LIMITED,275,CORONER'S,PROFESSIONAL FEES,5902540824,1000085696
05.09.2022,CUSTOMER EXPERIENCE HGF,NRC PATHOLOGY SERVICES LIMITED,360,CORONER'S,PROFESSIONAL FEES,5902540689,1000085798
05.09.2022,CUSTOMER EXPERIENCE HGF,NRC PATHOLOGY SERVICES LIMITED,600,CORONER'S,PROFESSIONAL FEES,5902540690,1000085798
05.09.2022,DSG,WIZE UP INDEPENDENT SCHOOL,"1,520.00",ALTERNATIVE PROVISION,EXTERNAL AGENCIES AND BODIES,5902540867,1000080560
05.09.2022,DSG,WIZE UP INDEPENDENT SCHOOL,"1,710.00",ALTERNATIVE PROVISION,EXTERNAL AGENCIES AND BODIES,5902540864,1000080560
05.09.2022,DSG,WIZE UP INDEPENDENT SCHOOL,"1,805.00",ALTERNATIVE PROVISION,EXTERNAL AGENCIES AND BODIES,5902540866,1000080560
05.09.2022,DSG,CROSS EDUCATION SUPPORT SERVS LTD,"1,300.00",SCHOOLS FORUM,CONSULTANTS SERVICES,5902540828,1000046629
05.09.2022,DSG,SHIRLEY MOYSE,350,SEN INCLUSION TEAM,CONSULTANTS SERVICES,5902540812,1000083073
05.09.2022,DSG,PROSPERO RECRUITMENT LTD,"1,795.50",VIRTUAL SCHOOL PP,EXTERNAL AGENCIES AND BODIES,5902540834,1000082492
05.09.2022,DSG,PROSPERO RECRUITMENT LTD,"9,969.75",VIRTUAL SCHOOL PP,EXTERNAL AGENCIES AND BODIES,5902540833,1000082492
05.09.2022,EDUCATION,CITY & GUILDS,341.65,ALC  DIRECT DELIVERY,MATERIALS,5902540782,1000011217
05.09.2022,EDUCATION,CITY & GUILDS,527.6,ALC  DIRECT DELIVERY,MATERIALS,5902540784,1000011217
05.09.2022,EDUCATION,SIMBA MATERIALS LTD,830.93,ALC  DIRECT DELIVERY,MATERIALS,5902540878,1000071147
05.09.2022,EDUCATION,CHARLES BISHOP,"1,500.00",CENTRAL COSTS - SEN,LEGAL FEES & COURT COSTS,2103554390,1000088212
05.09.2022,EDUCATION,JONATHAN AUBURN,975,SCH TRANS � TRAVEL,LEGAL FEES & COURT COSTS,2103554394,1000040341
05.09.2022,ENVIRONMENT AND LEISURE,LOVE NORTH SOUTHWARK,"1,268.00",CAPITAL PS (LEISURE),CAPITAL GRANTS,5902540856,1000088595
05.09.2022,ENVIRONMENT AND LEISURE,WATERMAN INFRASTRUCTURE & ENVIRONMENT LTD,"2,528.48",CAPITAL PS (LEISURE),CONSTR'N SUB CONTRACT - NON CERTIFICATED,5902540858,1000060529
05.09.2022,ENVIRONMENT DIRECTORATE,SHELL UK OIL PRODUCTS LTD,345.96,COMMERCIAL VEH CTRL A/C,VEHICLE FUEL,5902540698,1000081254
05.09.2022,ENVIRONMENT DIRECTORATE,SHELL UK OIL PRODUCTS LTD,"1,173.68",COMMERCIAL VEH CTRL A/C,VEHICLE FUEL,5902540701,1000081254
05.09.2022,ENVIRONMENT DIRECTORATE,GREENHAM TRADING LTD,265.48,ESTATE CLEANING-GENERAL,MATERIALS,5902540763,1000006610
05.09.2022,ENVIRONMENT DIRECTORATE,GREENHAM TRADING LTD,"1,581.48",ESTATE CLEANING-GENERAL,MATERIALS,5902540771,1000006610
05.09.2022,ENVIRONMENT DIRECTORATE,WATERMAN INFRASTRUCTURE & ENVIRONMENT LTD,"7,593.50",FLOOD RISK MANAGEMENT,HIGHWAYS TERM CONTRACT,5902540835,1000060529
05.09.2022,ENVIRONMENT DIRECTORATE,BAKER ENGINEERING,352.93,STREET CLEANING-GENERAL,EQUIPMENT PURCHASE & REPAIR,5902540757,1000038205
05.09.2022,ENVIRONMENT DIRECTORATE,NPOWER LTD,461.2,STREET TRADING A/C,ELECTRICITY,5902540723,1000078994
05.09.2022,ENVIRONMENT DIRECTORATE,NPOWER LTD,620.95,STREET TRADING A/C,ELECTRICITY,5902540728,1000078994
05.09.2022,ENVIRONMENT DIRECTORATE,NPOWER LTD,904.41,STREET TRADING A/C,ELECTRICITY,5902540764,1000078994
05.09.2022,ENVIRONMENT DIRECTORATE,NPOWER LTD,"1,018.57",STREET TRADING A/C,ELECTRICITY,5902540751,1000078994
05.09.2022,ENVIRONMENT DIRECTORATE,WATERMAN INFRASTRUCTURE & ENVIRONMENT LTD,"2,125.35",STRUCTURES RECOVERABLE WORKS,HIGHWAYS TERM CONTRACT,5902540848,1000060529
05.09.2022,F & C S EXCLUDING CORPORATE BUDGETS,BETTER BANKSIDE,"175,281.96",BETTER BANKSIDE,EXTERNAL AGENCIES AND BODIES,5902540841,1000036227
05.09.2022,F & C S EXCLUDING CORPORATE BUDGETS,BDO LLP,"2,426.67",RISK ADMIN,PROFESSIONAL FEES,5902540131,1000057898
05.09.2022,HOUSING,OCO LIMITED,"152,061.75",PAYMENTS CONTROL ACCOUNT - OCO,I-WORLD CONTRACTORS HOLDING ACCOUNT,5902540730,1006066
05.09.2022,HOUSING,PROPERTY FACILITIES GROUP PLC,"119,263.82",PROPERTY FACILITIES GROUP,I-WORLD CONTRACTORS HOLDING ACCOUNT,2103554365,3000001420
05.09.2022,HOUSING,SMITH & BYFORD LTD,"130,701.25",SMITH AND BYFORD,I-WORLD CONTRACTORS HOLDING ACCOUNT,5902540731,11212119
05.09.2022,HOUSING GENERAL FUND,C & C BUILDERS LTD,"8,563.61",CAPITAL PS (HOUSING GF),CAPITAL GRANTS,5902540872,1000079100
05.09.2022,HOUSING GENERAL FUND,MITIE FM LTD,"8,585.02",CAPITAL PS (REGEN),CONSTRUCTION MAIN CONTRACT,2103554362,3000000166
05.09.2022,HOUSING GENERAL FUND,MITIE FM LTD,"21,739.62",CAPITAL PS (REGEN),CONSTRUCTION MAIN CONTRACT,2103554362,3000000166
05.09.2022,HOUSING GENERAL FUND,ASBESTOS SOLUTIONS LIMITED,"11,470.00",CAPITAL PS (REGEN),CONSTRUCTION MAIN CONTRACT,2103554035,3000002114
05.09.2022,HOUSING HRA,PRB ESTATES LTD,"59,542.98",CAPITAL PS (HRA),CONSTRUCTION,2103554047,3000001691
05.09.2022,HOUSING HRA,POTTER RAPER LTD,"1,157.34",CAPITAL PS (HRA),CONSTRUCTION FEES  - EXTERNAL,5902540767,1009369
05.09.2022,HOUSING HRA,POTTER RAPER LTD,"3,616.44",CAPITAL PS (HRA),CONSTRUCTION FEES  - EXTERNAL,5902540798,1009369
05.09.2022,HOUSING HRA,POTTER RAPER LTD,"3,870.34",CAPITAL PS (HRA),CONSTRUCTION FEES  - EXTERNAL,5902540807,1009369
05.09.2022,HOUSING HRA,POTTER RAPER LTD,"5,084.39",CAPITAL PS (HRA),CONSTRUCTION FEES  - EXTERNAL,5902540788,1009369
05.09.2022,HOUSING HRA,BONDS BUILDERS AND CONTRACTORS LTD,"67,059.60",CAPITAL PS (HRA),CONSTRUCTION FEES  - EXTERNAL,2103554369,3000002137
05.09.2022,HOUSING HRA,POTTER RAPER LTD,"8,037.89",CAPITAL PS (HRA),CONSTRUCTION FEES - EMPLOYERS AGENT,5902540811,1009369
05.09.2022,HOUSING HRA,BUILDING ASSOCIATES LTD,"115,080.49",CAPITAL PS (HRA),CONSTRUCTION MAIN CONTRACT,2103554368,3000002218
05.09.2022,HOUSING HRA,STANDAGE & CO LTD,"79,885.85",CAPITAL PS (HRA),CONSTRUCTION MAIN CONTRACT -CERTIFICATED,2103554366,4002817
05.09.2022,HOUSING HRA,A & E ELKINS LTD,"186,889.96",CAPITAL PS (HRA),CONSTRUCTION MAIN CONTRACT -CERTIFICATED,2103554367,4012501
05.09.2022,HOUSING HRA,NEILCOTT SPECIAL WORKS LTD,"178,127.01",CAPITAL PS (HRA),CONSTRUCTION MAIN CONTRACT -CERTIFICATED,2103554358,3000000770
05.09.2022,HOUSING HRA,GUILDMORE LTD,"177,613.58",CAPITAL PS (HRA),CONSTRUCTION MAIN CONTRACT -CERTIFICATED,2103554363,3000002150
05.09.2022,LEISURE DIRECTORATE,PHS GROUP PLC,"2,592.60",SDM BUDGET,PREMISES CLEANING,5902540563,1851993
05.09.2022,LEISURE DIRECTORATE,RH WROUGHT IRON,950,SOUTHWARK AREA TEAM,OTHER R&M,2103554036,3000000680
05.09.2022,PLANNING AND TRANSPORT,SOUTHWARK NEWSPAPER LTD,336,DEV MGT ADMIN & INCOME,MARKETING & PUBLICITY SERVICES,5902540868,1556957
05.09.2022,REGENERATION,PRICEWATERHOUSECOOPERS LLP,"7,250.00",BLACKFRIARS ROAD PROJECT,PROFESSIONAL FEES,5902540851,1000022906
05.09.2022,REGENERATION,MEANWHILE EVENTS LTD,958.33,REGENERATION NORTH M & A,CATERING MATERIALS & SUPPLIES,5902540836,1000088810
05.09.2022,RESIDENT SERVICES,BRITISH GAS TRADING LTD,255.28,OPERATIONS/OFFICES ACCOMMODATION,ELECTRICITY,5902540796,1000055977
05.09.2022,RESIDENT SERVICES,KENT COUNTY COUNCIL - LASER,265.2,TA HOSTELS,ELECTRICITY,5902540776,1000012926
05.09.2022,RESIDENT SERVICES,KENT COUNTY COUNCIL - LASER,396.31,TA HOSTELS,ELECTRICITY,5902540773,1000012926
05.09.2022,RESIDENT SERVICES,KENT COUNTY COUNCIL - LASER,402.11,TA HOSTELS,ELECTRICITY,5902540778,1000012926
05.09.2022,RESIDENT SERVICES,KENT COUNTY COUNCIL - LASER,445.62,TA HOSTELS,ELECTRICITY,5902540770,1000012926
05.09.2022,RESIDENT SERVICES,KENT COUNTY COUNCIL - LASER,667.33,TA HOSTELS,ELECTRICITY,5902540768,1000012926
05.09.2022,RESIDENT SERVICES,VERITAS  SOLICITORS,"6,750.00",TA HOSTELS,PAYMENTS FOR LEGAL SERVICES,2103554032,1000088269
05.09.2022,RESIDENT SERVICES HGF,LIFE SKILLZ CIC,"3,539.61",AFEO,EXTERNAL AGENCIES AND BODIES,5902540697,1000088098
05.09.2022,RESIDENT SERVICES HGF,LIFE SKILLZ CIC,"3,539.61",AFEO,EXTERNAL AGENCIES AND BODIES,5902540703,1000088098
05.09.2022,RESIDENT SERVICES HGF,LIFE SKILLZ CIC,"3,539.61",AFEO,EXTERNAL AGENCIES AND BODIES,5902540705,1000088098
05.09.2022,RESIDENT SERVICES HGF,STAR PEOPLE LTD,"71,175.93",NIGHTLY TA (NSC),EXTERNAL AGENCIES AND BODIES,5902540704,1000088790
05.09.2022,RESIDENT SERVICES HGF,CHRIS ANTHONY ESTATES,"3,201.12",RAPID REHOUSING,EXTERNAL AGENCIES AND BODIES,5902540700,1000086346
06.09.2022,ADULT SOCIAL CARE,BRISEN COMPANY LTD,"1,356.60",LD LTS 18-64,SUPPORTED LIVING,2103554474,1000083000
06.09.2022,ADULT SOCIAL CARE,LONDON CARE LTD,"1,398.60",MEM LTS 65+,HOMECARE - C&V,2103554543,1000003398
06.09.2022,ADULT SOCIAL CARE,CAREPOINT SERVICES LTD,504,MH LTS 18-64,HOMECARE - C&V,2103554482,1000087914
06.09.2022,ADULT SOCIAL CARE,CAREPOINT SERVICES LTD,576,MH LTS 18-64,HOMECARE - C&V,2103554478,1000087914
06.09.2022,ADULT SOCIAL CARE,LONDON CARE LTD,289.17,PHY LTS 18-64,HOMECARE - C&V,2103554524,1000003398
06.09.2022,ADULT SOCIAL CARE,LONDON CARE LTD,323.43,PHY LTS 18-64,HOMECARE - C&V,2103554530,1000003398
06.09.2022,ADULT SOCIAL CARE,LONDON CARE LTD,661.52,PHY LTS 18-64,HOMECARE - C&V,2103554547,1000003398
06.09.2022,ADULT SOCIAL CARE,CAREPOINT SERVICES LTD,540,PHY LTS 18-64,HOMECARE - C&V,2103554477,1000087914
06.09.2022,ADULT SOCIAL CARE,CAREPOINT SERVICES LTD,684,PHY LTS 18-64,HOMECARE - C&V,2103554490,1000087914
06.09.2022,ADULT SOCIAL CARE,CAREPOINT SERVICES LTD,738,PHY LTS 18-64,HOMECARE - C&V,2103554476,1000087914
06.09.2022,ADULT SOCIAL CARE,CAREPOINT SERVICES LTD,"1,530.00",PHY LTS 18-64,HOMECARE - C&V,2103554485,1000087914
06.09.2022,ADULT SOCIAL CARE,CAREPOINT SERVICES LTD,"2,844.00",PHY LTS 18-64,HOMECARE - C&V,2103554483,1000087914
06.09.2022,ADULT SOCIAL CARE,LONDON CARE LTD,251.24,PHY LTS 65+,HOMECARE - C&V,2103554536,1000003398
06.09.2022,ADULT SOCIAL CARE,LONDON CARE LTD,306.27,PHY LTS 65+,HOMECARE - C&V,2103554539,1000003398
06.09.2022,ADULT SOCIAL CARE,LONDON CARE LTD,330.75,PHY LTS 65+,HOMECARE - C&V,2103554523,1000003398
06.09.2022,ADULT SOCIAL CARE,LONDON CARE LTD,352.49,PHY LTS 65+,HOMECARE - C&V,2103554540,1000003398
06.09.2022,ADULT SOCIAL CARE,LONDON CARE LTD,378,PHY LTS 65+,HOMECARE - C&V,2103554548,1000003398
06.09.2022,ADULT SOCIAL CARE,LONDON CARE LTD,396.96,PHY LTS 65+,HOMECARE - C&V,2103554532,1000003398
06.09.2022,ADULT SOCIAL CARE,LONDON CARE LTD,427.98,PHY LTS 65+,HOMECARE - C&V,2103554533,1000003398
06.09.2022,ADULT SOCIAL CARE,LONDON CARE LTD,505.59,PHY LTS 65+,HOMECARE - C&V,2103554526,1000003398
06.09.2022,ADULT SOCIAL CARE,LONDON CARE LTD,543.49,PHY LTS 65+,HOMECARE - C&V,2103554535,1000003398
06.09.2022,ADULT SOCIAL CARE,LONDON CARE LTD,567,PHY LTS 65+,HOMECARE - C&V,2103554545,1000003398
06.09.2022,ADULT SOCIAL CARE,LONDON CARE LTD,926.1,PHY LTS 65+,HOMECARE - C&V,2103554546,1000003398
06.09.2022,ADULT SOCIAL CARE,LONDON CARE LTD,"1,186.11",PHY LTS 65+,HOMECARE - C&V,2103554555,1000003398
06.09.2022,ADULT SOCIAL CARE,CAREPOINT SERVICES LTD,261,PHY LTS 65+,HOMECARE - C&V,2103554479,1000087914
06.09.2022,ADULT SOCIAL CARE,CAREPOINT SERVICES LTD,504,PHY LTS 65+,HOMECARE - C&V,2103554489,1000087914
06.09.2022,ADULT SOCIAL CARE,LONDON CARE LTD,598.94,PHY STS 65+,HOMECARE - IC,2103554549,1000003398
06.09.2022,ADULT SOCIAL CARE,CITY MEDICAL UK LTD,"2,102.75",SAFEGUARDING & DOLS,EXTERNAL AGENCIES AND BODIES,5902540947,1000082396
06.09.2022,ADULT SOCIAL CARE,CITY MEDICAL UK LTD,"2,103.25",SAFEGUARDING & DOLS,EXTERNAL AGENCIES AND BODIES,5902540946,1000082396
06.09.2022,ADULT SOCIAL CARE,CITY MEDICAL UK LTD,"2,402.40",SAFEGUARDING & DOLS,EXTERNAL AGENCIES AND BODIES,5902540943,1000082396
06.09.2022,ADULT SOCIAL CARE,BRITISH DYSLEXIA ASSOCIATION,450,SOUTHWARK RESOURCE CENTRE,OTHER EMPLOYEE EXPENSES,5902540945,1000063328
06.09.2022,ASSET MANAGEMENT,IRVINGS LAW  LIMITED,"1,458.33",DISREPAIR,PAYMENTS FOR LEGAL SERVICES,2103554567,1000088815
06.09.2022,CENTRAL FUNCTIONS,BRESLIN CONSTRUCTION LTD,"2,350.00",COMMERCIAL PROPERTIES,BUILDING R&M,2103554573,3000001948
06.09.2022,CENTRAL FUNCTIONS,BRESLIN CONSTRUCTION LTD,"11,964.44",COMMERCIAL PROPERTIES,BUILDING R&M,2103554574,3000001948
06.09.2022,CHIEF EXECUTIVE'S OFFICE,NEW LOCAL LTD,"13,600.00",CHIEF EXECUTIVE'S OFFICE,SUBSCRIPTIONS,5902541092,1000004785
06.09.2022,CHIEF EXECUTIVE'S OFFICE,TRAMPOLINE NH C.I.C,"30,000.00",SOUTHWARK PIONEER FUND,EXTERNAL AGENCIES AND BODIES,5902541080,1000087336
06.09.2022,CHILDREN AND FAMILIES,REBECCA TANNER,750,ADOPT LONDON SOUTH,PROFESSIONAL FEES,5902541025,1000088605
06.09.2022,CHILDREN AND FAMILIES,SOUTH LONDON & MAUDSLEY HOSPITAL,"3,168.00",ADOPTION SUPP FUND,EXTERNAL AGENCIES AND BODIES,5902541020,1000013096
06.09.2022,CHILDREN AND FAMILIES,ACE ASSOCIATES,"11,000.00",C&F GENERAL TRAINING,TRAINING,5902541030,1000088792
06.09.2022,CHILDREN AND FAMILIES,ACE ASSOCIATES,"11,000.00",C&F GENERAL TRAINING,TRAINING,5902541032,1000088792
06.09.2022,CHILDREN AND FAMILIES,PROACTIV CONTACT CENTRE,400,CONTACT SERVICE,OTHER PAYMENTS FOR CLIENTS,5902541008,1000061169
06.09.2022,CHILDREN AND FAMILIES,PROACTIV CONTACT CENTRE,415,CONTACT SERVICE,OTHER PAYMENTS FOR CLIENTS,5902541010,1000061169
06.09.2022,CHILDREN AND FAMILIES,NEGOTIATORS FAMILY CENTRE LIMITED,300,CONTACT SERVICE,OTHER PAYMENTS FOR CLIENTS,5902540980,1000075672
06.09.2022,CHILDREN AND FAMILIES,NEGOTIATORS FAMILY CENTRE LIMITED,300,CONTACT SERVICE,OTHER PAYMENTS FOR CLIENTS,5902540989,1000075672
06.09.2022,CHILDREN AND FAMILIES,NEGOTIATORS FAMILY CENTRE LIMITED,320,CONTACT SERVICE,OTHER PAYMENTS FOR CLIENTS,5902540978,1000075672
06.09.2022,CHILDREN AND FAMILIES,NEGOTIATORS FAMILY CENTRE LIMITED,740,CONTACT SERVICE,OTHER PAYMENTS FOR CLIENTS,5902540979,1000075672
06.09.2022,CHILDREN AND FAMILIES,GREATER LONDON FOSTERING,"3,534.00",FRIENDS & FAMILY FOSTERING,EXTERNAL AGENCIES AND BODIES,2103554494,1000029184
06.09.2022,CHILDREN AND FAMILIES,GREATER LONDON FOSTERING,"3,760.30",FRIENDS & FAMILY FOSTERING,EXTERNAL AGENCIES AND BODIES,2103554493,1000029184
06.09.2022,CHILDREN AND FAMILIES,GREATER LONDON FOSTERING,"3,760.30",FRIENDS & FAMILY FOSTERING,EXTERNAL AGENCIES AND BODIES,2103554497,1000029184
06.09.2022,CHILDREN AND FAMILIES,GREATER LONDON FOSTERING,"3,760.30",FRIENDS & FAMILY FOSTERING,EXTERNAL AGENCIES AND BODIES,2103554498,1000029184
06.09.2022,CHILDREN AND FAMILIES,GREATER LONDON FOSTERING,"4,645.35",FRIENDS & FAMILY FOSTERING,EXTERNAL AGENCIES AND BODIES,2103554491,1000029184
06.09.2022,CHILDREN AND FAMILIES,GREATER LONDON FOSTERING,"5,108.80",FRIENDS & FAMILY FOSTERING,EXTERNAL AGENCIES AND BODIES,2103554492,1000029184
06.09.2022,CHILDREN AND FAMILIES,SELECT FOSTERCARE SERVICES LTD,630,FRIENDS & FAMILY FOSTERING,EXTERNAL AGENCIES AND BODIES,2103554504,1000079277
06.09.2022,CHILDREN AND FAMILIES,REGIONAL FOSTERING SERVICES LTD,"3,512.96",FRIENDS & FAMILY FOSTERING,EXTERNAL AGENCIES AND BODIES,2103554496,1000080112
06.09.2022,CHILDREN AND FAMILIES,REGIONAL FOSTERING SERVICES LTD,"3,512.96",FRIENDS & FAMILY FOSTERING,EXTERNAL AGENCIES AND BODIES,2103554499,1000080112
06.09.2022,CHILDREN AND FAMILIES,REGIONAL FOSTERING SERVICES LTD,"3,697.86",FRIENDS & FAMILY FOSTERING,EXTERNAL AGENCIES AND BODIES,2103554500,1000080112
06.09.2022,CHILDREN AND FAMILIES,REGIONAL FOSTERING SERVICES LTD,"3,697.86",FRIENDS & FAMILY FOSTERING,EXTERNAL AGENCIES AND BODIES,2103554502,1000080112
06.09.2022,CHILDREN AND FAMILIES,REGIONAL FOSTERING SERVICES LTD,"4,186.11",FRIENDS & FAMILY FOSTERING,EXTERNAL AGENCIES AND BODIES,2103554495,1000080112
06.09.2022,CHILDREN AND FAMILIES,REGIONAL FOSTERING SERVICES LTD,"4,186.11",FRIENDS & FAMILY FOSTERING,EXTERNAL AGENCIES AND BODIES,2103554501,1000080112
06.09.2022,CHILDREN AND FAMILIES,FAMILY FIRST FOSTERING LTD,"3,820.75",FRIENDS & FAMILY FOSTERING,EXTERNAL AGENCIES AND BODIES,2103554503,1000080631
06.09.2022,CHILDREN AND FAMILIES,REDACTED PERSONAL DATA,"2,000.00",LEAVING CARE GRANT,OTHER PAYMENTS FOR CLIENTS,REDACTED,REDACTED
06.09.2022,CHILDREN AND FAMILIES,RAGDOLL TRAINING AND THERAPEUTIC SERVICES LIMITED,615,NEW ASF,EXTERNAL AGENCIES AND BODIES,5902541039,1000085096
06.09.2022,CHILDREN AND FAMILIES,PLAY THERAPY SERVICES LTD,"1,050.00",NEW ASF,EXTERNAL AGENCIES AND BODIES,5902541028,1000085546
06.09.2022,CHILDREN AND FAMILIES,REDACTED PERSONAL DATA,700,NEW ASF,EXTERNAL AGENCIES AND BODIES,REDACTED,REDACTED
06.09.2022,CHILDREN AND FAMILIES,REDACTED PERSONAL DATA,700,NEW ASF,EXTERNAL AGENCIES AND BODIES,REDACTED,REDACTED
06.09.2022,CHILDREN AND FAMILIES,CHERYL PRISCOTT,927,P & R CARE TEAM,EXTERNAL AGENCIES AND BODIES,5902541040,1000088503
06.09.2022,CHILDREN AND FAMILIES,PURPLE PEBBLES(CHILD CARE) SERVICES,"-1,100.00",SEMI-IND CARELEAVERS,COSTS RECOVERED,2103534922,1000070705
06.09.2022,CHILDREN AND FAMILIES,PURPLE PEBBLES(CHILD CARE) SERVICES,-894.99,SEMI-IND CARELEAVERS,COSTS RECOVERED,2103534911,1000070705
06.09.2022,CHILDREN AND FAMILIES,PURPLE PEBBLES(CHILD CARE) SERVICES,-894.99,SEMI-IND CARELEAVERS,COSTS RECOVERED,2103554378,1000070705
06.09.2022,CHILDREN AND FAMILIES,PURPLE PEBBLES(CHILD CARE) SERVICES,-450,SEMI-IND CARELEAVERS,COSTS RECOVERED,2103554381,1000070705
06.09.2022,CHILDREN AND FAMILIES,ELLIOT LEIGH TLC LTD,"-13,241.63",SEMI-IND CARELEAVERS,COSTS RECOVERED,2103554571,1000079022
06.09.2022,CHILDREN AND FAMILIES,ELLIOT LEIGH TLC LTD,-810,SEMI-IND CARELEAVERS,COSTS RECOVERED,2103554572,1000079022
06.09.2022,CHILDREN AND FAMILIES,ELLIOT LEIGH TLC LTD,-716.12,SEMI-IND CARELEAVERS,COSTS RECOVERED,2103554570,1000079022
06.09.2022,CHILDREN AND FAMILIES,PURPLE PEBBLES(CHILD CARE) SERVICES,553.57,SEMI-IND CARELEAVERS,EXTERNAL AGENCIES AND BODIES,2103554456,1000070705
06.09.2022,CHILDREN AND FAMILIES,PURPLE PEBBLES(CHILD CARE) SERVICES,"1,628.57",SEMI-IND CARELEAVERS,EXTERNAL AGENCIES AND BODIES,2103554463,1000070705
06.09.2022,CHILDREN AND FAMILIES,PURPLE PEBBLES(CHILD CARE) SERVICES,"1,992.86",SEMI-IND CARELEAVERS,EXTERNAL AGENCIES AND BODIES,2103554434,1000070705
06.09.2022,CHILDREN AND FAMILIES,PURPLE PEBBLES(CHILD CARE) SERVICES,"2,480.00",SEMI-IND CARELEAVERS,EXTERNAL AGENCIES AND BODIES,2103554457,1000070705
06.09.2022,CHILDREN AND FAMILIES,PURPLE PEBBLES(CHILD CARE) SERVICES,"3,764.29",SEMI-IND CARELEAVERS,EXTERNAL AGENCIES AND BODIES,2103554468,1000070705
06.09.2022,CHILDREN AND FAMILIES,PURPLE PEBBLES(CHILD CARE) SERVICES,"7,085.71",SEMI-IND CARELEAVERS,EXTERNAL AGENCIES AND BODIES,2103554467,1000070705
06.09.2022,CHILDREN AND FAMILIES,NETPEX LTD CORPORATE SERVICES,"1,964.27",SEMI-IND CARELEAVERS,EXTERNAL AGENCIES AND BODIES,2103554514,1000076073
06.09.2022,CHILDREN AND FAMILIES,NETPEX LTD CORPORATE SERVICES,"2,485.71",SEMI-IND CARELEAVERS,EXTERNAL AGENCIES AND BODIES,2103554515,1000076073
06.09.2022,CHILDREN AND FAMILIES,NETPEX LTD CORPORATE SERVICES,"2,546.40",SEMI-IND CARELEAVERS,EXTERNAL AGENCIES AND BODIES,2103554513,1000076073
06.09.2022,CHILDREN AND FAMILIES,NETPEX LTD CORPORATE SERVICES,"2,767.99",SEMI-IND CARELEAVERS,EXTERNAL AGENCIES AND BODIES,2103554508,1000076073
06.09.2022,CHILDREN AND FAMILIES,NETPEX LTD CORPORATE SERVICES,"2,794.40",SEMI-IND CARELEAVERS,EXTERNAL AGENCIES AND BODIES,2103554507,1000076073
06.09.2022,CHILDREN AND FAMILIES,ELLIOT LEIGH TLC LTD,"2,015.00",SEMI-IND CARELEAVERS,EXTERNAL AGENCIES AND BODIES,2103554520,1000079022
06.09.2022,CHILDREN AND FAMILIES,ELLIOT LEIGH TLC LTD,"2,901.91",SEMI-IND CARELEAVERS,EXTERNAL AGENCIES AND BODIES,2103554521,1000079022
06.09.2022,CHILDREN AND FAMILIES,ELLIOT LEIGH TLC LTD,"3,367.53",SEMI-IND CARELEAVERS,EXTERNAL AGENCIES AND BODIES,2103554519,1000079022
06.09.2022,CHILDREN AND FAMILIES,SYDNEY CARE LTD,"5,314.28",SEMI-IND CARELEAVERS,EXTERNAL AGENCIES AND BODIES,2103554516,1000081598
06.09.2022,CHILDREN AND FAMILIES,PURPLE PEBBLES(CHILD CARE) SERVICES,300,SEMI-IND CARELEAVERS,OTHER PAYMENTS FOR CLIENTS,2103546241,1000070705
06.09.2022,CHILDREN AND FAMILIES,PURPLE PEBBLES(CHILD CARE) SERVICES,300,SEMI-IND CARELEAVERS,OTHER PAYMENTS FOR CLIENTS,2103546243,1000070705
06.09.2022,CHILDREN AND FAMILIES,NETPEX LTD CORPORATE SERVICES,300,SEMI-IND CARELEAVERS,OTHER PAYMENTS FOR CLIENTS,2103554510,1000076073
06.09.2022,CHILDREN AND FAMILIES,PURPLE PEBBLES(CHILD CARE) SERVICES,"3,985.71",SEMI-IND LAC 16-17,EXTERNAL AGENCIES AND BODIES,2103554427,1000070705
06.09.2022,CHILDREN AND FAMILIES,PURPLE PEBBLES(CHILD CARE) SERVICES,"3,985.71",SEMI-IND LAC 16-17,EXTERNAL AGENCIES AND BODIES,2103554431,1000070705
06.09.2022,CHILDREN AND FAMILIES,PURPLE PEBBLES(CHILD CARE) SERVICES,"4,428.57",SEMI-IND LAC 16-17,EXTERNAL AGENCIES AND BODIES,2103554430,1000070705
06.09.2022,CHILDREN AND FAMILIES,SYDNEY CARE LTD,"7,612.71",SEMI-IND LAC 16-17,EXTERNAL AGENCIES AND BODIES,2103554505,1000081598
06.09.2022,CHILDREN AND FAMILIES,PURPLE PEBBLES(CHILD CARE) SERVICES,300,SEMI-IND LAC 16-17,OTHER PAYMENTS FOR CLIENTS,2103554425,1000070705
06.09.2022,CHILDREN AND FAMILIES,SYDNEY CARE LTD,265.71,SEMI-IND LAC 16-17,OTHER PAYMENTS FOR CLIENTS,2103554506,1000081598
06.09.2022,CHILDREN AND FAMILIES,GREATER LONDON FOSTERING,"1,882.01",STAYPUT- FOST CARERS,EXTERNAL AGENCIES AND BODIES,2103554511,1000029184
06.09.2022,CHILDREN AND FAMILIES,GREATER LONDON FOSTERING,"2,214.02",STAYPUT- FOST CARERS,EXTERNAL AGENCIES AND BODIES,2103554512,1000029184
06.09.2022,CHILDREN AND FAMILIES,ZENITH CARS LTD,620,TEAM C,CLIENT TRANSPORT,5902540968,1000070570
06.09.2022,CHILDREN AND FAMILIES,PURPLE PEBBLES(CHILD CARE) SERVICES,"-1,789.98",UASC CARELEAVERS,COSTS RECOVERED,2103554375,1000070705
06.09.2022,CHILDREN AND FAMILIES,PURPLE PEBBLES(CHILD CARE) SERVICES,-894.99,UASC CARELEAVERS,COSTS RECOVERED,2103554374,1000070705
06.09.2022,CHILDREN AND FAMILIES,PURPLE PEBBLES(CHILD CARE) SERVICES,-875,UASC CARELEAVERS,COSTS RECOVERED,2103534919,1000070705
06.09.2022,CHILDREN AND FAMILIES,PURPLE PEBBLES(CHILD CARE) SERVICES,-875,UASC CARELEAVERS,COSTS RECOVERED,2103534920,1000070705
06.09.2022,CHILDREN AND FAMILIES,PURPLE PEBBLES(CHILD CARE) SERVICES,-875,UASC CARELEAVERS,COSTS RECOVERED,2103534921,1000070705
06.09.2022,CHILDREN AND FAMILIES,PURPLE PEBBLES(CHILD CARE) SERVICES,-875,UASC CARELEAVERS,COSTS RECOVERED,2103554373,1000070705
06.09.2022,CHILDREN AND FAMILIES,PURPLE PEBBLES(CHILD CARE) SERVICES,-875,UASC CARELEAVERS,COSTS RECOVERED,2103554377,1000070705
06.09.2022,CHILDREN AND FAMILIES,PURPLE PEBBLES(CHILD CARE) SERVICES,-875,UASC CARELEAVERS,COSTS RECOVERED,2103554379,1000070705
06.09.2022,CHILDREN AND FAMILIES,PURPLE PEBBLES(CHILD CARE) SERVICES,-875,UASC CARELEAVERS,COSTS RECOVERED,2103554380,1000070705
06.09.2022,CHILDREN AND FAMILIES,PURPLE PEBBLES(CHILD CARE) SERVICES,-826.49,UASC CARELEAVERS,COSTS RECOVERED,2103554376,1000070705
06.09.2022,CHILDREN AND FAMILIES,PURPLE PEBBLES(CHILD CARE) SERVICES,"1,550.00",UASC CARELEAVERS,EXTERNAL AGENCIES AND BODIES,2103554455,1000070705
06.09.2022,CHILDREN AND FAMILIES,PURPLE PEBBLES(CHILD CARE) SERVICES,"1,594.29",UASC CARELEAVERS,EXTERNAL AGENCIES AND BODIES,2103554441,1000070705
06.09.2022,CHILDREN AND FAMILIES,PURPLE PEBBLES(CHILD CARE) SERVICES,"1,660.71",UASC CARELEAVERS,EXTERNAL AGENCIES AND BODIES,2103554438,1000070705
06.09.2022,CHILDREN AND FAMILIES,PURPLE PEBBLES(CHILD CARE) SERVICES,"1,660.71",UASC CARELEAVERS,EXTERNAL AGENCIES AND BODIES,2103554451,1000070705
06.09.2022,CHILDREN AND FAMILIES,PURPLE PEBBLES(CHILD CARE) SERVICES,"1,660.71",UASC CARELEAVERS,EXTERNAL AGENCIES AND BODIES,2103554465,1000070705
06.09.2022,CHILDREN AND FAMILIES,PURPLE PEBBLES(CHILD CARE) SERVICES,"1,749.29",UASC CARELEAVERS,EXTERNAL AGENCIES AND BODIES,2103554460,1000070705
06.09.2022,CHILDREN AND FAMILIES,PURPLE PEBBLES(CHILD CARE) SERVICES,"1,771.43",UASC CARELEAVERS,EXTERNAL AGENCIES AND BODIES,2103554452,1000070705
06.09.2022,CHILDREN AND FAMILIES,PURPLE PEBBLES(CHILD CARE) SERVICES,"1,771.43",UASC CARELEAVERS,EXTERNAL AGENCIES AND BODIES,2103554459,1000070705
06.09.2022,CHILDREN AND FAMILIES,PURPLE PEBBLES(CHILD CARE) SERVICES,"1,815.71",UASC CARELEAVERS,EXTERNAL AGENCIES AND BODIES,2103554447,1000070705
06.09.2022,CHILDREN AND FAMILIES,PURPLE PEBBLES(CHILD CARE) SERVICES,"1,882.14",UASC CARELEAVERS,EXTERNAL AGENCIES AND BODIES,2103554436,1000070705
06.09.2022,CHILDREN AND FAMILIES,PURPLE PEBBLES(CHILD CARE) SERVICES,"1,882.14",UASC CARELEAVERS,EXTERNAL AGENCIES AND BODIES,2103554440,1000070705
06.09.2022,CHILDREN AND FAMILIES,PURPLE PEBBLES(CHILD CARE) SERVICES,"1,882.14",UASC CARELEAVERS,EXTERNAL AGENCIES AND BODIES,2103554446,1000070705
06.09.2022,CHILDREN AND FAMILIES,PURPLE PEBBLES(CHILD CARE) SERVICES,"1,948.57",UASC CARELEAVERS,EXTERNAL AGENCIES AND BODIES,2103554437,1000070705
06.09.2022,CHILDREN AND FAMILIES,PURPLE PEBBLES(CHILD CARE) SERVICES,"1,948.57",UASC CARELEAVERS,EXTERNAL AGENCIES AND BODIES,2103554445,1000070705
06.09.2022,CHILDREN AND FAMILIES,PURPLE PEBBLES(CHILD CARE) SERVICES,"1,948.57",UASC CARELEAVERS,EXTERNAL AGENCIES AND BODIES,2103554449,1000070705
06.09.2022,CHILDREN AND FAMILIES,PURPLE PEBBLES(CHILD CARE) SERVICES,"1,948.57",UASC CARELEAVERS,EXTERNAL AGENCIES AND BODIES,2103554450,1000070705
06.09.2022,CHILDREN AND FAMILIES,PURPLE PEBBLES(CHILD CARE) SERVICES,"1,981.79",UASC CARELEAVERS,EXTERNAL AGENCIES AND BODIES,2103554435,1000070705
06.09.2022,CHILDREN AND FAMILIES,PURPLE PEBBLES(CHILD CARE) SERVICES,"1,992.86",UASC CARELEAVERS,EXTERNAL AGENCIES AND BODIES,2103554442,1000070705
06.09.2022,CHILDREN AND FAMILIES,PURPLE PEBBLES(CHILD CARE) SERVICES,"1,992.86",UASC CARELEAVERS,EXTERNAL AGENCIES AND BODIES,2103554458,1000070705
06.09.2022,CHILDREN AND FAMILIES,PURPLE PEBBLES(CHILD CARE) SERVICES,"2,214.28",UASC CARELEAVERS,EXTERNAL AGENCIES AND BODIES,2103554464,1000070705
06.09.2022,CHILDREN AND FAMILIES,PURPLE PEBBLES(CHILD CARE) SERVICES,"3,542.86",UASC CARELEAVERS,EXTERNAL AGENCIES AND BODIES,2103554453,1000070705
06.09.2022,CHILDREN AND FAMILIES,PURPLE PEBBLES(CHILD CARE) SERVICES,"3,542.86",UASC CARELEAVERS,EXTERNAL AGENCIES AND BODIES,2103554454,1000070705
06.09.2022,CHILDREN AND FAMILIES,NETPEX LTD CORPORATE SERVICES,"2,170.00",UASC CARELEAVERS,EXTERNAL AGENCIES AND BODIES,2103554509,1000076073
06.09.2022,CHILDREN AND FAMILIES,ELLIOT LEIGH TLC LTD,"1,713.68",UASC CARELEAVERS,EXTERNAL AGENCIES AND BODIES,2103554518,1000079022
06.09.2022,CHILDREN AND FAMILIES,ELLIOT LEIGH TLC LTD,"1,727.01",UASC CARELEAVERS,EXTERNAL AGENCIES AND BODIES,2103554522,1000079022
06.09.2022,CHILDREN AND FAMILIES,ELLIOT LEIGH TLC LTD,"2,426.06",UASC CARELEAVERS,EXTERNAL AGENCIES AND BODIES,2103554517,1000079022
06.09.2022,CHILDREN AND FAMILIES,PURPLE PEBBLES(CHILD CARE) SERVICES,300,UASC CARELEAVERS,OTHER PAYMENTS FOR CLIENTS,2103554439,1000070705
06.09.2022,CHILDREN AND FAMILIES,PURPLE PEBBLES(CHILD CARE) SERVICES,300,UASC CARELEAVERS,OTHER PAYMENTS FOR CLIENTS,2103554444,1000070705
06.09.2022,CHILDREN AND FAMILIES,PURPLE PEBBLES(CHILD CARE) SERVICES,300,UASC CARELEAVERS,OTHER PAYMENTS FOR CLIENTS,2103554461,1000070705
06.09.2022,CHILDREN AND FAMILIES,PURPLE PEBBLES(CHILD CARE) SERVICES,300,UASC CARELEAVERS,OTHER PAYMENTS FOR CLIENTS,2103554466,1000070705
06.09.2022,CHILDREN AND FAMILIES,AIDHOUR LIMITED,"1,380.00",UASC LAC 16-17,EXTERNAL AGENCIES AND BODIES,5902541110,1000057345
06.09.2022,CHILDREN AND FAMILIES,PURPLE PEBBLES(CHILD CARE) SERVICES,864.29,UASC LAC 16-17,EXTERNAL AGENCIES AND BODIES,2103542500,1000070705
06.09.2022,CHILDREN AND FAMILIES,PURPLE PEBBLES(CHILD CARE) SERVICES,"1,371.43",UASC LAC 16-17,EXTERNAL AGENCIES AND BODIES,2103554429,1000070705
06.09.2022,CHILDREN AND FAMILIES,PURPLE PEBBLES(CHILD CARE) SERVICES,"2,285.71",UASC LAC 16-17,EXTERNAL AGENCIES AND BODIES,2103554432,1000070705
06.09.2022,CHILDREN AND FAMILIES,PURPLE PEBBLES(CHILD CARE) SERVICES,"3,542.86",UASC LAC 16-17,EXTERNAL AGENCIES AND BODIES,2103554426,1000070705
06.09.2022,COMMUNITIES,DINARDO SUPPORTS LTD,"1,520.00",NO RECOURSE TO PUBLIC FUNDS,ACCOMMODATION CHARGES,5902541084,1000063093
06.09.2022,COMMUNITIES,FINEFAIR LTD,"3,955.20",NO RECOURSE TO PUBLIC FUNDS,ACCOMMODATION CHARGES,5902541088,1000075570
06.09.2022,COMMUNITIES,STONEBRIDGE COMMUNITY LIVING LTD,923.76,NO RECOURSE TO PUBLIC FUNDS,ACCOMMODATION CHARGES,5902541105,1000088466
06.09.2022,COMMUNITIES,JOYMAC CARE LTD,569.14,NO RECOURSE TO PUBLIC FUNDS,HOMECARE - C&V,2103554473,1000088577
06.09.2022,COMMUNITIES,JOYMAC CARE LTD,640,NO RECOURSE TO PUBLIC FUNDS,HOMECARE - C&V,2103554472,1000088577
06.09.2022,COMMUNITIES,JOYMAC CARE LTD,"1,280.00",NO RECOURSE TO PUBLIC FUNDS,HOMECARE - C&V,2103554471,1000088577
06.09.2022,COMMUNITIES,REDACTED PERSONAL DATA,350,UKRAINIAN PROGRAMME,GRANTS,REDACTED,REDACTED
06.09.2022,COMMUNITIES,REDACTED PERSONAL DATA,350,UKRAINIAN PROGRAMME,GRANTS,REDACTED,REDACTED
06.09.2022,COMMUNITIES,REDACTED PERSONAL DATA,350,UKRAINIAN PROGRAMME,GRANTS,REDACTED,REDACTED
06.09.2022,COMMUNITIES,REDACTED PERSONAL DATA,350,UKRAINIAN PROGRAMME,GRANTS,REDACTED,REDACTED
06.09.2022,COMMUNITIES,REDACTED PERSONAL DATA,350,UKRAINIAN PROGRAMME,GRANTS,REDACTED,REDACTED
06.09.2022,COMMUNITIES,REDACTED PERSONAL DATA,350,UKRAINIAN PROGRAMME,GRANTS,REDACTED,REDACTED
06.09.2022,CUSTOMER EXPERIENCE,PATRICIA AMESBURY,"1,662.50",COMPLAINTS,EXTERNAL AGENCIES AND BODIES,5902540999,1000060418
06.09.2022,CUSTOMER EXPERIENCE HGF,ALLIED PUBLICITY SERVICES,"1,345.14",BLUE BADGES,MATERIALS,5902540950,1000082115
06.09.2022,CUSTOMER EXPERIENCE HGF,IMPERIAL COLLEGE PROJECTS LTD,292,CORONER'S,PROFESSIONAL FEES,5902540896,1000080106
06.09.2022,CUSTOMER EXPERIENCE HGF,IMPERIAL COLLEGE PROJECTS LTD,292,CORONER'S,PROFESSIONAL FEES,5902540909,1000080106
06.09.2022,CUSTOMER EXPERIENCE HGF,IMPERIAL COLLEGE PROJECTS LTD,292,CORONER'S,PROFESSIONAL FEES,5902540913,1000080106
06.09.2022,CUSTOMER EXPERIENCE HGF,IMPERIAL COLLEGE PROJECTS LTD,336,CORONER'S,PROFESSIONAL FEES,5902540890,1000080106
06.09.2022,CUSTOMER EXPERIENCE HGF,IMPERIAL COLLEGE PROJECTS LTD,336,CORONER'S,PROFESSIONAL FEES,5902540900,1000080106
06.09.2022,CUSTOMER EXPERIENCE HGF,IMPERIAL COLLEGE PROJECTS LTD,336,CORONER'S,PROFESSIONAL FEES,5902540912,1000080106
06.09.2022,CUSTOMER EXPERIENCE HGF,IMPERIAL COLLEGE PROJECTS LTD,336,CORONER'S,PROFESSIONAL FEES,5902540940,1000080106
06.09.2022,CUSTOMER EXPERIENCE HGF,IMPERIAL COLLEGE PROJECTS LTD,344,CORONER'S,PROFESSIONAL FEES,5902540892,1000080106
06.09.2022,CUSTOMER EXPERIENCE HGF,IMPERIAL COLLEGE PROJECTS LTD,356,CORONER'S,PROFESSIONAL FEES,5902540889,1000080106
06.09.2022,CUSTOMER EXPERIENCE HGF,IMPERIAL COLLEGE PROJECTS LTD,356,CORONER'S,PROFESSIONAL FEES,5902540897,1000080106
06.09.2022,CUSTOMER EXPERIENCE HGF,IMPERIAL COLLEGE PROJECTS LTD,356,CORONER'S,PROFESSIONAL FEES,5902540901,1000080106
06.09.2022,CUSTOMER EXPERIENCE HGF,IMPERIAL COLLEGE PROJECTS LTD,356,CORONER'S,PROFESSIONAL FEES,5902540932,1000080106
06.09.2022,CUSTOMER EXPERIENCE HGF,IMPERIAL COLLEGE PROJECTS LTD,388,CORONER'S,PROFESSIONAL FEES,5902540891,1000080106
06.09.2022,CUSTOMER EXPERIENCE HGF,IMPERIAL COLLEGE PROJECTS LTD,388,CORONER'S,PROFESSIONAL FEES,5902540916,1000080106
06.09.2022,CUSTOMER EXPERIENCE HGF,IMPERIAL COLLEGE PROJECTS LTD,408,CORONER'S,PROFESSIONAL FEES,5902540888,1000080106
06.09.2022,CUSTOMER EXPERIENCE HGF,IMPERIAL COLLEGE PROJECTS LTD,408,CORONER'S,PROFESSIONAL FEES,5902540894,1000080106
06.09.2022,CUSTOMER EXPERIENCE HGF,IMPERIAL COLLEGE PROJECTS LTD,408,CORONER'S,PROFESSIONAL FEES,5902540915,1000080106
06.09.2022,CUSTOMER EXPERIENCE HGF,IMPERIAL COLLEGE PROJECTS LTD,428,CORONER'S,PROFESSIONAL FEES,5902540919,1000080106
06.09.2022,CUSTOMER EXPERIENCE HGF,IMPERIAL COLLEGE PROJECTS LTD,428,CORONER'S,PROFESSIONAL FEES,5902540936,1000080106
06.09.2022,CUSTOMER EXPERIENCE HGF,IMPERIAL COLLEGE PROJECTS LTD,432,CORONER'S,PROFESSIONAL FEES,5902540898,1000080106
06.09.2022,CUSTOMER EXPERIENCE HGF,IMPERIAL COLLEGE PROJECTS LTD,472,CORONER'S,PROFESSIONAL FEES,5902540922,1000080106
06.09.2022,CUSTOMER EXPERIENCE HGF,IMPERIAL COLLEGE PROJECTS LTD,504,CORONER'S,PROFESSIONAL FEES,5902540918,1000080106
06.09.2022,CUSTOMER EXPERIENCE HGF,IMPERIAL COLLEGE PROJECTS LTD,524,CORONER'S,PROFESSIONAL FEES,5902540926,1000080106
06.09.2022,CUSTOMER EXPERIENCE HGF,IMPERIAL COLLEGE PROJECTS LTD,528,CORONER'S,PROFESSIONAL FEES,5902540934,1000080106
06.09.2022,CUSTOMER EXPERIENCE HGF,IMPERIAL COLLEGE PROJECTS LTD,560,CORONER'S,PROFESSIONAL FEES,5902540893,1000080106
06.09.2022,CUSTOMER EXPERIENCE HGF,IMPERIAL COLLEGE PROJECTS LTD,640,CORONER'S,PROFESSIONAL FEES,5902540907,1000080106
06.09.2022,CUSTOMER EXPERIENCE HGF,IMPERIAL COLLEGE PROJECTS LTD,684,CORONER'S,PROFESSIONAL FEES,5902540895,1000080106
06.09.2022,DSG,FLEET TUTORS,"20,292.00",ALTERNATIVE PROVISION,EXTERNAL AGENCIES AND BODIES,5902540937,1000044820
06.09.2022,DSG,PROSPERO RECRUITMENT LTD,"5,670.00",ALTERNATIVE PROVISION,EXTERNAL AGENCIES AND BODIES,5902540902,1000082492
06.09.2022,ENVIRONMENT AND LEISURE,STREET TREE LTD,270,CAPITAL PS (LEISURE),CONSTRUCTION FEES  - EXTERNAL,5902541022,1000055901
06.09.2022,ENVIRONMENT DIRECTORATE,M H COACHWORKS & SONS LTD,"5,863.50",FLEET INSURANCE WORKS,TRANSPORT INSURANCE COSTS,5902541087,1000033495
06.09.2022,ENVIRONMENT DIRECTORATE,CROMWELL POLYTHENE LTD,"3,045.60",STREET CLEANING-GENERAL,MATERIALS,5902540977,1000021159
06.09.2022,ENVIRONMENT DIRECTORATE,WATERMAN INFRASTRUCTURE & ENVIRONMENT LTD,"3,471.00",STRUCTURES MINOR ROADS,HIGHWAYS TERM CONTRACT,5902540857,1000060529
06.09.2022,F & C S EXCLUDING CORPORATE BUDGETS,NEC SOFTWARE SOLUTIONS UK LTD,"9,000.00",ADMINISTRATIVE SUPPORT,POSTAGES,5902541082,1000087043
06.09.2022,F & C S EXCLUDING CORPORATE BUDGETS,NEC SOFTWARE SOLUTIONS UK LTD,"30,000.00",ADMINISTRATIVE SUPPORT,POSTAGES,5902541082,1000087043
06.09.2022,F & C S EXCLUDING CORPORATE BUDGETS,SOUTH BANK BID LTD,"13,459.02",SOUTH BANK,EXTERNAL AGENCIES AND BODIES,5902541081,1000075023
06.09.2022,HOUSING GENERAL FUND,STANNAH LIFT SERVICES LTD,"3,037.00",CAPITAL PS (HOUSING GF),CAPITAL GRANTS,5902541058,1063595
06.09.2022,HOUSING GENERAL FUND,SOUTH EAST BUILDING CONTRACTORS LTD,"7,685.02",CAPITAL PS (HOUSING GF),CAPITAL GRANTS,5902540997,1000049893
06.09.2022,HOUSING HRA,DUCTCLEAN (UK) LIMITED,"1,300.00",CAPITAL PS (HRA),CONSTRUCTION,5902540969,1000062478
06.09.2022,HOUSING HRA,DUCTCLEAN (UK) LIMITED,"90,000.00",CAPITAL PS (HRA),CONSTRUCTION,5902540969,1000062478
06.09.2022,HOUSING HRA,FRANKHAM RISK MANAGEMENT SERVICES LTD,"4,200.00",CAPITAL PS (HRA),CONSTRUCTION,5902541056,1000070229
06.09.2022,HOUSING HRA,FRANKHAM RISK MANAGEMENT SERVICES LTD,"14,350.00",CAPITAL PS (HRA),CONSTRUCTION,5902541056,1000070229
06.09.2022,HOUSING HRA,BONDS BUILDERS AND CONTRACTORS LTD,"51,331.43",CAPITAL PS (HRA),CONSTRUCTION,2103554576,3000002137
06.09.2022,HOUSING HRA,CALFORD SEADEN LLP,"8,820.00",CAPITAL PS (HRA),CONSTRUCTION FEES  - EXTERNAL,5902541015,1061592
06.09.2022,HOUSING HRA,SHARPE PRITCHARD LLP,"2,148.00",CAPITAL PS (HRA),CONSTRUCTION FEES  - EXTERNAL,5902540942,1790085
06.09.2022,HOUSING HRA,LASER SURVEYS LIMITED,345,CAPITAL PS (HRA),CONSTRUCTION FEES  - EXTERNAL,5902541063,1000051587
06.09.2022,HOUSING HRA,SHERGROUP LTD,"3,320.00",CAPITAL PS (HRA),CONSTRUCTION FEES  - EXTERNAL,5902540933,1000087977
06.09.2022,HOUSING HRA,SHERGROUP LTD,"3,360.00",CAPITAL PS (HRA),CONSTRUCTION FEES  - EXTERNAL,5902540884,1000087977
06.09.2022,HOUSING HRA,TURKINGTON DESIGN STUDIO LTD,"5,000.00",CAPITAL PS (HRA),CONSTRUCTION FEES - ARCHITECT,5902541004,1000082900
06.09.2022,HOUSING HRA,HAPTIC ARCHITECTS LTD,350,CAPITAL PS (HRA),CONSTRUCTION FEES - ARCHITECT,5902540917,1000087287
06.09.2022,HOUSING HRA,HAPTIC ARCHITECTS LTD,650,CAPITAL PS (HRA),CONSTRUCTION FEES - ARCHITECT,5902540911,1000087287
06.09.2022,HOUSING HRA,HAPTIC ARCHITECTS LTD,"6,650.00",CAPITAL PS (HRA),CONSTRUCTION FEES - ARCHITECT,5902540917,1000087287
06.09.2022,HOUSING HRA,HAPTIC ARCHITECTS LTD,"13,350.00",CAPITAL PS (HRA),CONSTRUCTION FEES - ARCHITECT,5902540911,1000087287
06.09.2022,HOUSING HRA,HAPTIC ARCHITECTS LTD,"45,250.00",CAPITAL PS (HRA),CONSTRUCTION FEES - ARCHITECT,5902541016,1000087287
06.09.2022,HOUSING HRA,CALFORD SEADEN LLP,"1,470.00",CAPITAL PS (HRA),CONSTRUCTION FEES - EMPLOYERS AGENT,5902540960,1061592
06.09.2022,HOUSING HRA,SHARPE PRITCHARD LLP,625,CAPITAL PS (HRA),CONSTRUCTION FEES - LEGAL,5902541064,1790085
06.09.2022,HOUSING HRA,SHARPE PRITCHARD LLP,"1,000.00",CAPITAL PS (HRA),CONSTRUCTION FEES - LEGAL,5902540942,1790085
06.09.2022,HOUSING HRA,STANDAGE & CO LTD,"95,868.21",CAPITAL PS (HRA),CONSTRUCTION MAIN CONTRACT -CERTIFICATED,2103554568,4002817
06.09.2022,HOUSING HRA,A & E ELKINS LTD,"63,967.04",CAPITAL PS (HRA),CONSTRUCTION MAIN CONTRACT -CERTIFICATED,2103554569,4012501
06.09.2022,HOUSING HRA,A & E ELKINS LTD,"134,901.08",CAPITAL PS (HRA),CONSTRUCTION MAIN CONTRACT -CERTIFICATED,2103554578,4012501
06.09.2022,HOUSING HRA,SHARPE PRITCHARD LLP,693,CAPITAL PS (HRA),LAND & BUILDINGS ACQUISITION FEES,5902541098,1790085
06.09.2022,LEISURE DIRECTORATE,P D CONSTRUCTION LTD,980,BURGESS AREA TEAM,OTHER R&M,2103554577,4001883
06.09.2022,LEISURE DIRECTORATE,FRIENDS OF BURGESS PARK,460,BURGESS AREA TEAM,OTHER R&M,5902541038,1000046174
06.09.2022,LEISURE DIRECTORATE,EDF ENERGY PLC,297.5,CEMETERIES,ELECTRICITY,5902541031,1008746
06.09.2022,LEISURE DIRECTORATE,BERMONDSEY PROJECT SPACE,"2,984.75",GRANTS COMMISSIONING,GRANTS,5902540905,1000088331
06.09.2022,LEISURE DIRECTORATE,ISUBSCRIBE LIMITED,"3,976.66",LIBRARIES DEVELOPMENT,BOOKS & PUBLICATIONS,5902541037,1000066066
06.09.2022,LEISURE DIRECTORATE,JUSTIN CHAMBERS-COE,330.5,LIBRARIES DEVELOPMENT,FREELANCE SPECIALISTS,5902541006,1000079598
06.09.2022,LEISURE DIRECTORATE,KENT COUNTY COUNCIL - LASER,"-8,899.66",SDM BUDGET,ELECTRICITY,5902541023,1000012926
06.09.2022,LEISURE DIRECTORATE,KENT COUNTY COUNCIL - LASER,"8,921.07",SDM BUDGET,ELECTRICITY,5902541017,1000012926
06.09.2022,LEISURE DIRECTORATE,CALM MEDIATION,"-1,320.00",SDM BUDGET,PROFESSIONAL FEES,5902541049,1000086031
06.09.2022,LEISURE DIRECTORATE,CALM MEDIATION,"-1,080.00",SDM BUDGET,PROFESSIONAL FEES,5902541055,1000086031
06.09.2022,LEISURE DIRECTORATE,CALM MEDIATION,450,SDM BUDGET,PROFESSIONAL FEES,5902541052,1000086031
06.09.2022,LEISURE DIRECTORATE,CALM MEDIATION,"1,580.00",SDM BUDGET,PROFESSIONAL FEES,5902541034,1000086031
06.09.2022,LEISURE DIRECTORATE,CALM MEDIATION,"2,580.00",SDM BUDGET,PROFESSIONAL FEES,5902541046,1000086031
06.09.2022,LEISURE DIRECTORATE,BIBLIOTHECA LTD,495.77,STOCK SERVICES,STATIONERY,5902540914,1000069536
06.09.2022,PUBLIC HEALTH,THE COLLEGE OF CONTEMPORARY HEALTH,"18,000.00",HEALTHY WEIGHT,EXTERNAL AGENCIES AND BODIES,5902541101,1000080685
06.09.2022,RESIDENT SERVICES,URBAN GROWTH LEARNING GARDENS CIC,"3,436.00",GREAT ESTATES,OTHER R&M,5902541033,1000085799
06.09.2022,RESIDENT SERVICES,CALM MEDIATION,"1,720.00",OPERATIONS/OFFICES ACCOMMODATION,OTHER CONTRACTORS,5902541009,1000086031
06.09.2022,RESIDENT SERVICES,PINNACLE POWER LTD,"3,091.61",PRIVATE SERVICE CHARGES,SERVICE CHARGES,5902541002,1000081494
06.09.2022,RESIDENT SERVICES HGF,FRESHVIEW ESTATES LTD,"2,381.94",HOMELESS PROJECTS,GRANTS,5902541089,1000081189
06.09.2022,RESIDENT SERVICES HGF,FRESHVIEW ESTATES LTD,"2,381.94",HOMELESS PROJECTS,GRANTS,5902541094,1000081189
06.09.2022,RESIDENT SERVICES HGF,FRESHVIEW ESTATES LTD,"2,381.94",HOMELESS PROJECTS,GRANTS,5902541109,1000081189
06.09.2022,RESIDENT SERVICES HGF,FRESHVIEW ESTATES LTD,"2,502.09",HOMELESS PROJECTS,GRANTS,5902541091,1000081189
06.09.2022,RESIDENT SERVICES HGF,STONEWALL HOUSING ASSOCIATION,"6,749.00",HOUSING OPTIONS,PROFESSIONAL FEES,5902540924,1000085373
06.09.2022,RESIDENT SERVICES HGF,OAK HOUSING LTD,"3,641.26",PSL PLACEMENTS,EXTERNAL AGENCIES AND BODIES,5902541106,1000079310
06.09.2022,RESIDENT SERVICES HGF,STAR PEOPLE LTD,"46,706.44",PSL PLACEMENTS,EXTERNAL AGENCIES AND BODIES,5902541051,1000088790
07.09.2022,ADULT SOCIAL CARE,EQUINOX CARE,"7,000.00",DIR OF ASC,EXTERNAL AGENCIES AND BODIES,5902541265,11297438
07.09.2022,ADULT SOCIAL CARE,EQUINOX CARE,"40,000.00",DIR OF ASC,EXTERNAL AGENCIES AND BODIES,5902541260,11297438
07.09.2022,ADULT SOCIAL CARE,OPTIMA CARE (SHINE) LONDON LTD,"18,000.00",DIR OF ASC,EXTERNAL AGENCIES AND BODIES,5902541238,1000079614
07.09.2022,ADULT SOCIAL CARE,REDACTED PERSONAL DATA,"1,664.00",DISABILITIES LAC,PAYMENTS TO CARERS,REDACTED,REDACTED
07.09.2022,ADULT SOCIAL CARE,REDACTED PERSONAL DATA,"1,004.00",DISABILITIES LAC,PAYMENTS TO CARERS,REDACTED,REDACTED
07.09.2022,ADULT SOCIAL CARE,REDACTED PERSONAL DATA,778,DISABILITIES LAC,PAYMENTS TO CARERS,REDACTED,REDACTED
07.09.2022,ADULT SOCIAL CARE,REDACTED PERSONAL DATA,880,DISABILITIES LAC,PAYMENTS TO CARERS,REDACTED,REDACTED
07.09.2022,ADULT SOCIAL CARE,REDACTED PERSONAL DATA,640,FAMILY LINK,PAYMENTS TO CARERS,REDACTED,REDACTED
07.09.2022,ADULT SOCIAL CARE,NPOWER LTD,"1,109.59",ORIENT ST � RESPITE,ELECTRICITY,5902541201,1000078994
07.09.2022,ADULT SOCIAL CARE,CONTACT PROFESSIONALS,252.56,SPECIALIST CARE,SECTION 17 PAYMENTS TO AGENCIES/CARERS,2103555297,1000057263
07.09.2022,ADULT SOCIAL CARE,CONTACT PROFESSIONALS,270.6,SPECIALIST CARE,SECTION 17 PAYMENTS TO AGENCIES/CARERS,2103555291,1000057263
07.09.2022,ADULT SOCIAL CARE,CONTACT PROFESSIONALS,306.68,SPECIALIST CARE,SECTION 17 PAYMENTS TO AGENCIES/CARERS,2103555287,1000057263
07.09.2022,ADULT SOCIAL CARE,CONTACT PROFESSIONALS,342.76,SPECIALIST CARE,SECTION 17 PAYMENTS TO AGENCIES/CARERS,2103555295,1000057263
07.09.2022,ADULT SOCIAL CARE,CONTACT PROFESSIONALS,360.8,SPECIALIST CARE,SECTION 17 PAYMENTS TO AGENCIES/CARERS,2103555288,1000057263
07.09.2022,ADULT SOCIAL CARE,CONTACT PROFESSIONALS,360.8,SPECIALIST CARE,SECTION 17 PAYMENTS TO AGENCIES/CARERS,2103555300,1000057263
07.09.2022,ADULT SOCIAL CARE,CONTACT PROFESSIONALS,432.96,SPECIALIST CARE,SECTION 17 PAYMENTS TO AGENCIES/CARERS,2103555293,1000057263
07.09.2022,ADULT SOCIAL CARE,REMARK LTD,260,SPECIALIST CARE,SECTION 17 PAYMENTS TO AGENCIES/CARERS,5902541200,1000081741
07.09.2022,ASSET MANAGEMENT,SHARPE PRITCHARD LLP,616,DESIGN & DELIVERY,SOLICITORS FRAMEWORK LEGAL SERVICES,5902541120,1790085
07.09.2022,ASSET MANAGEMENT,SHARPE PRITCHARD LLP,"2,468.00",DESIGN & DELIVERY,SOLICITORS FRAMEWORK LEGAL SERVICES,5902541119,1790085
07.09.2022,ASSET MANAGEMENT,P J COFFEY LTD,"14,300.00",REPAIRS OPERATIONS,PROFESSIONAL FEES,5902541182,1000084701
07.09.2022,CENTRAL FUNCTIONS,WEB LABS LTD,900,COMMERCIAL PROPERTIES,PROFESSIONAL FEES,5902541143,1000039819
07.09.2022,CENTRAL FUNCTIONS,BIFFA WASTE SERVICES LTD,"1,278.29",COMMERCIAL PROPERTIES,REFUSE COLLECTION CONTRACT,5902541140,1147051
07.09.2022,CENTRAL FUNCTIONS,BIFFA WASTE SERVICES LTD,"1,774.11",COMMERCIAL PROPERTIES,REFUSE COLLECTION CONTRACT,5902541139,1147051
07.09.2022,CENTRAL FUNCTIONS,MY LANDLADY PROPERTIES LIMITED,631.24,HOME OWNERSHIP INCOME,HOUSING RESIDENTIAL RENTS,2103555579,1000086126
07.09.2022,CHIEF EXECUTIVE,GREENGAGE ENVIROMENTAL LTD,"1,000.00",CAPITAL PS (REGEN),CONSTRUCTION FEES  - EXTERNAL,5902540115,1000086955
07.09.2022,CHILDREN AND FAMILIES,REDACTED PERSONAL DATA,625,16 PLUS TEAM,OTHER PAYMENTS FOR CLIENTS,REDACTED,REDACTED
07.09.2022,CHILDREN AND FAMILIES,REDACTED PERSONAL DATA,300,16 PLUS TEAM,OTHER PAYMENTS FOR CLIENTS,REDACTED,REDACTED
07.09.2022,CHILDREN AND FAMILIES,REDACTED PERSONAL DATA,375.54,ADOPTION ALLOWANCES,PAYMENTS TO CARERS,REDACTED,REDACTED
07.09.2022,CHILDREN AND FAMILIES,REDACTED PERSONAL DATA,375.54,ADOPTION ALLOWANCES,PAYMENTS TO CARERS,REDACTED,REDACTED
07.09.2022,CHILDREN AND FAMILIES,REDACTED PERSONAL DATA,712.3,ADOPTION ALLOWANCES,PAYMENTS TO CARERS,REDACTED,REDACTED
07.09.2022,CHILDREN AND FAMILIES,REDACTED PERSONAL DATA,862,ADOPTION ALLOWANCES,PAYMENTS TO CARERS,REDACTED,REDACTED
07.09.2022,CHILDREN AND FAMILIES,REDACTED PERSONAL DATA,635.34,ADOPTION ALLOWANCES,PAYMENTS TO CARERS,REDACTED,REDACTED
07.09.2022,CHILDREN AND FAMILIES,REDACTED PERSONAL DATA,375.54,ADOPTION ALLOWANCES,PAYMENTS TO CARERS,REDACTED,REDACTED
07.09.2022,CHILDREN AND FAMILIES,REDACTED PERSONAL DATA,375.54,ADOPTION ALLOWANCES,PAYMENTS TO CARERS,REDACTED,REDACTED
07.09.2022,CHILDREN AND FAMILIES,REDACTED PERSONAL DATA,451.8,ADOPTION ALLOWANCES,PAYMENTS TO CARERS,REDACTED,REDACTED
07.09.2022,CHILDREN AND FAMILIES,REDACTED PERSONAL DATA,386,ADOPTION ALLOWANCES,PAYMENTS TO CARERS,REDACTED,REDACTED
07.09.2022,CHILDREN AND FAMILIES,REDACTED PERSONAL DATA,705.24,ADOPTION ALLOWANCES,PAYMENTS TO CARERS,REDACTED,REDACTED
07.09.2022,CHILDREN AND FAMILIES,REDACTED PERSONAL DATA,777.36,ADOPTION ALLOWANCES,PAYMENTS TO CARERS,REDACTED,REDACTED
07.09.2022,CHILDREN AND FAMILIES,REDACTED PERSONAL DATA,512.02,ADOPTION ALLOWANCES,PAYMENTS TO CARERS,REDACTED,REDACTED
07.09.2022,CHILDREN AND FAMILIES,REDACTED PERSONAL DATA,251.12,ADOPTION ALLOWANCES,PAYMENTS TO CARERS,REDACTED,REDACTED
07.09.2022,CHILDREN AND FAMILIES,REDACTED PERSONAL DATA,375.54,ADOPTION ALLOWANCES,PAYMENTS TO CARERS,REDACTED,REDACTED
07.09.2022,CHILDREN AND FAMILIES,REDACTED PERSONAL DATA,375.54,ADOPTION ALLOWANCES,PAYMENTS TO CARERS,REDACTED,REDACTED
07.09.2022,CHILDREN AND FAMILIES,REDACTED PERSONAL DATA,502,ADOPTION ALLOWANCES,PAYMENTS TO CARERS,REDACTED,REDACTED
07.09.2022,CHILDREN AND FAMILIES,REDACTED PERSONAL DATA,375.54,ADOPTION ALLOWANCES,PAYMENTS TO CARERS,REDACTED,REDACTED
07.09.2022,CHILDREN AND FAMILIES,REDACTED PERSONAL DATA,640.9,ADOPTION ALLOWANCES,PAYMENTS TO CARERS,REDACTED,REDACTED
07.09.2022,CHILDREN AND FAMILIES,REDACTED PERSONAL DATA,382.3,ADOPTION ALLOWANCES,PAYMENTS TO CARERS,REDACTED,REDACTED
07.09.2022,CHILDREN AND FAMILIES,REDACTED PERSONAL DATA,382.3,ADOPTION ALLOWANCES,PAYMENTS TO CARERS,REDACTED,REDACTED
07.09.2022,CHILDREN AND FAMILIES,REDACTED PERSONAL DATA,359.9,ADOPTION ALLOWANCES,PAYMENTS TO CARERS,REDACTED,REDACTED
07.09.2022,CHILDREN AND FAMILIES,REDACTED PERSONAL DATA,304.26,ADOPTION ALLOWANCES,PAYMENTS TO CARERS,REDACTED,REDACTED
07.09.2022,CHILDREN AND FAMILIES,REDACTED PERSONAL DATA,278.54,ADOPTION ALLOWANCES,PAYMENTS TO CARERS,REDACTED,REDACTED
07.09.2022,CHILDREN AND FAMILIES,REDACTED PERSONAL DATA,485.22,ADOPTION ALLOWANCES,PAYMENTS TO CARERS,REDACTED,REDACTED
07.09.2022,CHILDREN AND FAMILIES,REDACTED PERSONAL DATA,442.74,ADOPTION ALLOWANCES,PAYMENTS TO CARERS,REDACTED,REDACTED
07.09.2022,CHILDREN AND FAMILIES,REDACTED PERSONAL DATA,252.9,ADOPTION ALLOWANCES,PAYMENTS TO CARERS,REDACTED,REDACTED
07.09.2022,CHILDREN AND FAMILIES,REDACTED PERSONAL DATA,253.56,ADOPTION ALLOWANCES,PAYMENTS TO CARERS,REDACTED,REDACTED
07.09.2022,CHILDREN AND FAMILIES,REDACTED PERSONAL DATA,382.3,ADOPTION ALLOWANCES,PAYMENTS TO CARERS,REDACTED,REDACTED
07.09.2022,CHILDREN AND FAMILIES,REDACTED PERSONAL DATA,382.3,ADOPTION ALLOWANCES,PAYMENTS TO CARERS,REDACTED,REDACTED
07.09.2022,CHILDREN AND FAMILIES,REDACTED PERSONAL DATA,484.92,ADOPTION ALLOWANCES,PAYMENTS TO CARERS,REDACTED,REDACTED
07.09.2022,CHILDREN AND FAMILIES,REDACTED PERSONAL DATA,530,ADOPTION ALLOWANCES,PAYMENTS TO CARERS,REDACTED,REDACTED
07.09.2022,CHILDREN AND FAMILIES,REDACTED PERSONAL DATA,908,ADOPTION ALLOWANCES,PAYMENTS TO CARERS,REDACTED,REDACTED
07.09.2022,CHILDREN AND FAMILIES,REDACTED PERSONAL DATA,369.16,ADOPTION ALLOWANCES,PAYMENTS TO CARERS,REDACTED,REDACTED
07.09.2022,CHILDREN AND FAMILIES,REDACTED PERSONAL DATA,695.12,ADOPTION ALLOWANCES,PAYMENTS TO CARERS,REDACTED,REDACTED
07.09.2022,CHILDREN AND FAMILIES,REDACTED PERSONAL DATA,293.98,ADOPTION ALLOWANCES,PAYMENTS TO CARERS,REDACTED,REDACTED
07.09.2022,CHILDREN AND FAMILIES,REDACTED PERSONAL DATA,251.94,ADOPTION ALLOWANCES,PAYMENTS TO CARERS,REDACTED,REDACTED
07.09.2022,CHILDREN AND FAMILIES,REDACTED PERSONAL DATA,652.9,ADOPTION ALLOWANCES,PAYMENTS TO CARERS,REDACTED,REDACTED
07.09.2022,CHILDREN AND FAMILIES,REDACTED PERSONAL DATA,652.9,ADOPTION ALLOWANCES,PAYMENTS TO CARERS,REDACTED,REDACTED
07.09.2022,CHILDREN AND FAMILIES,REDACTED PERSONAL DATA,712.3,ADOPTION ALLOWANCES,PAYMENTS TO CARERS,REDACTED,REDACTED
07.09.2022,CHILDREN AND FAMILIES,REDACTED PERSONAL DATA,767.68,ADOPTION ALLOWANCES,PAYMENTS TO CARERS,REDACTED,REDACTED
07.09.2022,CHILDREN AND FAMILIES,REDACTED PERSONAL DATA,400.18,ADOPTION ALLOWANCES,PAYMENTS TO CARERS,REDACTED,REDACTED
07.09.2022,CHILDREN AND FAMILIES,REDACTED PERSONAL DATA,704,ADOPTION ALLOWANCES,PAYMENTS TO CARERS,REDACTED,REDACTED
07.09.2022,CHILDREN AND FAMILIES,REDACTED PERSONAL DATA,789.7,ADOPTION ALLOWANCES,PAYMENTS TO CARERS,REDACTED,REDACTED
07.09.2022,CHILDREN AND FAMILIES,REDACTED PERSONAL DATA,588.42,ADOPTION ALLOWANCES,PAYMENTS TO CARERS,REDACTED,REDACTED
07.09.2022,CHILDREN AND FAMILIES,REDACTED PERSONAL DATA,"1,053.20",ADOPTION ALLOWANCES,PAYMENTS TO CARERS,REDACTED,REDACTED
07.09.2022,CHILDREN AND FAMILIES,REDACTED PERSONAL DATA,386,ADOPTION ALLOWANCES,PAYMENTS TO CARERS,REDACTED,REDACTED
07.09.2022,CHILDREN AND FAMILIES,REDACTED PERSONAL DATA,618.6,ADOPTION ALLOWANCES,PAYMENTS TO CARERS,REDACTED,REDACTED
07.09.2022,CHILDREN AND FAMILIES,REDACTED PERSONAL DATA,682,ADOPTION ALLOWANCES,PAYMENTS TO CARERS,REDACTED,REDACTED
07.09.2022,CHILDREN AND FAMILIES,REDACTED PERSONAL DATA,276.1,ADOPTION ALLOWANCES,PAYMENTS TO CARERS,REDACTED,REDACTED
07.09.2022,CHILDREN AND FAMILIES,REDACTED PERSONAL DATA,268.62,ADOPTION ALLOWANCES,PAYMENTS TO CARERS,REDACTED,REDACTED
07.09.2022,CHILDREN AND FAMILIES,REDACTED PERSONAL DATA,288.82,ADOPTION ALLOWANCES,PAYMENTS TO CARERS,REDACTED,REDACTED
07.09.2022,CHILDREN AND FAMILIES,REDACTED PERSONAL DATA,682,ADOPTION ALLOWANCES,PAYMENTS TO CARERS,REDACTED,REDACTED
07.09.2022,CHILDREN AND FAMILIES,REDACTED PERSONAL DATA,682,ADOPTION ALLOWANCES,PAYMENTS TO CARERS,REDACTED,REDACTED
07.09.2022,CHILDREN AND FAMILIES,REDACTED PERSONAL DATA,682,ADOPTION ALLOWANCES,PAYMENTS TO CARERS,REDACTED,REDACTED
07.09.2022,CHILDREN AND FAMILIES,REDACTED PERSONAL DATA,682,ADOPTION ALLOWANCES,PAYMENTS TO CARERS,REDACTED,REDACTED
07.09.2022,CHILDREN AND FAMILIES,REDACTED PERSONAL DATA,682,ADOPTION ALLOWANCES,PAYMENTS TO CARERS,REDACTED,REDACTED
07.09.2022,CHILDREN AND FAMILIES,REDACTED PERSONAL DATA,696,ADOPTION ALLOWANCES,PAYMENTS TO CARERS,REDACTED,REDACTED
07.09.2022,CHILDREN AND FAMILIES,REDACTED PERSONAL DATA,300,CARELEAVER UNIV SUPP,CLIENT TRANSPORT,REDACTED,REDACTED
07.09.2022,CHILDREN AND FAMILIES,REDACTED PERSONAL DATA,300,CARELEAVER UNIV SUPP,CLIENT TRANSPORT,REDACTED,REDACTED
07.09.2022,CHILDREN AND FAMILIES,REDACTED PERSONAL DATA,300,CARELEAVER UNIV SUPP,CLIENT TRANSPORT,REDACTED,REDACTED
07.09.2022,CHILDREN AND FAMILIES,REDACTED PERSONAL DATA,300,CARELEAVER UNIV SUPP,CLIENT TRANSPORT,REDACTED,REDACTED
07.09.2022,CHILDREN AND FAMILIES,REDACTED PERSONAL DATA,300,CARELEAVER UNIV SUPP,CLIENT TRANSPORT,REDACTED,REDACTED
07.09.2022,CHILDREN AND FAMILIES,REDACTED PERSONAL DATA,700,CARELEAVER UNIV SUPP,OTHER PAYMENTS FOR CLIENTS,REDACTED,REDACTED
07.09.2022,CHILDREN AND FAMILIES,REDACTED PERSONAL DATA,800,CARELEAVER UNIV SUPP,OTHER PAYMENTS FOR CLIENTS,REDACTED,REDACTED
07.09.2022,CHILDREN AND FAMILIES,REDACTED PERSONAL DATA,800,CARELEAVER UNIV SUPP,OTHER PAYMENTS FOR CLIENTS,REDACTED,REDACTED
07.09.2022,CHILDREN AND FAMILIES,REDACTED PERSONAL DATA,800,CARELEAVER UNIV SUPP,OTHER PAYMENTS FOR CLIENTS,REDACTED,REDACTED
07.09.2022,CHILDREN AND FAMILIES,REDACTED PERSONAL DATA,800,CARELEAVER UNIV SUPP,OTHER PAYMENTS FOR CLIENTS,REDACTED,REDACTED
07.09.2022,CHILDREN AND FAMILIES,A WILDERNESS WAY GROUP LIMITED,"58,001.00",CHILDREN�S RESID,RESIDENTIAL CARE,2103555156,1000088440
07.09.2022,CHILDREN AND FAMILIES,LONDON BUBBLE THEATRE COMPANY,"2,400.00",FAMILY GROUP CONF�S,EXTERNAL AGENCIES AND BODIES,5902541198,11022517
07.09.2022,CHILDREN AND FAMILIES,LONDON BUBBLE THEATRE COMPANY,"3,500.00",FAMILY GROUP CONF�S,EXTERNAL AGENCIES AND BODIES,5902541199,11022517
07.09.2022,CHILDREN AND FAMILIES,REDACTED PERSONAL DATA,300,FE SUPPORT,CLIENT TRANSPORT,REDACTED,REDACTED
07.09.2022,CHILDREN AND FAMILIES,REDACTED PERSONAL DATA,300,FE SUPPORT,CLIENT TRANSPORT,REDACTED,REDACTED
07.09.2022,CHILDREN AND FAMILIES,REDACTED PERSONAL DATA,300,FE SUPPORT,CLIENT TRANSPORT,REDACTED,REDACTED
07.09.2022,CHILDREN AND FAMILIES,REDACTED PERSONAL DATA,300,FE SUPPORT,CLIENT TRANSPORT,REDACTED,REDACTED
07.09.2022,CHILDREN AND FAMILIES,REDACTED PERSONAL DATA,300,FOSTERING ALLOWANCES,ADDITIONAL PAYMENTS TO AGENCIES/CARERS,REDACTED,REDACTED
07.09.2022,CHILDREN AND FAMILIES,REDACTED PERSONAL DATA,400,FOSTERING ALLOWANCES,ADDITIONAL PAYMENTS TO AGENCIES/CARERS,REDACTED,REDACTED
07.09.2022,CHILDREN AND FAMILIES,REDACTED PERSONAL DATA,500,FOSTERING ALLOWANCES,COMPUTER CONSUMABLES,REDACTED,REDACTED
07.09.2022,CHILDREN AND FAMILIES,REDACTED PERSONAL DATA,778,FOSTERING ALLOWANCES,PAYMENTS TO CARERS,REDACTED,REDACTED
07.09.2022,CHILDREN AND FAMILIES,REDACTED PERSONAL DATA,972,FOSTERING ALLOWANCES,PAYMENTS TO CARERS,REDACTED,REDACTED
07.09.2022,CHILDREN AND FAMILIES,REDACTED PERSONAL DATA,972,FOSTERING ALLOWANCES,PAYMENTS TO CARERS,REDACTED,REDACTED
07.09.2022,CHILDREN AND FAMILIES,REDACTED PERSONAL DATA,504,FOSTERING ALLOWANCES,PAYMENTS TO CARERS,REDACTED,REDACTED
07.09.2022,CHILDREN AND FAMILIES,REDACTED PERSONAL DATA,882,FOSTERING ALLOWANCES,PAYMENTS TO CARERS,REDACTED,REDACTED
07.09.2022,CHILDREN AND FAMILIES,REDACTED PERSONAL DATA,886.58,FOSTERING ALLOWANCES,PAYMENTS TO CARERS,REDACTED,REDACTED
07.09.2022,CHILDREN AND FAMILIES,REDACTED PERSONAL DATA,972,FOSTERING ALLOWANCES,PAYMENTS TO CARERS,REDACTED,REDACTED
07.09.2022,CHILDREN AND FAMILIES,REDACTED PERSONAL DATA,972,FOSTERING ALLOWANCES,PAYMENTS TO CARERS,REDACTED,REDACTED
07.09.2022,CHILDREN AND FAMILIES,REDACTED PERSONAL DATA,880,FOSTERING ALLOWANCES,PAYMENTS TO CARERS,REDACTED,REDACTED
07.09.2022,CHILDREN AND FAMILIES,REDACTED PERSONAL DATA,914,FOSTERING ALLOWANCES,PAYMENTS TO CARERS,REDACTED,REDACTED
07.09.2022,CHILDREN AND FAMILIES,REDACTED PERSONAL DATA,880,FOSTERING ALLOWANCES,PAYMENTS TO CARERS,REDACTED,REDACTED
07.09.2022,CHILDREN AND FAMILIES,REDACTED PERSONAL DATA,914,FOSTERING ALLOWANCES,PAYMENTS TO CARERS,REDACTED,REDACTED
07.09.2022,CHILDREN AND FAMILIES,REDACTED PERSONAL DATA,972,FOSTERING ALLOWANCES,PAYMENTS TO CARERS,REDACTED,REDACTED
07.09.2022,CHILDREN AND FAMILIES,REDACTED PERSONAL DATA,848,FOSTERING ALLOWANCES,PAYMENTS TO CARERS,REDACTED,REDACTED
07.09.2022,CHILDREN AND FAMILIES,REDACTED PERSONAL DATA,-326.57,FOSTERING ALLOWANCES,PAYMENTS TO CARERS,REDACTED,REDACTED
07.09.2022,CHILDREN AND FAMILIES,REDACTED PERSONAL DATA,"1,111.43",FOSTERING ALLOWANCES,PAYMENTS TO CARERS,REDACTED,REDACTED
07.09.2022,CHILDREN AND FAMILIES,REDACTED PERSONAL DATA,"1,222.57",FOSTERING ALLOWANCES,PAYMENTS TO CARERS,REDACTED,REDACTED
07.09.2022,CHILDREN AND FAMILIES,REDACTED PERSONAL DATA,776.01,FOSTERING ALLOWANCES,PAYMENTS TO CARERS,REDACTED,REDACTED
07.09.2022,CHILDREN AND FAMILIES,REDACTED PERSONAL DATA,"1,632.00",FOSTERING ALLOWANCES,PAYMENTS TO CARERS,REDACTED,REDACTED
07.09.2022,CHILDREN AND FAMILIES,REDACTED PERSONAL DATA,882,FOSTERING ALLOWANCES,PAYMENTS TO CARERS,REDACTED,REDACTED
07.09.2022,CHILDREN AND FAMILIES,REDACTED PERSONAL DATA,"1,632.00",FOSTERING ALLOWANCES,PAYMENTS TO CARERS,REDACTED,REDACTED
07.09.2022,CHILDREN AND FAMILIES,REDACTED PERSONAL DATA,882,FOSTERING ALLOWANCES,PAYMENTS TO CARERS,REDACTED,REDACTED
07.09.2022,CHILDREN AND FAMILIES,REDACTED PERSONAL DATA,972,FOSTERING ALLOWANCES,PAYMENTS TO CARERS,REDACTED,REDACTED
07.09.2022,CHILDREN AND FAMILIES,REDACTED PERSONAL DATA,972,FOSTERING ALLOWANCES,PAYMENTS TO CARERS,REDACTED,REDACTED
07.09.2022,CHILDREN AND FAMILIES,REDACTED PERSONAL DATA,880,FOSTERING ALLOWANCES,PAYMENTS TO CARERS,REDACTED,REDACTED
07.09.2022,CHILDREN AND FAMILIES,REDACTED PERSONAL DATA,778,FOSTERING ALLOWANCES,PAYMENTS TO CARERS,REDACTED,REDACTED
07.09.2022,CHILDREN AND FAMILIES,REDACTED PERSONAL DATA,880,FOSTERING ALLOWANCES,PAYMENTS TO CARERS,REDACTED,REDACTED
07.09.2022,CHILDREN AND FAMILIES,REDACTED PERSONAL DATA,880,FOSTERING ALLOWANCES,PAYMENTS TO CARERS,REDACTED,REDACTED
07.09.2022,CHILDREN AND FAMILIES,REDACTED PERSONAL DATA,972,FOSTERING ALLOWANCES,PAYMENTS TO CARERS,REDACTED,REDACTED
07.09.2022,CHILDREN AND FAMILIES,REDACTED PERSONAL DATA,880,FOSTERING ALLOWANCES,PAYMENTS TO CARERS,REDACTED,REDACTED
07.09.2022,CHILDREN AND FAMILIES,REDACTED PERSONAL DATA,880,FOSTERING ALLOWANCES,PAYMENTS TO CARERS,REDACTED,REDACTED
07.09.2022,CHILDREN AND FAMILIES,REDACTED PERSONAL DATA,914,FOSTERING ALLOWANCES,PAYMENTS TO CARERS,REDACTED,REDACTED
07.09.2022,CHILDREN AND FAMILIES,REDACTED PERSONAL DATA,920.57,FOSTERING ALLOWANCES,PAYMENTS TO CARERS,REDACTED,REDACTED
07.09.2022,CHILDREN AND FAMILIES,REDACTED PERSONAL DATA,882,FOSTERING ALLOWANCES,PAYMENTS TO CARERS,REDACTED,REDACTED
07.09.2022,CHILDREN AND FAMILIES,REDACTED PERSONAL DATA,660,FOSTERING ALLOWANCES,PAYMENTS TO CARERS,REDACTED,REDACTED
07.09.2022,CHILDREN AND FAMILIES,REDACTED PERSONAL DATA,880,FOSTERING ALLOWANCES,PAYMENTS TO CARERS,REDACTED,REDACTED
07.09.2022,CHILDREN AND FAMILIES,REDACTED PERSONAL DATA,880,FOSTERING ALLOWANCES,PAYMENTS TO CARERS,REDACTED,REDACTED
07.09.2022,CHILDREN AND FAMILIES,REDACTED PERSONAL DATA,972,FOSTERING ALLOWANCES,PAYMENTS TO CARERS,REDACTED,REDACTED
07.09.2022,CHILDREN AND FAMILIES,REDACTED PERSONAL DATA,"1,632.00",FOSTERING ALLOWANCES,PAYMENTS TO CARERS,REDACTED,REDACTED
07.09.2022,CHILDREN AND FAMILIES,REDACTED PERSONAL DATA,"1,632.00",FOSTERING ALLOWANCES,PAYMENTS TO CARERS,REDACTED,REDACTED
07.09.2022,CHILDREN AND FAMILIES,REDACTED PERSONAL DATA,938,FOSTERING ALLOWANCES,PAYMENTS TO CARERS,REDACTED,REDACTED
07.09.2022,CHILDREN AND FAMILIES,REDACTED PERSONAL DATA,914,FOSTERING ALLOWANCES,PAYMENTS TO CARERS,REDACTED,REDACTED
07.09.2022,CHILDREN AND FAMILIES,REDACTED PERSONAL DATA,914,FOSTERING ALLOWANCES,PAYMENTS TO CARERS,REDACTED,REDACTED
07.09.2022,CHILDREN AND FAMILIES,REDACTED PERSONAL DATA,726,FOSTERING ALLOWANCES,PAYMENTS TO CARERS,REDACTED,REDACTED
07.09.2022,CHILDREN AND FAMILIES,REDACTED PERSONAL DATA,744,FOSTERING ALLOWANCES,PAYMENTS TO CARERS,REDACTED,REDACTED
07.09.2022,CHILDREN AND FAMILIES,REDACTED PERSONAL DATA,696,FOSTERING ALLOWANCES,PAYMENTS TO CARERS,REDACTED,REDACTED
07.09.2022,CHILDREN AND FAMILIES,REDACTED PERSONAL DATA,848,FOSTERING ALLOWANCES,PAYMENTS TO CARERS,REDACTED,REDACTED
07.09.2022,CHILDREN AND FAMILIES,REDACTED PERSONAL DATA,850,FOSTERING ALLOWANCES,PAYMENTS TO CARERS,REDACTED,REDACTED
07.09.2022,CHILDREN AND FAMILIES,REDACTED PERSONAL DATA,880,FOSTERING ALLOWANCES,PAYMENTS TO CARERS,REDACTED,REDACTED
07.09.2022,CHILDREN AND FAMILIES,REDACTED PERSONAL DATA,972,FOSTERING ALLOWANCES,PAYMENTS TO CARERS,REDACTED,REDACTED
07.09.2022,CHILDREN AND FAMILIES,REDACTED PERSONAL DATA,"3,730.00",FOSTERING ALLOWANCES,PAYMENTS TO CARERS,REDACTED,REDACTED
07.09.2022,CHILDREN AND FAMILIES,REDACTED PERSONAL DATA,-450.38,FOSTERING ALLOWANCES,PAYMENTS TO CARERS,REDACTED,REDACTED
07.09.2022,CHILDREN AND FAMILIES,REDACTED PERSONAL DATA,972,FOSTERING ALLOWANCES,PAYMENTS TO CARERS,REDACTED,REDACTED
07.09.2022,CHILDREN AND FAMILIES,REDACTED PERSONAL DATA,880,FOSTERING ALLOWANCES,PAYMENTS TO CARERS,REDACTED,REDACTED
07.09.2022,CHILDREN AND FAMILIES,REDACTED PERSONAL DATA,726,FOSTERING ALLOWANCES,PAYMENTS TO CARERS,REDACTED,REDACTED
07.09.2022,CHILDREN AND FAMILIES,REDACTED PERSONAL DATA,914,FOSTERING ALLOWANCES,PAYMENTS TO CARERS,REDACTED,REDACTED
07.09.2022,CHILDREN AND FAMILIES,REDACTED PERSONAL DATA,880,FOSTERING ALLOWANCES,PAYMENTS TO CARERS,REDACTED,REDACTED
07.09.2022,CHILDREN AND FAMILIES,REDACTED PERSONAL DATA,972,FOSTERING ALLOWANCES,PAYMENTS TO CARERS,REDACTED,REDACTED
07.09.2022,CHILDREN AND FAMILIES,REDACTED PERSONAL DATA,"1,694.00",FOSTERING ALLOWANCES,PAYMENTS TO CARERS,REDACTED,REDACTED
07.09.2022,CHILDREN AND FAMILIES,REDACTED PERSONAL DATA,880,FOSTERING ALLOWANCES,PAYMENTS TO CARERS,REDACTED,REDACTED
07.09.2022,CHILDREN AND FAMILIES,REDACTED PERSONAL DATA,"2,074.28",FOSTERING ALLOWANCES,PAYMENTS TO CARERS,REDACTED,REDACTED
07.09.2022,CHILDREN AND FAMILIES,REDACTED PERSONAL DATA,726,FOSTERING ALLOWANCES,PAYMENTS TO CARERS,REDACTED,REDACTED
07.09.2022,CHILDREN AND FAMILIES,REDACTED PERSONAL DATA,882,FOSTERING ALLOWANCES,PAYMENTS TO CARERS,REDACTED,REDACTED
07.09.2022,CHILDREN AND FAMILIES,REDACTED PERSONAL DATA,880,FOSTERING ALLOWANCES,PAYMENTS TO CARERS,REDACTED,REDACTED
07.09.2022,CHILDREN AND FAMILIES,REDACTED PERSONAL DATA,972,FOSTERING ALLOWANCES,PAYMENTS TO CARERS,REDACTED,REDACTED
07.09.2022,CHILDREN AND FAMILIES,REDACTED PERSONAL DATA,726.02,FOSTERING ALLOWANCES,PAYMENTS TO CARERS,REDACTED,REDACTED
07.09.2022,CHILDREN AND FAMILIES,REDACTED PERSONAL DATA,778,FOSTERING ALLOWANCES,PAYMENTS TO CARERS,REDACTED,REDACTED
07.09.2022,CHILDREN AND FAMILIES,REDACTED PERSONAL DATA,882,FOSTERING ALLOWANCES,PAYMENTS TO CARERS,REDACTED,REDACTED
07.09.2022,CHILDREN AND FAMILIES,REDACTED PERSONAL DATA,972,FOSTERING ALLOWANCES,PAYMENTS TO CARERS,REDACTED,REDACTED
07.09.2022,CHILDREN AND FAMILIES,REDACTED PERSONAL DATA,882,FOSTERING ALLOWANCES,PAYMENTS TO CARERS,REDACTED,REDACTED
07.09.2022,CHILDREN AND FAMILIES,REDACTED PERSONAL DATA,726,FOSTERING ALLOWANCES,PAYMENTS TO CARERS,REDACTED,REDACTED
07.09.2022,CHILDREN AND FAMILIES,REDACTED PERSONAL DATA,850,FOSTERING ALLOWANCES,PAYMENTS TO CARERS,REDACTED,REDACTED
07.09.2022,CHILDREN AND FAMILIES,REDACTED PERSONAL DATA,972,FOSTERING ALLOWANCES,PAYMENTS TO CARERS,REDACTED,REDACTED
07.09.2022,CHILDREN AND FAMILIES,REDACTED PERSONAL DATA,882,FOSTERING ALLOWANCES,PAYMENTS TO CARERS,REDACTED,REDACTED
07.09.2022,CHILDREN AND FAMILIES,REDACTED PERSONAL DATA,778,FOSTERING ALLOWANCES,PAYMENTS TO CARERS,REDACTED,REDACTED
07.09.2022,CHILDREN AND FAMILIES,REDACTED PERSONAL DATA,880,FOSTERING ALLOWANCES,PAYMENTS TO CARERS,REDACTED,REDACTED
07.09.2022,CHILDREN AND FAMILIES,REDACTED PERSONAL DATA,882,FOSTERING ALLOWANCES,PAYMENTS TO CARERS,REDACTED,REDACTED
07.09.2022,CHILDREN AND FAMILIES,REDACTED PERSONAL DATA,746,FOSTERING ALLOWANCES,PAYMENTS TO CARERS,REDACTED,REDACTED
07.09.2022,CHILDREN AND FAMILIES,REDACTED PERSONAL DATA,746,FOSTERING ALLOWANCES,PAYMENTS TO CARERS,REDACTED,REDACTED
07.09.2022,CHILDREN AND FAMILIES,REDACTED PERSONAL DATA,880,FOSTERING ALLOWANCES,PAYMENTS TO CARERS,REDACTED,REDACTED
07.09.2022,CHILDREN AND FAMILIES,REDACTED PERSONAL DATA,880,FOSTERING ALLOWANCES,PAYMENTS TO CARERS,REDACTED,REDACTED
07.09.2022,CHILDREN AND FAMILIES,REDACTED PERSONAL DATA,931.57,FOSTERING ALLOWANCES,PAYMENTS TO CARERS,REDACTED,REDACTED
07.09.2022,CHILDREN AND FAMILIES,REDACTED PERSONAL DATA,880,FOSTERING ALLOWANCES,PAYMENTS TO CARERS,REDACTED,REDACTED
07.09.2022,CHILDREN AND FAMILIES,REDACTED PERSONAL DATA,"1,080.00",FOSTERING ALLOWANCES,PAYMENTS TO CARERS,REDACTED,REDACTED
07.09.2022,CHILDREN AND FAMILIES,REDACTED PERSONAL DATA,880,FOSTERING ALLOWANCES,PAYMENTS TO CARERS,REDACTED,REDACTED
07.09.2022,CHILDREN AND FAMILIES,REDACTED PERSONAL DATA,778,FOSTERING ALLOWANCES,PAYMENTS TO CARERS,REDACTED,REDACTED
07.09.2022,CHILDREN AND FAMILIES,REDACTED PERSONAL DATA,880,FOSTERING ALLOWANCES,PAYMENTS TO CARERS,REDACTED,REDACTED
07.09.2022,CHILDREN AND FAMILIES,REDACTED PERSONAL DATA,-377.14,FOSTERING ALLOWANCES,PAYMENTS TO CARERS,REDACTED,REDACTED
07.09.2022,CHILDREN AND FAMILIES,REDACTED PERSONAL DATA,400,FOSTERING ALLOWANCES,PAYMENTS TO CARERS,REDACTED,REDACTED
07.09.2022,CHILDREN AND FAMILIES,REDACTED PERSONAL DATA,880,FOSTERING ALLOWANCES,PAYMENTS TO CARERS,REDACTED,REDACTED
07.09.2022,CHILDREN AND FAMILIES,REDACTED PERSONAL DATA,880,FOSTERING ALLOWANCES,PAYMENTS TO CARERS,REDACTED,REDACTED
07.09.2022,CHILDREN AND FAMILIES,REDACTED PERSONAL DATA,972,FOSTERING ALLOWANCES,PAYMENTS TO CARERS,REDACTED,REDACTED
07.09.2022,CHILDREN AND FAMILIES,REDACTED PERSONAL DATA,880,FOSTERING ALLOWANCES,PAYMENTS TO CARERS,REDACTED,REDACTED
07.09.2022,CHILDREN AND FAMILIES,REDACTED PERSONAL DATA,850,FOSTERING ALLOWANCES,PAYMENTS TO CARERS,REDACTED,REDACTED
07.09.2022,CHILDREN AND FAMILIES,REDACTED PERSONAL DATA,778,FOSTERING ALLOWANCES,PAYMENTS TO CARERS,REDACTED,REDACTED
07.09.2022,CHILDREN AND FAMILIES,REDACTED PERSONAL DATA,778,FOSTERING ALLOWANCES,PAYMENTS TO CARERS,REDACTED,REDACTED
07.09.2022,CHILDREN AND FAMILIES,REDACTED PERSONAL DATA,850,FOSTERING ALLOWANCES,PAYMENTS TO CARERS,REDACTED,REDACTED
07.09.2022,CHILDREN AND FAMILIES,REDACTED PERSONAL DATA,880,FOSTERING ALLOWANCES,PAYMENTS TO CARERS,REDACTED,REDACTED
07.09.2022,CHILDREN AND FAMILIES,REDACTED PERSONAL DATA,880,FOSTERING ALLOWANCES,PAYMENTS TO CARERS,REDACTED,REDACTED
07.09.2022,CHILDREN AND FAMILIES,REDACTED PERSONAL DATA,377.15,FOSTERING ALLOWANCES,PAYMENTS TO CARERS,REDACTED,REDACTED
07.09.2022,CHILDREN AND FAMILIES,REDACTED PERSONAL DATA,972,FOSTERING ALLOWANCES,PAYMENTS TO CARERS,REDACTED,REDACTED
07.09.2022,CHILDREN AND FAMILIES,REDACTED PERSONAL DATA,778,FOSTERING ALLOWANCES,PAYMENTS TO CARERS,REDACTED,REDACTED
07.09.2022,CHILDREN AND FAMILIES,REDACTED PERSONAL DATA,880,FOSTERING ALLOWANCES,PAYMENTS TO CARERS,REDACTED,REDACTED
07.09.2022,CHILDREN AND FAMILIES,REDACTED PERSONAL DATA,882,FOSTERING ALLOWANCES,PAYMENTS TO CARERS,REDACTED,REDACTED
07.09.2022,CHILDREN AND FAMILIES,REDACTED PERSONAL DATA,972,FOSTERING ALLOWANCES,PAYMENTS TO CARERS,REDACTED,REDACTED
07.09.2022,CHILDREN AND FAMILIES,REDACTED PERSONAL DATA,-440,FOSTERING ALLOWANCES,PAYMENTS TO CARERS,REDACTED,REDACTED
07.09.2022,CHILDREN AND FAMILIES,REDACTED PERSONAL DATA,624.86,FOSTERING ALLOWANCES,PAYMENTS TO CARERS,REDACTED,REDACTED
07.09.2022,CHILDREN AND FAMILIES,REDACTED PERSONAL DATA,"2,074.28",FOSTERING ALLOWANCES,PAYMENTS TO CARERS,REDACTED,REDACTED
07.09.2022,CHILDREN AND FAMILIES,REDACTED PERSONAL DATA,778,FOSTERING ALLOWANCES,PAYMENTS TO CARERS,REDACTED,REDACTED
07.09.2022,CHILDREN AND FAMILIES,REDACTED PERSONAL DATA,726,FOSTERING ALLOWANCES,PAYMENTS TO CARERS,REDACTED,REDACTED
07.09.2022,CHILDREN AND FAMILIES,REDACTED PERSONAL DATA,726,FOSTERING ALLOWANCES,PAYMENTS TO CARERS,REDACTED,REDACTED
07.09.2022,CHILDREN AND FAMILIES,REDACTED PERSONAL DATA,778,FOSTERING ALLOWANCES,PAYMENTS TO CARERS,REDACTED,REDACTED
07.09.2022,CHILDREN AND FAMILIES,REDACTED PERSONAL DATA,"1,616.00",FOSTERING ALLOWANCES,PAYMENTS TO CARERS,REDACTED,REDACTED
07.09.2022,CHILDREN AND FAMILIES,REDACTED PERSONAL DATA,"1,292.00",FOSTERING ALLOWANCES,PAYMENTS TO CARERS,REDACTED,REDACTED
07.09.2022,CHILDREN AND FAMILIES,REDACTED PERSONAL DATA,880,FOSTERING ALLOWANCES,PAYMENTS TO CARERS,REDACTED,REDACTED
07.09.2022,CHILDREN AND FAMILIES,REDACTED PERSONAL DATA,888.43,FOSTERING ALLOWANCES,PAYMENTS TO CARERS,REDACTED,REDACTED
07.09.2022,CHILDREN AND FAMILIES,REDACTED PERSONAL DATA,"1,632.00",FOSTERING ALLOWANCES,PAYMENTS TO CARERS,REDACTED,REDACTED
07.09.2022,CHILDREN AND FAMILIES,REDACTED PERSONAL DATA,972,FOSTERING ALLOWANCES,PAYMENTS TO CARERS,REDACTED,REDACTED
07.09.2022,CHILDREN AND FAMILIES,REDACTED PERSONAL DATA,882,FOSTERING ALLOWANCES,PAYMENTS TO CARERS,REDACTED,REDACTED
07.09.2022,CHILDREN AND FAMILIES,REDACTED PERSONAL DATA,"2,174.28",FOSTERING ALLOWANCES,PAYMENTS TO CARERS,REDACTED,REDACTED
07.09.2022,CHILDREN AND FAMILIES,REDACTED PERSONAL DATA,778,FOSTERING ALLOWANCES,PAYMENTS TO CARERS,REDACTED,REDACTED
07.09.2022,CHILDREN AND FAMILIES,REDACTED PERSONAL DATA,"1,713.10",FOSTERING ALLOWANCES,PAYMENTS TO CARERS,REDACTED,REDACTED
07.09.2022,CHILDREN AND FAMILIES,REDACTED PERSONAL DATA,848,FOSTERING ALLOWANCES,PAYMENTS TO CARERS,REDACTED,REDACTED
07.09.2022,CHILDREN AND FAMILIES,REDACTED PERSONAL DATA,972,FOSTERING ALLOWANCES,PAYMENTS TO CARERS,REDACTED,REDACTED
07.09.2022,CHILDREN AND FAMILIES,REDACTED PERSONAL DATA,"1,700.00",FOSTERING ALLOWANCES,PAYMENTS TO CARERS,REDACTED,REDACTED
07.09.2022,CHILDREN AND FAMILIES,REDACTED PERSONAL DATA,880,FOSTERING ALLOWANCES,PAYMENTS TO CARERS,REDACTED,REDACTED
07.09.2022,CHILDREN AND FAMILIES,REDACTED PERSONAL DATA,848,FOSTERING ALLOWANCES,PAYMENTS TO CARERS,REDACTED,REDACTED
07.09.2022,CHILDREN AND FAMILIES,REDACTED PERSONAL DATA,746,FOSTERING ALLOWANCES,PAYMENTS TO CARERS,REDACTED,REDACTED
07.09.2022,CHILDREN AND FAMILIES,REDACTED PERSONAL DATA,696,FOSTERING ALLOWANCES,PAYMENTS TO CARERS,REDACTED,REDACTED
07.09.2022,CHILDREN AND FAMILIES,REDACTED PERSONAL DATA,850,FOSTERING ALLOWANCES,PAYMENTS TO CARERS,REDACTED,REDACTED
07.09.2022,CHILDREN AND FAMILIES,REDACTED PERSONAL DATA,-364.29,FOSTERING ALLOWANCES,PAYMENTS TO CARERS,REDACTED,REDACTED
07.09.2022,CHILDREN AND FAMILIES,REDACTED PERSONAL DATA,529.29,FOSTERING ALLOWANCES,PAYMENTS TO CARERS,REDACTED,REDACTED
07.09.2022,CHILDREN AND FAMILIES,REDACTED PERSONAL DATA,824,FOSTERING ALLOWANCES,PAYMENTS TO CARERS,REDACTED,REDACTED
07.09.2022,CHILDREN AND FAMILIES,REDACTED PERSONAL DATA,"1,070.16",FOSTERING ALLOWANCES,PAYMENTS TO CARERS,REDACTED,REDACTED
07.09.2022,CHILDREN AND FAMILIES,REDACTED PERSONAL DATA,850,FOSTERING ALLOWANCES,PAYMENTS TO CARERS,REDACTED,REDACTED
07.09.2022,CHILDREN AND FAMILIES,REDACTED PERSONAL DATA,938,FOSTERING ALLOWANCES,PAYMENTS TO CARERS,REDACTED,REDACTED
07.09.2022,CHILDREN AND FAMILIES,REDACTED PERSONAL DATA,348,FOSTERING ALLOWANCES,PAYMENTS TO CARERS,REDACTED,REDACTED
07.09.2022,CHILDREN AND FAMILIES,REDACTED PERSONAL DATA,696,FOSTERING ALLOWANCES,PAYMENTS TO CARERS,REDACTED,REDACTED
07.09.2022,CHILDREN AND FAMILIES,REDACTED PERSONAL DATA,696,FOSTERING ALLOWANCES,PAYMENTS TO CARERS,REDACTED,REDACTED
07.09.2022,CHILDREN AND FAMILIES,REDACTED PERSONAL DATA,850,FOSTERING ALLOWANCES,PAYMENTS TO CARERS,REDACTED,REDACTED
07.09.2022,CHILDREN AND FAMILIES,REDACTED PERSONAL DATA,746,FOSTERING ALLOWANCES,PAYMENTS TO CARERS,REDACTED,REDACTED
07.09.2022,CHILDREN AND FAMILIES,REDACTED PERSONAL DATA,-500,FOSTERING ALLOWANCES,PAYMENTS TO CARERS,REDACTED,REDACTED
07.09.2022,CHILDREN AND FAMILIES,BANYA FAMILY PLACEMENT AGENCY LTD,375,FRIENDS & FAMILY FOSTERING,EXTERNAL AGENCIES AND BODIES,2103555284,11328315
07.09.2022,CHILDREN AND FAMILIES,BANYA FAMILY PLACEMENT AGENCY LTD,"3,427.10",FRIENDS & FAMILY FOSTERING,EXTERNAL AGENCIES AND BODIES,2103555278,11328315
07.09.2022,CHILDREN AND FAMILIES,BANYA FAMILY PLACEMENT AGENCY LTD,"3,536.89",FRIENDS & FAMILY FOSTERING,EXTERNAL AGENCIES AND BODIES,2103555279,11328315
07.09.2022,CHILDREN AND FAMILIES,BANYA FAMILY PLACEMENT AGENCY LTD,"3,563.45",FRIENDS & FAMILY FOSTERING,EXTERNAL AGENCIES AND BODIES,2103555281,11328315
07.09.2022,CHILDREN AND FAMILIES,BANYA FAMILY PLACEMENT AGENCY LTD,"3,563.45",FRIENDS & FAMILY FOSTERING,EXTERNAL AGENCIES AND BODIES,2103555282,11328315
07.09.2022,CHILDREN AND FAMILIES,BANYA FAMILY PLACEMENT AGENCY LTD,"3,733.38",FRIENDS & FAMILY FOSTERING,EXTERNAL AGENCIES AND BODIES,2103555280,11328315
07.09.2022,CHILDREN AND FAMILIES,BANYA FAMILY PLACEMENT AGENCY LTD,"4,479.93",FRIENDS & FAMILY FOSTERING,EXTERNAL AGENCIES AND BODIES,2103555283,11328315
07.09.2022,CHILDREN AND FAMILIES,CHRYSALIS CARE,"6,191.32",FRIENDS & FAMILY FOSTERING,EXTERNAL AGENCIES AND BODIES,2103555167,1000028987
07.09.2022,CHILDREN AND FAMILIES,NATIONAL FOSTERING AGENCY LTD,"3,317.00",FRIENDS & FAMILY FOSTERING,EXTERNAL AGENCIES AND BODIES,2103555165,1000038868
07.09.2022,CHILDREN AND FAMILIES,NATIONAL FOSTERING AGENCY LTD,"3,317.00",FRIENDS & FAMILY FOSTERING,EXTERNAL AGENCIES AND BODIES,2103555169,1000038868
07.09.2022,CHILDREN AND FAMILIES,NATIONAL FOSTERING AGENCY LTD,"3,321.34",FRIENDS & FAMILY FOSTERING,EXTERNAL AGENCIES AND BODIES,2103555170,1000038868
07.09.2022,CHILDREN AND FAMILIES,NATIONAL FOSTERING AGENCY LTD,"3,501.14",FRIENDS & FAMILY FOSTERING,EXTERNAL AGENCIES AND BODIES,2103555158,1000038868
07.09.2022,CHILDREN AND FAMILIES,NATIONAL FOSTERING AGENCY LTD,"3,598.17",FRIENDS & FAMILY FOSTERING,EXTERNAL AGENCIES AND BODIES,2103555160,1000038868
07.09.2022,CHILDREN AND FAMILIES,NATIONAL FOSTERING AGENCY LTD,"3,981.33",FRIENDS & FAMILY FOSTERING,EXTERNAL AGENCIES AND BODIES,2103555161,1000038868
07.09.2022,CHILDREN AND FAMILIES,NATIONAL FOSTERING AGENCY LTD,"6,009.35",FRIENDS & FAMILY FOSTERING,EXTERNAL AGENCIES AND BODIES,2103555163,1000038868
07.09.2022,CHILDREN AND FAMILIES,NATIONAL FOSTERING AGENCY LTD,"6,067.01",FRIENDS & FAMILY FOSTERING,EXTERNAL AGENCIES AND BODIES,2103555164,1000038868
07.09.2022,CHILDREN AND FAMILIES,NATIONAL FOSTERING AGENCY LTD,"6,453.34",FRIENDS & FAMILY FOSTERING,EXTERNAL AGENCIES AND BODIES,2103555162,1000038868
07.09.2022,CHILDREN AND FAMILIES,COMPASS FOSTERING SOUTH LTD,"-3,306.00",FRIENDS & FAMILY FOSTERING,EXTERNAL AGENCIES AND BODIES,2103555159,1000073772
07.09.2022,CHILDREN AND FAMILIES,COMPASS FOSTERING SOUTH LTD,"4,270.25",FRIENDS & FAMILY FOSTERING,EXTERNAL AGENCIES AND BODIES,2103555157,1000073772
07.09.2022,CHILDREN AND FAMILIES,FAMILY FIRST FOSTERING LTD,"4,074.29",FRIENDS & FAMILY FOSTERING,EXTERNAL AGENCIES AND BODIES,2103555166,1000080631
07.09.2022,CHILDREN AND FAMILIES,FAMILY FIRST FOSTERING LTD,"4,074.29",FRIENDS & FAMILY FOSTERING,EXTERNAL AGENCIES AND BODIES,2103555168,1000080631
07.09.2022,CHILDREN AND FAMILIES,REDACTED PERSONAL DATA,861.43,FRIENDS &FAMILY FOST,OTHER PAYMENTS FOR CLIENTS,REDACTED,REDACTED
07.09.2022,CHILDREN AND FAMILIES,REDACTED PERSONAL DATA,362,FRIENDS &FAMILY FOST,PAYMENTS TO CARERS,REDACTED,REDACTED
07.09.2022,CHILDREN AND FAMILIES,REDACTED PERSONAL DATA,850,FRIENDS &FAMILY FOST,PAYMENTS TO CARERS,REDACTED,REDACTED
07.09.2022,CHILDREN AND FAMILIES,REDACTED PERSONAL DATA,850,FRIENDS &FAMILY FOST,PAYMENTS TO CARERS,REDACTED,REDACTED
07.09.2022,CHILDREN AND FAMILIES,REDACTED PERSONAL DATA,746,FRIENDS &FAMILY FOST,PAYMENTS TO CARERS,REDACTED,REDACTED
07.09.2022,CHILDREN AND FAMILIES,REDACTED PERSONAL DATA,850,FRIENDS &FAMILY FOST,PAYMENTS TO CARERS,REDACTED,REDACTED
07.09.2022,CHILDREN AND FAMILIES,REDACTED PERSONAL DATA,938,FRIENDS &FAMILY FOST,PAYMENTS TO CARERS,REDACTED,REDACTED
07.09.2022,CHILDREN AND FAMILIES,REDACTED PERSONAL DATA,850,FRIENDS &FAMILY FOST,PAYMENTS TO CARERS,REDACTED,REDACTED
07.09.2022,CHILDREN AND FAMILIES,REDACTED PERSONAL DATA,938,FRIENDS &FAMILY FOST,PAYMENTS TO CARERS,REDACTED,REDACTED
07.09.2022,CHILDREN AND FAMILIES,REDACTED PERSONAL DATA,880,FRIENDS &FAMILY FOST,PAYMENTS TO CARERS,REDACTED,REDACTED
07.09.2022,CHILDREN AND FAMILIES,REDACTED PERSONAL DATA,882,FRIENDS &FAMILY FOST,PAYMENTS TO CARERS,REDACTED,REDACTED
07.09.2022,CHILDREN AND FAMILIES,REDACTED PERSONAL DATA,850,FRIENDS &FAMILY FOST,PAYMENTS TO CARERS,REDACTED,REDACTED
07.09.2022,CHILDREN AND FAMILIES,REDACTED PERSONAL DATA,850,FRIENDS &FAMILY FOST,PAYMENTS TO CARERS,REDACTED,REDACTED
07.09.2022,CHILDREN AND FAMILIES,REDACTED PERSONAL DATA,480,FRIENDS &FAMILY FOST,PAYMENTS TO CARERS,REDACTED,REDACTED
07.09.2022,CHILDREN AND FAMILIES,REDACTED PERSONAL DATA,848,FRIENDS &FAMILY FOST,PAYMENTS TO CARERS,REDACTED,REDACTED
07.09.2022,CHILDREN AND FAMILIES,REDACTED PERSONAL DATA,850,FRIENDS &FAMILY FOST,PAYMENTS TO CARERS,REDACTED,REDACTED
07.09.2022,CHILDREN AND FAMILIES,REDACTED PERSONAL DATA,938,FRIENDS &FAMILY FOST,PAYMENTS TO CARERS,REDACTED,REDACTED
07.09.2022,CHILDREN AND FAMILIES,REDACTED PERSONAL DATA,746,FRIENDS &FAMILY FOST,PAYMENTS TO CARERS,REDACTED,REDACTED
07.09.2022,CHILDREN AND FAMILIES,REDACTED PERSONAL DATA,850,FRIENDS &FAMILY FOST,PAYMENTS TO CARERS,REDACTED,REDACTED
07.09.2022,CHILDREN AND FAMILIES,REDACTED PERSONAL DATA,850,FRIENDS &FAMILY FOST,PAYMENTS TO CARERS,REDACTED,REDACTED
07.09.2022,CHILDREN AND FAMILIES,REDACTED PERSONAL DATA,746,FRIENDS &FAMILY FOST,PAYMENTS TO CARERS,REDACTED,REDACTED
07.09.2022,CHILDREN AND FAMILIES,REDACTED PERSONAL DATA,850,FRIENDS &FAMILY FOST,PAYMENTS TO CARERS,REDACTED,REDACTED
07.09.2022,CHILDREN AND FAMILIES,REDACTED PERSONAL DATA,848,FRIENDS &FAMILY FOST,PAYMENTS TO CARERS,REDACTED,REDACTED
07.09.2022,CHILDREN AND FAMILIES,REDACTED PERSONAL DATA,938,FRIENDS &FAMILY FOST,PAYMENTS TO CARERS,REDACTED,REDACTED
07.09.2022,CHILDREN AND FAMILIES,REDACTED PERSONAL DATA,850,FRIENDS &FAMILY FOST,PAYMENTS TO CARERS,REDACTED,REDACTED
07.09.2022,CHILDREN AND FAMILIES,REDACTED PERSONAL DATA,850,FRIENDS &FAMILY FOST,PAYMENTS TO CARERS,REDACTED,REDACTED
07.09.2022,CHILDREN AND FAMILIES,REDACTED PERSONAL DATA,746,FRIENDS &FAMILY FOST,PAYMENTS TO CARERS,REDACTED,REDACTED
07.09.2022,CHILDREN AND FAMILIES,REDACTED PERSONAL DATA,850,FRIENDS &FAMILY FOST,PAYMENTS TO CARERS,REDACTED,REDACTED
07.09.2022,CHILDREN AND FAMILIES,REDACTED PERSONAL DATA,824,FRIENDS &FAMILY FOST,PAYMENTS TO CARERS,REDACTED,REDACTED
07.09.2022,CHILDREN AND FAMILIES,REDACTED PERSONAL DATA,850,FRIENDS &FAMILY FOST,PAYMENTS TO CARERS,REDACTED,REDACTED
07.09.2022,CHILDREN AND FAMILIES,REDACTED PERSONAL DATA,"4,186.29",FRIENDS &FAMILY FOST,PAYMENTS TO CARERS,REDACTED,REDACTED
07.09.2022,CHILDREN AND FAMILIES,REDACTED PERSONAL DATA,850,FRIENDS &FAMILY FOST,PAYMENTS TO CARERS,REDACTED,REDACTED
07.09.2022,CHILDREN AND FAMILIES,REDACTED PERSONAL DATA,850,FRIENDS &FAMILY FOST,PAYMENTS TO CARERS,REDACTED,REDACTED
07.09.2022,CHILDREN AND FAMILIES,REDACTED PERSONAL DATA,696,FRIENDS &FAMILY FOST,PAYMENTS TO CARERS,REDACTED,REDACTED
07.09.2022,CHILDREN AND FAMILIES,REDACTED PERSONAL DATA,746,FRIENDS &FAMILY FOST,PAYMENTS TO CARERS,REDACTED,REDACTED
07.09.2022,CHILDREN AND FAMILIES,REDACTED PERSONAL DATA,746,FRIENDS &FAMILY FOST,PAYMENTS TO CARERS,REDACTED,REDACTED
07.09.2022,CHILDREN AND FAMILIES,REDACTED PERSONAL DATA,850,FRIENDS &FAMILY FOST,PAYMENTS TO CARERS,REDACTED,REDACTED
07.09.2022,CHILDREN AND FAMILIES,REDACTED PERSONAL DATA,362,FRIENDS &FAMILY FOST,PAYMENTS TO CARERS,REDACTED,REDACTED
07.09.2022,CHILDREN AND FAMILIES,REDACTED PERSONAL DATA,850,FRIENDS &FAMILY FOST,PAYMENTS TO CARERS,REDACTED,REDACTED
07.09.2022,CHILDREN AND FAMILIES,REDACTED PERSONAL DATA,850,FRIENDS &FAMILY FOST,PAYMENTS TO CARERS,REDACTED,REDACTED
07.09.2022,CHILDREN AND FAMILIES,REDACTED PERSONAL DATA,850,FRIENDS &FAMILY FOST,PAYMENTS TO CARERS,REDACTED,REDACTED
07.09.2022,CHILDREN AND FAMILIES,REDACTED PERSONAL DATA,696,FRIENDS &FAMILY FOST,PAYMENTS TO CARERS,REDACTED,REDACTED
07.09.2022,CHILDREN AND FAMILIES,REDACTED PERSONAL DATA,850,FRIENDS &FAMILY FOST,PAYMENTS TO CARERS,REDACTED,REDACTED
07.09.2022,CHILDREN AND FAMILIES,REDACTED PERSONAL DATA,938,FRIENDS &FAMILY FOST,PAYMENTS TO CARERS,REDACTED,REDACTED
07.09.2022,CHILDREN AND FAMILIES,REDACTED PERSONAL DATA,412,FRIENDS &FAMILY FOST,PAYMENTS TO CARERS,REDACTED,REDACTED
07.09.2022,CHILDREN AND FAMILIES,REDACTED PERSONAL DATA,848,FRIENDS &FAMILY FOST,PAYMENTS TO CARERS,REDACTED,REDACTED
07.09.2022,CHILDREN AND FAMILIES,REDACTED PERSONAL DATA,412,FRIENDS &FAMILY FOST,PAYMENTS TO CARERS,REDACTED,REDACTED
07.09.2022,CHILDREN AND FAMILIES,REDACTED PERSONAL DATA,412,FRIENDS &FAMILY FOST,PAYMENTS TO CARERS,REDACTED,REDACTED
07.09.2022,CHILDREN AND FAMILIES,REDACTED PERSONAL DATA,850,FRIENDS &FAMILY FOST,PAYMENTS TO CARERS,REDACTED,REDACTED
07.09.2022,CHILDREN AND FAMILIES,REDACTED PERSONAL DATA,412,FRIENDS &FAMILY FOST,PAYMENTS TO CARERS,REDACTED,REDACTED
07.09.2022,CHILDREN AND FAMILIES,REDACTED PERSONAL DATA,850,FRIENDS &FAMILY FOST,PAYMENTS TO CARERS,REDACTED,REDACTED
07.09.2022,CHILDREN AND FAMILIES,REDACTED PERSONAL DATA,932,FRIENDS &FAMILY FOST,PAYMENTS TO CARERS,REDACTED,REDACTED
07.09.2022,CHILDREN AND FAMILIES,REDACTED PERSONAL DATA,412,FRIENDS &FAMILY FOST,PAYMENTS TO CARERS,REDACTED,REDACTED
07.09.2022,CHILDREN AND FAMILIES,REDACTED PERSONAL DATA,850,FRIENDS &FAMILY FOST,PAYMENTS TO CARERS,REDACTED,REDACTED
07.09.2022,CHILDREN AND FAMILIES,REDACTED PERSONAL DATA,362,FRIENDS &FAMILY FOST,PAYMENTS TO CARERS,REDACTED,REDACTED
07.09.2022,CHILDREN AND FAMILIES,REDACTED PERSONAL DATA,412,FRIENDS &FAMILY FOST,PAYMENTS TO CARERS,REDACTED,REDACTED
07.09.2022,CHILDREN AND FAMILIES,REDACTED PERSONAL DATA,362,FRIENDS &FAMILY FOST,PAYMENTS TO CARERS,REDACTED,REDACTED
07.09.2022,CHILDREN AND FAMILIES,REDACTED PERSONAL DATA,412,FRIENDS &FAMILY FOST,PAYMENTS TO CARERS,REDACTED,REDACTED
07.09.2022,CHILDREN AND FAMILIES,REDACTED PERSONAL DATA,412,FRIENDS &FAMILY FOST,PAYMENTS TO CARERS,REDACTED,REDACTED
07.09.2022,CHILDREN AND FAMILIES,REDACTED PERSONAL DATA,-323.71,FRIENDS &FAMILY FOST,PAYMENTS TO CARERS,REDACTED,REDACTED
07.09.2022,CHILDREN AND FAMILIES,REDACTED PERSONAL DATA,412,FRIENDS &FAMILY FOST,PAYMENTS TO CARERS,REDACTED,REDACTED
07.09.2022,CHILDREN AND FAMILIES,REDACTED PERSONAL DATA,735.71,FRIENDS &FAMILY FOST,PAYMENTS TO CARERS,REDACTED,REDACTED
07.09.2022,CHILDREN AND FAMILIES,REDACTED PERSONAL DATA,440,NEW ASF,EXTERNAL AGENCIES AND BODIES,REDACTED,REDACTED
07.09.2022,CHILDREN AND FAMILIES,ACTION FOR CHILDREN SERVICES LTD,378.28,P & R CARE TEAM,EXTERNAL AGENCIES AND BODIES,5902541196,1000049984
07.09.2022,CHILDREN AND FAMILIES,REDACTED PERSONAL DATA,388.04,SPECIAL GUARDIANSHIP,PAYMENTS TO CARERS,REDACTED,REDACTED
07.09.2022,CHILDREN AND FAMILIES,REDACTED PERSONAL DATA,342.45,SPECIAL GUARDIANSHIP,PAYMENTS TO CARERS,REDACTED,REDACTED
07.09.2022,CHILDREN AND FAMILIES,REDACTED PERSONAL DATA,389.34,SPECIAL GUARDIANSHIP,PAYMENTS TO CARERS,REDACTED,REDACTED
07.09.2022,CHILDREN AND FAMILIES,REDACTED PERSONAL DATA,356.15,SPECIAL GUARDIANSHIP,PAYMENTS TO CARERS,REDACTED,REDACTED
07.09.2022,CHILDREN AND FAMILIES,REDACTED PERSONAL DATA,403.04,SPECIAL GUARDIANSHIP,PAYMENTS TO CARERS,REDACTED,REDACTED
07.09.2022,CHILDREN AND FAMILIES,REDACTED PERSONAL DATA,525,SPECIAL GUARDIANSHIP,PAYMENTS TO CARERS,REDACTED,REDACTED
07.09.2022,CHILDREN AND FAMILIES,REDACTED PERSONAL DATA,341.15,SPECIAL GUARDIANSHIP,PAYMENTS TO CARERS,REDACTED,REDACTED
07.09.2022,CHILDREN AND FAMILIES,REDACTED PERSONAL DATA,338,SPECIAL GUARDIANSHIP,PAYMENTS TO CARERS,REDACTED,REDACTED
07.09.2022,CHILDREN AND FAMILIES,REDACTED PERSONAL DATA,338,SPECIAL GUARDIANSHIP,PAYMENTS TO CARERS,REDACTED,REDACTED
07.09.2022,CHILDREN AND FAMILIES,REDACTED PERSONAL DATA,472.71,SPECIAL GUARDIANSHIP,PAYMENTS TO CARERS,REDACTED,REDACTED
07.09.2022,CHILDREN AND FAMILIES,REDACTED PERSONAL DATA,472.71,SPECIAL GUARDIANSHIP,PAYMENTS TO CARERS,REDACTED,REDACTED
07.09.2022,CHILDREN AND FAMILIES,REDACTED PERSONAL DATA,341.22,SPECIAL GUARDIANSHIP,PAYMENTS TO CARERS,REDACTED,REDACTED
07.09.2022,CHILDREN AND FAMILIES,REDACTED PERSONAL DATA,600,STAYPUT- FOST CARERS,PAYMENTS TO CARERS,REDACTED,REDACTED
07.09.2022,CHILDREN AND FAMILIES,REDACTED PERSONAL DATA,600,STAYPUT- FOST CARERS,PAYMENTS TO CARERS,REDACTED,REDACTED
07.09.2022,CHILDREN AND FAMILIES,REDACTED PERSONAL DATA,600,STAYPUT- FOST CARERS,PAYMENTS TO CARERS,REDACTED,REDACTED
07.09.2022,CHILDREN AND FAMILIES,REDACTED PERSONAL DATA,600,STAYPUT- FOST CARERS,PAYMENTS TO CARERS,REDACTED,REDACTED
07.09.2022,CHILDREN AND FAMILIES,REDACTED PERSONAL DATA,600,STAYPUT- FOST CARERS,PAYMENTS TO CARERS,REDACTED,REDACTED
07.09.2022,CHILDREN AND FAMILIES,REDACTED PERSONAL DATA,600,STAYPUT- FOST CARERS,PAYMENTS TO CARERS,REDACTED,REDACTED
07.09.2022,CHILDREN AND FAMILIES,REDACTED PERSONAL DATA,600,STAYPUT- FOST CARERS,PAYMENTS TO CARERS,REDACTED,REDACTED
07.09.2022,CHILDREN AND FAMILIES,REDACTED PERSONAL DATA,800,STAYPUT- FOST CARERS,PAYMENTS TO CARERS,REDACTED,REDACTED
07.09.2022,CHILDREN AND FAMILIES,REDACTED PERSONAL DATA,600,STAYPUT- FOST CARERS,PAYMENTS TO CARERS,REDACTED,REDACTED
07.09.2022,CHILDREN AND FAMILIES,REDACTED PERSONAL DATA,600,STAYPUT- FOST CARERS,PAYMENTS TO CARERS,REDACTED,REDACTED
07.09.2022,CHILDREN AND FAMILIES,REDACTED PERSONAL DATA,600,STAYPUT- FOST CARERS,PAYMENTS TO CARERS,REDACTED,REDACTED
07.09.2022,CHILDREN AND FAMILIES,REDACTED PERSONAL DATA,600,STAYPUT- FOST CARERS,PAYMENTS TO CARERS,REDACTED,REDACTED
07.09.2022,CHILDREN AND FAMILIES,REDACTED PERSONAL DATA,600,STAYPUT- FOST CARERS,PAYMENTS TO CARERS,REDACTED,REDACTED
07.09.2022,CHILDREN AND FAMILIES,REDACTED PERSONAL DATA,600,STAYPUT- FOST CARERS,PAYMENTS TO CARERS,REDACTED,REDACTED
07.09.2022,CHILDREN AND FAMILIES,REDACTED PERSONAL DATA,600,STAYPUT- FOST CARERS,PAYMENTS TO CARERS,REDACTED,REDACTED
07.09.2022,CHILDREN AND FAMILIES,REDACTED PERSONAL DATA,600,STAYPUT- FOST CARERS,PAYMENTS TO CARERS,REDACTED,REDACTED
07.09.2022,CHILDREN AND FAMILIES,REDACTED PERSONAL DATA,600,STAYPUT- FOST CARERS,PAYMENTS TO CARERS,REDACTED,REDACTED
07.09.2022,CHILDREN AND FAMILIES,REDACTED PERSONAL DATA,600,STAYPUT- FOST CARERS,PAYMENTS TO CARERS,REDACTED,REDACTED
07.09.2022,CHILDREN AND FAMILIES,REDACTED PERSONAL DATA,600,STAYPUT- FOST CARERS,PAYMENTS TO CARERS,REDACTED,REDACTED
07.09.2022,CHILDREN AND FAMILIES,REDACTED PERSONAL DATA,600,STAYPUT- FOST CARERS,PAYMENTS TO CARERS,REDACTED,REDACTED
07.09.2022,CHILDREN AND FAMILIES,REDACTED PERSONAL DATA,852,STAYPUT- FOST CARERS,PAYMENTS TO CARERS,REDACTED,REDACTED
07.09.2022,CHILDREN AND FAMILIES,REDACTED PERSONAL DATA,600,STAYPUT- FOST CARERS,PAYMENTS TO CARERS,REDACTED,REDACTED
07.09.2022,CHILDREN AND FAMILIES,REDACTED PERSONAL DATA,600,STAYPUT- FOST CARERS,PAYMENTS TO CARERS,REDACTED,REDACTED
07.09.2022,CHILDREN AND FAMILIES,REDACTED PERSONAL DATA,600,STAYPUT- FOST CARERS,PAYMENTS TO CARERS,REDACTED,REDACTED
07.09.2022,CHILDREN AND FAMILIES,REDACTED PERSONAL DATA,-342.85,STAYPUT- FOST CARERS,PAYMENTS TO CARERS,REDACTED,REDACTED
07.09.2022,CHILDREN AND FAMILIES,REDACTED PERSONAL DATA,600,STAYPUT- FOST CARERS,PAYMENTS TO CARERS,REDACTED,REDACTED
07.09.2022,CHILDREN AND FAMILIES,REDACTED PERSONAL DATA,600,STAYPUT- FOST CARERS,PAYMENTS TO CARERS,REDACTED,REDACTED
07.09.2022,CHILDREN AND FAMILIES,REDACTED PERSONAL DATA,656,STAYPUT- FOST CARERS,PAYMENTS TO CARERS,REDACTED,REDACTED
07.09.2022,CHILDREN AND FAMILIES,REDACTED PERSONAL DATA,600,STAYPUT- FOST CARERS,PAYMENTS TO CARERS,REDACTED,REDACTED
07.09.2022,CHILDREN AND FAMILIES,REDACTED PERSONAL DATA,600,STAYPUT- FOST CARERS,PAYMENTS TO CARERS,REDACTED,REDACTED
07.09.2022,CHILDREN AND FAMILIES,REDACTED PERSONAL DATA,600,STAYPUT- FOST CARERS,PAYMENTS TO CARERS,REDACTED,REDACTED
07.09.2022,CHILDREN AND FAMILIES,REDACTED PERSONAL DATA,600,STAYPUT- FOST CARERS,PAYMENTS TO CARERS,REDACTED,REDACTED
07.09.2022,CHILDREN AND FAMILIES,REDACTED PERSONAL DATA,600,STAYPUT- FOST CARERS,PAYMENTS TO CARERS,REDACTED,REDACTED
07.09.2022,CHILDREN AND FAMILIES,REDACTED PERSONAL DATA,265.4,STAYPUT- FOST CARERS,PAYMENTS TO CARERS,REDACTED,REDACTED
07.09.2022,CHILDREN AND FAMILIES,REDACTED PERSONAL DATA,832,STAYPUT- FOST CARERS,PAYMENTS TO CARERS,REDACTED,REDACTED
07.09.2022,CHILDREN AND FAMILIES,REDACTED PERSONAL DATA,600,STAYPUT- FOST CARERS,PAYMENTS TO CARERS,REDACTED,REDACTED
07.09.2022,CHILDREN AND FAMILIES,REDACTED PERSONAL DATA,600,STAYPUT- FOST CARERS,PAYMENTS TO CARERS,REDACTED,REDACTED
07.09.2022,CHILDREN AND FAMILIES,REDACTED PERSONAL DATA,600,STAYPUT- FOST CARERS,PAYMENTS TO CARERS,REDACTED,REDACTED
07.09.2022,CHILDREN AND FAMILIES,REDACTED PERSONAL DATA,600,STAYPUT- FOST CARERS,PAYMENTS TO CARERS,REDACTED,REDACTED
07.09.2022,CHILDREN AND FAMILIES,REDACTED PERSONAL DATA,600,STAYPUT- FOST CARERS,PAYMENTS TO CARERS,REDACTED,REDACTED
07.09.2022,CHILDREN AND FAMILIES,REDACTED PERSONAL DATA,656,STAYPUT- FOST CARERS,PAYMENTS TO CARERS,REDACTED,REDACTED
07.09.2022,CHILDREN AND FAMILIES,REDACTED PERSONAL DATA,600,STAYPUT- FOST CARERS,PAYMENTS TO CARERS,REDACTED,REDACTED
07.09.2022,CHILDREN AND FAMILIES,REDACTED PERSONAL DATA,600,STAYPUT- FOST CARERS,PAYMENTS TO CARERS,REDACTED,REDACTED
07.09.2022,CHILDREN AND FAMILIES,REDACTED PERSONAL DATA,900,STAYPUT- FOST CARERS,PAYMENTS TO CARERS,REDACTED,REDACTED
07.09.2022,CHILDREN AND FAMILIES,REDACTED PERSONAL DATA,900,STAYPUT- FOST CARERS,PAYMENTS TO CARERS,REDACTED,REDACTED
07.09.2022,CHILDREN AND FAMILIES,REDACTED PERSONAL DATA,600,STAYPUT- FOST CARERS,PAYMENTS TO CARERS,REDACTED,REDACTED
07.09.2022,CHILDREN AND FAMILIES,REDACTED PERSONAL DATA,600,STAYPUT- FOST CARERS,PAYMENTS TO CARERS,REDACTED,REDACTED
07.09.2022,CHILDREN AND FAMILIES,REDACTED PERSONAL DATA,600,STAYPUT- FOST CARERS,PAYMENTS TO CARERS,REDACTED,REDACTED
07.09.2022,CHILDREN AND FAMILIES,REDACTED PERSONAL DATA,600,STAYPUT- FOST CARERS,PAYMENTS TO CARERS,REDACTED,REDACTED
07.09.2022,CHILDREN AND FAMILIES,REDACTED PERSONAL DATA,600,STAYPUT- FOST CARERS,PAYMENTS TO CARERS,REDACTED,REDACTED
07.09.2022,CHILDREN AND FAMILIES,REDACTED PERSONAL DATA,600,STAYPUT- FOST CARERS,PAYMENTS TO CARERS,REDACTED,REDACTED
07.09.2022,CHILDREN AND FAMILIES,REDACTED PERSONAL DATA,600,STAYPUT- FOST CARERS,PAYMENTS TO CARERS,REDACTED,REDACTED
07.09.2022,CHILDREN AND FAMILIES,REDACTED PERSONAL DATA,600,STAYPUT- FOST CARERS,PAYMENTS TO CARERS,REDACTED,REDACTED
07.09.2022,CHILDREN AND FAMILIES,REDACTED PERSONAL DATA,"2,800.00",STAYPUT- FOST CARERS,PAYMENTS TO CARERS,REDACTED,REDACTED
07.09.2022,CHILDREN AND FAMILIES,ZENITH CARS LTD,290,TEAM B,CLIENT TRANSPORT,5902541203,1000070570
07.09.2022,COMMUNITIES,CITYGLEN LTD,"24,716.00",NO RECOURSE TO PUBLIC FUNDS,ACCOMMODATION CHARGES,5902541125,1000026239
07.09.2022,COMMUNITIES,HOMELY HOUSING LETS LTD,"22,275.36",NO RECOURSE TO PUBLIC FUNDS,ACCOMMODATION CHARGES,5902541197,1000050013
07.09.2022,COMMUNITIES,J & M OASIS LTD,"17,980.00",NO RECOURSE TO PUBLIC FUNDS,ACCOMMODATION CHARGES,5902541258,1000072169
07.09.2022,COMMUNITIES,TAAKSVALE HOUSING LTD,"32,055.00",NO RECOURSE TO PUBLIC FUNDS,ACCOMMODATION CHARGES,5902541250,1000073665
07.09.2022,COMMUNITIES,STENFORD PROPERTY LTD,"2,845.00",NO RECOURSE TO PUBLIC FUNDS,ACCOMMODATION CHARGES,5902541249,1000074759
07.09.2022,COMMUNITIES,NORBURY PROPERTY SERVICES (LONDON) LTD,"4,650.00",NO RECOURSE TO PUBLIC FUNDS,ACCOMMODATION CHARGES,5902541233,1000075566
07.09.2022,COMMUNITIES,REDACTED PERSONAL DATA,350,UKRAINIAN PROGRAMME,GRANTS,REDACTED,REDACTED
07.09.2022,CUSTOMER EXPERIENCE HGF,SG PATH LTD,415.8,CORONER'S,PROFESSIONAL FEES,5902541210,1000077883
07.09.2022,CUSTOMER EXPERIENCE HGF,SG PATH LTD,415.8,CORONER'S,PROFESSIONAL FEES,5902541215,1000077883
07.09.2022,CUSTOMER EXPERIENCE HGF,SG PATH LTD,595.9,CORONER'S,PROFESSIONAL FEES,5902541208,1000077883
07.09.2022,CUSTOMER EXPERIENCE HGF,IMPERIAL COLLEGE PROJECTS LTD,304,CORONER'S,PROFESSIONAL FEES,5902541285,1000080106
07.09.2022,CUSTOMER EXPERIENCE HGF,IMPERIAL COLLEGE PROJECTS LTD,356,CORONER'S,PROFESSIONAL FEES,5902541274,1000080106
07.09.2022,CUSTOMER EXPERIENCE HGF,IMPERIAL COLLEGE PROJECTS LTD,388,CORONER'S,PROFESSIONAL FEES,5902541279,1000080106
07.09.2022,CUSTOMER EXPERIENCE HGF,IMPERIAL COLLEGE PROJECTS LTD,396,CORONER'S,PROFESSIONAL FEES,5902541272,1000080106
07.09.2022,CUSTOMER EXPERIENCE HGF,IMPERIAL COLLEGE PROJECTS LTD,408,CORONER'S,PROFESSIONAL FEES,5902541276,1000080106
07.09.2022,DSG,SPA EDUCATION TRUST,"85,000.00",AC & FREE - MSTREAM,STATEMENTED FEES,2103555546,1000081600
07.09.2022,DSG,FLEET TUTORS,"2,180.00",AP & HOSPITAL SCHLS,STATEMENTED FEES,2103555545,1000044820
07.09.2022,DSG,FLEET TUTORS,"2,512.00",AP & HOSPITAL SCHLS,STATEMENTED FEES,2103555539,1000044820
07.09.2022,DSG,FLEET TUTORS,"2,512.00",AP & HOSPITAL SCHLS,STATEMENTED FEES,2103555544,1000044820
07.09.2022,DSG,ADVANCEMENTS ABA LTD,300,AP & HOSPITAL SCHLS,STATEMENTED FEES,2103555543,1000081719
07.09.2022,DSG,THE COMPLETE WORKS INDEPENDENT SCHOOL,"2,021.14",INDEP MAINSTREAM,STATEMENTED FEES,2103555542,1000033256
07.09.2022,DSG,THE COMPLETE WORKS INDEPENDENT SCHOOL,"5,357.14",INDEP MAINSTREAM,STATEMENTED FEES,2103555541,1000033256
07.09.2022,DSG,THE COMPLETE WORKS INDEPENDENT SCHOOL,"6,465.52",INDEP MAINSTREAM,STATEMENTED FEES,2103555540,1000033256
07.09.2022,DSG,EXCEL CHILD CARE SERVICES LTD,"1,861.54",OTHER LA SPECIAL,STATEMENTED FEES,2103555538,1000060429
07.09.2022,DSG,ETHELRED NURSERY SCHOOL,884.23,OTHER LA SPECIAL,STATEMENTED FEES,2103555537,1000085116
07.09.2022,DSG,FLEET TUTORS,"1,485.00",VIRTUAL SCHOOL PP,EXTERNAL AGENCIES AND BODIES,5902541223,1000044820
07.09.2022,EDUCATION,PARTNERSHIP MEDIA GROUP,395,CENTRAL COSTS - SEN,CONSULTANTS SERVICES,2103555547,1000050132
07.09.2022,EDUCATION,MULTI-STORY MUSIC,"5,000.00",LEA MUSIC SERVICE(310) - 5018566,CONSULTANTS SERVICES,5902541236,1000086196
07.09.2022,EDUCATION,KIDS,"50,000.00",PORTAGE,CONSULTANTS SERVICES,5902541129,1000030036
07.09.2022,EDUCATION,PROFAD CARE AGENCY,293.75,SCH TRANS � TRAVEL,AGENCY STAFF,5902541237,1000079032
07.09.2022,EDUCATION,PROFAD CARE AGENCY,337.5,SCH TRANS � TRAVEL,AGENCY STAFF,5902541240,1000079032
07.09.2022,EDUCATION,PROFAD CARE AGENCY,418.75,SCH TRANS � TRAVEL,AGENCY STAFF,5902541239,1000079032
07.09.2022,ENV & LEIS,CROWN OIL LTD,"1,379.04",SANDGATE STREET,VEHICLE FUEL,5902541282,1000081749
07.09.2022,ENVIRONMENT AND LEISURE,EDIBLE ROTHERHITHE CIC,"1,155.00",CAPITAL PS (LEISURE),CAPITAL GRANTS,5902541062,1000082775
07.09.2022,ENVIRONMENT AND LEISURE,F M CONWAY LTD,"28,384.88",CAPITAL PS (LEISURE),CONSTRUCTION,2103555534,4001384
07.09.2022,ENVIRONMENT AND LEISURE,WYBONE LTD,255,CAPITAL PS (LEISURE),CONSTRUCTION,5902541214,1000042643
07.09.2022,ENVIRONMENT AND LEISURE,RIDGE & PARTNERS LLP,"2,573.00",CAPITAL PS (LEISURE),"PLANT, MACHINERY & EQUIPMENT ACQUISITION",5902541188,1000042536
07.09.2022,ENVIRONMENT AND LEISURE,LAND REGISTRY,282,SALIX PROJECT NO. 35,PROFESSIONAL FEES,6102047068,DIRECT DEBIT PAYMENT
07.09.2022,ENVIRONMENT DIRECTORATE,M H COACHWORKS & SONS LTD,790.11,FLEET INSURANCE WORKS,TRANSPORT INSURANCE COSTS,5902541266,1000033495
07.09.2022,ENVIRONMENT DIRECTORATE,M H COACHWORKS & SONS LTD,"1,519.80",FLEET INSURANCE WORKS,TRANSPORT INSURANCE COSTS,5902541179,1000033495
07.09.2022,ENVIRONMENT DIRECTORATE,M H COACHWORKS & SONS LTD,"1,696.75",FLEET INSURANCE WORKS,TRANSPORT INSURANCE COSTS,5902541262,1000033495
07.09.2022,ENVIRONMENT DIRECTORATE,M H COACHWORKS & SONS LTD,"1,891.42",FLEET INSURANCE WORKS,TRANSPORT INSURANCE COSTS,5902541268,1000033495
07.09.2022,ENVIRONMENT DIRECTORATE,M H COACHWORKS & SONS LTD,"2,041.88",FLEET INSURANCE WORKS,TRANSPORT INSURANCE COSTS,5902541186,1000033495
07.09.2022,ENVIRONMENT DIRECTORATE,M H COACHWORKS & SONS LTD,"2,536.38",FLEET INSURANCE WORKS,TRANSPORT INSURANCE COSTS,5902541176,1000033495
07.09.2022,ENVIRONMENT DIRECTORATE,M H COACHWORKS & SONS LTD,"3,260.97",FLEET INSURANCE WORKS,TRANSPORT INSURANCE COSTS,5902541264,1000033495
07.09.2022,ENVIRONMENT DIRECTORATE,M H COACHWORKS & SONS LTD,"3,570.28",FLEET INSURANCE WORKS,TRANSPORT INSURANCE COSTS,5902541181,1000033495
07.09.2022,ENVIRONMENT DIRECTORATE,M H COACHWORKS & SONS LTD,"3,696.00",FLEET INSURANCE WORKS,TRANSPORT INSURANCE COSTS,5902541269,1000033495
07.09.2022,ENVIRONMENT DIRECTORATE,KLIPSPRINGER LTD,276,FOOD SAFETY,EQUIPMENT PURCHASE & REPAIR,5902541252,1000060011
07.09.2022,F & C S EXCLUDING CORPORATE BUDGETS,PRICEWATERHOUSECOOPERS LLP,"1,000.00",CORPORATE SERVICES AND F&G,SUBSCRIPTIONS,5902541273,1000022906
07.09.2022,F & C S EXCLUDING CORPORATE BUDGETS,BDO LLP,"26,455.00",INTERNAL AUDIT CONTRACTS,PAYMENTS FOR FINANCIAL SERVICES,5902541216,1000057898
07.09.2022,HOUSING GENERAL FUND,PELLINGS LLP,"2,848.00",CAPITAL PS (REGEN),CONSTRUCTION MAIN CONTRACT,5902541259,1009262
07.09.2022,HOUSING GENERAL FUND,BUILDING MONITORING SERVICES LTD,"1,537.11",CAPITAL PS (REGEN),CONSTRUCTION MAIN CONTRACT,5902541228,1000063798
07.09.2022,HOUSING HRA,PRB ESTATES LTD,"32,147.66",CAPITAL PS (HRA),CONSTRUCTION,2103555535,3000001691
07.09.2022,HOUSING HRA,PELLINGS LLP,"4,596.97",CAPITAL PS (HRA),CONSTRUCTION FEES  - EXTERNAL,5902541243,1009262
07.09.2022,HOUSING HRA,CALFORD SEADEN LLP,"1,910.97",CAPITAL PS (HRA),CONSTRUCTION FEES  - EXTERNAL,5902541226,1061592
07.09.2022,HOUSING HRA,CALFORD SEADEN LLP,"7,105.00",CAPITAL PS (HRA),CONSTRUCTION FEES  - EXTERNAL,5902541168,1061592
07.09.2022,HOUSING HRA,CALFORD SEADEN LLP,"9,800.00",CAPITAL PS (HRA),CONSTRUCTION FEES  - EXTERNAL,5902541278,1061592
07.09.2022,HOUSING HRA,CALFORD SEADEN LLP,"28,261.49",CAPITAL PS (HRA),CONSTRUCTION FEES  - EXTERNAL,5902541255,1061592
07.09.2022,HOUSING HRA,GB GEOTECHNICS LTD,"3,200.00",CAPITAL PS (HRA),CONSTRUCTION FEES  - EXTERNAL,5902541195,1000044295
07.09.2022,HOUSING HRA,WALWORTH HOMES LTD,"227,889.00",CAPITAL PS (HRA),CONSTRUCTION FEES  - EXTERNAL,5902541126,1000079197
07.09.2022,HOUSING HRA,SAFEGUARDS SECURITY SERVICES LTD,900,CAPITAL PS (HRA),CONSTRUCTION FEES  - EXTERNAL,5902541275,1000087544
07.09.2022,HOUSING HRA,SAFEGUARDS SECURITY SERVICES LTD,"29,326.50",CAPITAL PS (HRA),CONSTRUCTION FEES  - EXTERNAL,5902541277,1000087544
07.09.2022,HR & OT,SAVILLE ASSESSMENT LIMITED,315.6,OCCUPATIONAL ASSESSMENT,RECRUITMENT ADVERTISING,5902541115,1000074052
07.09.2022,LEISURE DIRECTORATE,CASTLE WATER LTD,532.29,BURGESS SPORTS CENTRE,WATER,5902541244,1000078867
07.09.2022,LEISURE DIRECTORATE,RANDALL SHAW BILLINGHAM LTD,520,CREMATORIUM,BUILDING R&M,5902541123,1000057014
07.09.2022,LEISURE DIRECTORATE,CASTLE WATER LTD,"1,321.26",DULWICH AREA TEAM,WATER,5902541161,1000078867
07.09.2022,LEISURE DIRECTORATE,INFINITY NETWORKS LTD,"1,301.00",IT DEVELOPMENT,COMMS & COMPUTING CONTRACT CHARGES,5902541213,1000035571
07.09.2022,LEISURE DIRECTORATE,DR CHRISTOPHER JORDAN,510,LIBRARIES DEVELOPMENT,CONSULTANTS SERVICES,5902541117,1000065041
07.09.2022,LEISURE DIRECTORATE,CASTLE WATER LTD,265.53,PLAY CENTRAL,WATER,5902541254,1000078867
07.09.2022,LEISURE DIRECTORATE,QUADRON SERVICES LIMITED,259.52,PLAY NORTH,OTHER R&M,5902541189,1000066528
07.09.2022,LEISURE DIRECTORATE,P D CONSTRUCTION LTD,"1,185.00",SOUTHWARK AREA TEAM,OTHER R&M,2103554361,4001883
07.09.2022,RESIDENT SERVICES,BRITISH GAS TRADING LTD,425.59,OPERATIONS/OFFICES ACCOMMODATION,ELECTRICITY,5902541246,1000055977
07.09.2022,RESIDENT SERVICES,JUDGE AND PRIESTLEY SOLICITORS,"1,546.25",TA HOSTELS,PROFESSIONAL FEES,5902541207,1472217
07.09.2022,RESIDENT SERVICES,JUDGE AND PRIESTLEY SOLICITORS,"4,892.00",TA HOSTELS,PROFESSIONAL FEES,5902541207,1472217
07.09.2022,RESIDENT SERVICES HGF,ROYALTY LETTINGS LTD,"2,224.08",HOMELESS PROJECTS,GRANTS,5902541111,1000086357
07.09.2022,RESIDENT SERVICES HGF,NESTE LTD,"1,853.73",HOMELESS PROJECTS,GRANTS,5902541142,1000088649
07.09.2022,RESIDENT SERVICES HGF,NOWMEDICAL LTD,"3,595.00",HOUSING OPTIONS,PROFESSIONAL FEES,5902541267,1000068185
07.09.2022,RESIDENT SERVICES HGF,QUINARY LTD,"6,504.20",NIGHTLY TA (NSC),EXTERNAL AGENCIES AND BODIES,5902541137,1000029106
08.09.2022,ADULT SOCIAL CARE,REDACTED PERSONAL DATA,500,APPOINTEESHIPS,OTHER PAYMENTS FOR CLIENTS,REDACTED,REDACTED
08.09.2022,ADULT SOCIAL CARE,INDEPENDENT PEOPLE HOMECARE LTD,"3,985.71",CARERS SERVICES,PLACEMENTS - RESPITE,2103555698,1000083488
08.09.2022,ADULT SOCIAL CARE,FOSTERING SUPPORT GROUP LTD,"5,779.33",DISABILITIES LAC,EXTERNAL AGENCIES AND BODIES,2103556336,1000065830
08.09.2022,ADULT SOCIAL CARE,CREATING CARE CHOICES LTD,"21,921.42",DISABILITIES LAC,RESIDENTIAL CARE,2103556333,1000076738
08.09.2022,ADULT SOCIAL CARE,SUPREME CARE SERVICES LTD,342.82,DISCHARGE TO ACCESS,HOMECARE - C&V,2103556228,1000059416
08.09.2022,ADULT SOCIAL CARE,SHARE COMMUNITY LTD,780,LD LTS 18-64,DAYCARE,2103555654,1000062408
08.09.2022,ADULT SOCIAL CARE,THE NEW SHOOTS,375,LD LTS 18-64,DAYCARE,2103555691,1000073970
08.09.2022,ADULT SOCIAL CARE,BLISSETT CARE LTD,478.24,LD LTS 18-64,HOMECARE - C&V,2103556327,1000042627
08.09.2022,ADULT SOCIAL CARE,SUPREME CARE SERVICES LTD,396.25,LD LTS 18-64,HOMECARE - C&V,2103555979,1000059416
08.09.2022,ADULT SOCIAL CARE,SUPREME CARE SERVICES LTD,494.72,LD LTS 18-64,HOMECARE - C&V,2103555990,1000059416
08.09.2022,ADULT SOCIAL CARE,SUPREME CARE SERVICES LTD,866.21,LD LTS 18-64,HOMECARE - C&V,2103555942,1000059416
08.09.2022,ADULT SOCIAL CARE,CONTACT PROFESSIONALS,399,LD LTS 18-64,SUPPORTED LIVING,2103555695,1000057263
08.09.2022,ADULT SOCIAL CARE,CONTACT PROFESSIONALS,684,LD LTS 18-64,SUPPORTED LIVING,2103555697,1000057263
08.09.2022,ADULT SOCIAL CARE,CONTACT PROFESSIONALS,912,LD LTS 18-64,SUPPORTED LIVING,2103555693,1000057263
08.09.2022,ADULT SOCIAL CARE,SUPREME CARE SERVICES LTD,848.31,LD LTS 65+,HOMECARE - C&V,2103555877,1000059416
08.09.2022,ADULT SOCIAL CARE,SUPREME CARE SERVICES LTD,963.6,LD LTS 65+,HOMECARE - C&V,2103555903,1000059416
08.09.2022,ADULT SOCIAL CARE,SUPREME CARE SERVICES LTD,425.11,MEM LTS 18-64,HOMECARE - C&V,2103556043,1000059416
08.09.2022,ADULT SOCIAL CARE,AGE CONCERN LEWISHAM & SOUTHWARK,325,MEM LTS 65+,DAYCARE,2103555728,1000057586
08.09.2022,ADULT SOCIAL CARE,AGE CONCERN LEWISHAM & SOUTHWARK,325,MEM LTS 65+,DAYCARE,2103555741,1000057586
08.09.2022,ADULT SOCIAL CARE,AGE CONCERN LEWISHAM & SOUTHWARK,325,MEM LTS 65+,DAYCARE,2103555756,1000057586
08.09.2022,ADULT SOCIAL CARE,AGE CONCERN LEWISHAM & SOUTHWARK,325,MEM LTS 65+,DAYCARE,2103555784,1000057586
08.09.2022,ADULT SOCIAL CARE,AGE CONCERN LEWISHAM & SOUTHWARK,325,MEM LTS 65+,DAYCARE,2103555819,1000057586
08.09.2022,ADULT SOCIAL CARE,AGE CONCERN LEWISHAM & SOUTHWARK,325,MEM LTS 65+,DAYCARE,2103555821,1000057586
08.09.2022,ADULT SOCIAL CARE,AGE CONCERN LEWISHAM & SOUTHWARK,325,MEM LTS 65+,DAYCARE,2103555843,1000057586
08.09.2022,ADULT SOCIAL CARE,AGE CONCERN LEWISHAM & SOUTHWARK,325,MEM LTS 65+,DAYCARE,2103555844,1000057586
08.09.2022,ADULT SOCIAL CARE,LONDON CARE LTD,749.95,MEM LTS 65+,HOMECARE - C&V,2103555645,1000003398
08.09.2022,ADULT SOCIAL CARE,SUPREME CARE SERVICES LTD,258.02,MEM LTS 65+,HOMECARE - C&V,2103556107,1000059416
08.09.2022,ADULT SOCIAL CARE,SUPREME CARE SERVICES LTD,318.02,MEM LTS 65+,HOMECARE - C&V,2103556096,1000059416
08.09.2022,ADULT SOCIAL CARE,SUPREME CARE SERVICES LTD,525.52,MEM LTS 65+,HOMECARE - C&V,2103555890,1000059416
08.09.2022,ADULT SOCIAL CARE,SUPREME CARE SERVICES LTD,"2,340.24",MEM LTS 65+,HOMECARE - C&V,2103556000,1000059416
08.09.2022,ADULT SOCIAL CARE,SUPREME CARE SERVICES LTD,"2,373.92",MEM LTS 65+,HOMECARE - C&V,2103556185,1000059416
08.09.2022,ADULT SOCIAL CARE,SUPREME CARE SERVICES LTD,263.06,MH LTS 18-64,HOMECARE - C&V,2103555916,1000059416
08.09.2022,ADULT SOCIAL CARE,SUPREME CARE SERVICES LTD,271.85,MH LTS 18-64,HOMECARE - C&V,2103556190,1000059416
08.09.2022,ADULT SOCIAL CARE,SUPREME CARE SERVICES LTD,294.88,MH LTS 18-64,HOMECARE - C&V,2103556098,1000059416
08.09.2022,ADULT SOCIAL CARE,SUPREME CARE SERVICES LTD,313.32,MH LTS 18-64,HOMECARE - C&V,2103555893,1000059416
08.09.2022,ADULT SOCIAL CARE,SUPREME CARE SERVICES LTD,353.23,MH LTS 18-64,HOMECARE - C&V,2103556212,1000059416
08.09.2022,ADULT SOCIAL CARE,SUPREME CARE SERVICES LTD,405.42,MH LTS 18-64,HOMECARE - C&V,2103556126,1000059416
08.09.2022,ADULT SOCIAL CARE,SUPREME CARE SERVICES LTD,516.04,MH LTS 18-64,HOMECARE - C&V,2103556223,1000059416
08.09.2022,ADULT SOCIAL CARE,SUPREME CARE SERVICES LTD,774.12,MH LTS 18-64,HOMECARE - C&V,2103556191,1000059416
08.09.2022,ADULT SOCIAL CARE,SUPREME CARE SERVICES LTD,882.33,MH LTS 18-64,HOMECARE - C&V,2103555892,1000059416
08.09.2022,ADULT SOCIAL CARE,CAREPOINT SERVICES LTD,264.91,MH LTS 18-64,HOMECARE - C&V,2103555700,1000087914
08.09.2022,ADULT SOCIAL CARE,CAREPOINT SERVICES LTD,"1,197.00",MH LTS 18-64,HOMECARE - C&V,2103555688,1000087914
08.09.2022,ADULT SOCIAL CARE,LONDON CARE LTD,376.43,MH LTS 18-64,SUPPORTED LIVING,2103555652,1000003398
08.09.2022,ADULT SOCIAL CARE,BLISSETT CARE LTD,485.04,MH LTS 65+,HOMECARE - C&V,2103556314,1000042627
08.09.2022,ADULT SOCIAL CARE,BLISSETT CARE LTD,630.93,MH LTS 65+,HOMECARE - C&V,2103556326,1000042627
08.09.2022,ADULT SOCIAL CARE,BLISSETT CARE LTD,"3,493.33",MH LTS 65+,HOMECARE - C&V,2103556281,1000042627
08.09.2022,ADULT SOCIAL CARE,SUPREME CARE SERVICES LTD,285.79,MH LTS 65+,HOMECARE - C&V,2103556261,1000059416
08.09.2022,ADULT SOCIAL CARE,SUPREME CARE SERVICES LTD,451.82,MH LTS 65+,HOMECARE - C&V,2103555985,1000059416
08.09.2022,ADULT SOCIAL CARE,SUPREME CARE SERVICES LTD,516.04,MH LTS 65+,HOMECARE - C&V,2103556271,1000059416
08.09.2022,ADULT SOCIAL CARE,SUPREME CARE SERVICES LTD,589.76,MH LTS 65+,HOMECARE - C&V,2103555895,1000059416
08.09.2022,ADULT SOCIAL CARE,SUPREME CARE SERVICES LTD,773.98,MH LTS 65+,HOMECARE - C&V,2103555923,1000059416
08.09.2022,ADULT SOCIAL CARE,SUPREME CARE SERVICES LTD,834,MH LTS 65+,HOMECARE - C&V,2103556040,1000059416
08.09.2022,ADULT SOCIAL CARE,SUPREME CARE SERVICES LTD,"1,055.25",MH LTS 65+,HOMECARE - C&V,2103556203,1000059416
08.09.2022,ADULT SOCIAL CARE,SUPREME CARE SERVICES LTD,896.94,MH STS 65+,HOMECARE - IC,2103555922,1000059416
08.09.2022,ADULT SOCIAL CARE,LONDON CARE LTD,950.29,PHY LTS 18-64,HOMECARE - C&V,2103555639,1000003398
08.09.2022,ADULT SOCIAL CARE,BLISSETT CARE LTD,315.44,PHY LTS 18-64,HOMECARE - C&V,2103556301,1000042627
08.09.2022,ADULT SOCIAL CARE,BLISSETT CARE LTD,494.29,PHY LTS 18-64,HOMECARE - C&V,2103556289,1000042627
08.09.2022,ADULT SOCIAL CARE,BLISSETT CARE LTD,574.41,PHY LTS 18-64,HOMECARE - C&V,2103556284,1000042627
08.09.2022,ADULT SOCIAL CARE,BLISSETT CARE LTD,606.34,PHY LTS 18-64,HOMECARE - C&V,2103556331,1000042627
08.09.2022,ADULT SOCIAL CARE,BLISSETT CARE LTD,612.02,PHY LTS 18-64,HOMECARE - C&V,2103556286,1000042627
08.09.2022,ADULT SOCIAL CARE,BLISSETT CARE LTD,815.57,PHY LTS 18-64,HOMECARE - C&V,2103556329,1000042627
08.09.2022,ADULT SOCIAL CARE,BLISSETT CARE LTD,"1,020.53",PHY LTS 18-64,HOMECARE - C&V,2103556303,1000042627
08.09.2022,ADULT SOCIAL CARE,BLISSETT CARE LTD,"1,021.72",PHY LTS 18-64,HOMECARE - C&V,2103556305,1000042627
08.09.2022,ADULT SOCIAL CARE,SUPREME CARE SERVICES LTD,277.06,PHY LTS 18-64,HOMECARE - C&V,2103555867,1000059416
08.09.2022,ADULT SOCIAL CARE,SUPREME CARE SERVICES LTD,281.02,PHY LTS 18-64,HOMECARE - C&V,2103556234,1000059416
08.09.2022,ADULT SOCIAL CARE,SUPREME CARE SERVICES LTD,294.85,PHY LTS 18-64,HOMECARE - C&V,2103556181,1000059416
08.09.2022,ADULT SOCIAL CARE,SUPREME CARE SERVICES LTD,325.6,PHY LTS 18-64,HOMECARE - C&V,2103556087,1000059416
08.09.2022,ADULT SOCIAL CARE,SUPREME CARE SERVICES LTD,331.7,PHY LTS 18-64,HOMECARE - C&V,2103555943,1000059416
08.09.2022,ADULT SOCIAL CARE,SUPREME CARE SERVICES LTD,331.74,PHY LTS 18-64,HOMECARE - C&V,2103556076,1000059416
08.09.2022,ADULT SOCIAL CARE,SUPREME CARE SERVICES LTD,354.94,PHY LTS 18-64,HOMECARE - C&V,2103555879,1000059416
08.09.2022,ADULT SOCIAL CARE,SUPREME CARE SERVICES LTD,358.21,PHY LTS 18-64,HOMECARE - C&V,2103555992,1000059416
08.09.2022,ADULT SOCIAL CARE,SUPREME CARE SERVICES LTD,368.56,PHY LTS 18-64,HOMECARE - C&V,2103556163,1000059416
08.09.2022,ADULT SOCIAL CARE,SUPREME CARE SERVICES LTD,380.03,PHY LTS 18-64,HOMECARE - C&V,2103555881,1000059416
08.09.2022,ADULT SOCIAL CARE,SUPREME CARE SERVICES LTD,387.03,PHY LTS 18-64,HOMECARE - C&V,2103556207,1000059416
08.09.2022,ADULT SOCIAL CARE,SUPREME CARE SERVICES LTD,400.83,PHY LTS 18-64,HOMECARE - C&V,2103556010,1000059416
08.09.2022,ADULT SOCIAL CARE,SUPREME CARE SERVICES LTD,404.94,PHY LTS 18-64,HOMECARE - C&V,2103555866,1000059416
08.09.2022,ADULT SOCIAL CARE,SUPREME CARE SERVICES LTD,422.06,PHY LTS 18-64,HOMECARE - C&V,2103555938,1000059416
08.09.2022,ADULT SOCIAL CARE,SUPREME CARE SERVICES LTD,439.18,PHY LTS 18-64,HOMECARE - C&V,2103555982,1000059416
08.09.2022,ADULT SOCIAL CARE,SUPREME CARE SERVICES LTD,479.12,PHY LTS 18-64,HOMECARE - C&V,2103556145,1000059416
08.09.2022,ADULT SOCIAL CARE,SUPREME CARE SERVICES LTD,481.72,PHY LTS 18-64,HOMECARE - C&V,2103555901,1000059416
08.09.2022,ADULT SOCIAL CARE,SUPREME CARE SERVICES LTD,490.62,PHY LTS 18-64,HOMECARE - C&V,2103555931,1000059416
08.09.2022,ADULT SOCIAL CARE,SUPREME CARE SERVICES LTD,502.33,PHY LTS 18-64,HOMECARE - C&V,2103556032,1000059416
08.09.2022,ADULT SOCIAL CARE,SUPREME CARE SERVICES LTD,511.45,PHY LTS 18-64,HOMECARE - C&V,2103556183,1000059416
08.09.2022,ADULT SOCIAL CARE,SUPREME CARE SERVICES LTD,511.7,PHY LTS 18-64,HOMECARE - C&V,2103555874,1000059416
08.09.2022,ADULT SOCIAL CARE,SUPREME CARE SERVICES LTD,515.82,PHY LTS 18-64,HOMECARE - C&V,2103555900,1000059416
08.09.2022,ADULT SOCIAL CARE,SUPREME CARE SERVICES LTD,525.26,PHY LTS 18-64,HOMECARE - C&V,2103556117,1000059416
08.09.2022,ADULT SOCIAL CARE,SUPREME CARE SERVICES LTD,532.8,PHY LTS 18-64,HOMECARE - C&V,2103555969,1000059416
08.09.2022,ADULT SOCIAL CARE,SUPREME CARE SERVICES LTD,540.76,PHY LTS 18-64,HOMECARE - C&V,2103556251,1000059416
08.09.2022,ADULT SOCIAL CARE,SUPREME CARE SERVICES LTD,569.82,PHY LTS 18-64,HOMECARE - C&V,2103556227,1000059416
08.09.2022,ADULT SOCIAL CARE,SUPREME CARE SERVICES LTD,603.84,PHY LTS 18-64,HOMECARE - C&V,2103556118,1000059416
08.09.2022,ADULT SOCIAL CARE,SUPREME CARE SERVICES LTD,611.87,PHY LTS 18-64,HOMECARE - C&V,2103556027,1000059416
08.09.2022,ADULT SOCIAL CARE,SUPREME CARE SERVICES LTD,612.8,PHY LTS 18-64,HOMECARE - C&V,2103556146,1000059416
08.09.2022,ADULT SOCIAL CARE,SUPREME CARE SERVICES LTD,620.17,PHY LTS 18-64,HOMECARE - C&V,2103556121,1000059416
08.09.2022,ADULT SOCIAL CARE,SUPREME CARE SERVICES LTD,652.42,PHY LTS 18-64,HOMECARE - C&V,2103555965,1000059416
08.09.2022,ADULT SOCIAL CARE,SUPREME CARE SERVICES LTD,654.3,PHY LTS 18-64,HOMECARE - C&V,2103555876,1000059416
08.09.2022,ADULT SOCIAL CARE,SUPREME CARE SERVICES LTD,658.87,PHY LTS 18-64,HOMECARE - C&V,2103556037,1000059416
08.09.2022,ADULT SOCIAL CARE,SUPREME CARE SERVICES LTD,663.5,PHY LTS 18-64,HOMECARE - C&V,2103556243,1000059416
08.09.2022,ADULT SOCIAL CARE,SUPREME CARE SERVICES LTD,692.08,PHY LTS 18-64,HOMECARE - C&V,2103556147,1000059416
08.09.2022,ADULT SOCIAL CARE,SUPREME CARE SERVICES LTD,697.35,PHY LTS 18-64,HOMECARE - C&V,2103555883,1000059416
08.09.2022,ADULT SOCIAL CARE,SUPREME CARE SERVICES LTD,704.07,PHY LTS 18-64,HOMECARE - C&V,2103556073,1000059416
08.09.2022,ADULT SOCIAL CARE,SUPREME CARE SERVICES LTD,748.26,PHY LTS 18-64,HOMECARE - C&V,2103556007,1000059416
08.09.2022,ADULT SOCIAL CARE,SUPREME CARE SERVICES LTD,764.91,PHY LTS 18-64,HOMECARE - C&V,2103556008,1000059416
08.09.2022,ADULT SOCIAL CARE,SUPREME CARE SERVICES LTD,778.86,PHY LTS 18-64,HOMECARE - C&V,2103556068,1000059416
08.09.2022,ADULT SOCIAL CARE,SUPREME CARE SERVICES LTD,779.08,PHY LTS 18-64,HOMECARE - C&V,2103556131,1000059416
08.09.2022,ADULT SOCIAL CARE,SUPREME CARE SERVICES LTD,811.05,PHY LTS 18-64,HOMECARE - C&V,2103556084,1000059416
08.09.2022,ADULT SOCIAL CARE,SUPREME CARE SERVICES LTD,820.15,PHY LTS 18-64,HOMECARE - C&V,2103556170,1000059416
08.09.2022,ADULT SOCIAL CARE,SUPREME CARE SERVICES LTD,843.22,PHY LTS 18-64,HOMECARE - C&V,2103556193,1000059416
08.09.2022,ADULT SOCIAL CARE,SUPREME CARE SERVICES LTD,847.92,PHY LTS 18-64,HOMECARE - C&V,2103556148,1000059416
08.09.2022,ADULT SOCIAL CARE,SUPREME CARE SERVICES LTD,850.83,PHY LTS 18-64,HOMECARE - C&V,2103556258,1000059416
08.09.2022,ADULT SOCIAL CARE,SUPREME CARE SERVICES LTD,870.96,PHY LTS 18-64,HOMECARE - C&V,2103556216,1000059416
08.09.2022,ADULT SOCIAL CARE,SUPREME CARE SERVICES LTD,904.55,PHY LTS 18-64,HOMECARE - C&V,2103556213,1000059416
08.09.2022,ADULT SOCIAL CARE,SUPREME CARE SERVICES LTD,929.55,PHY LTS 18-64,HOMECARE - C&V,2103555977,1000059416
08.09.2022,ADULT SOCIAL CARE,SUPREME CARE SERVICES LTD,930.89,PHY LTS 18-64,HOMECARE - C&V,2103556149,1000059416
08.09.2022,ADULT SOCIAL CARE,SUPREME CARE SERVICES LTD,944.7,PHY LTS 18-64,HOMECARE - C&V,2103556050,1000059416
08.09.2022,ADULT SOCIAL CARE,SUPREME CARE SERVICES LTD,953.87,PHY LTS 18-64,HOMECARE - C&V,2103555996,1000059416
08.09.2022,ADULT SOCIAL CARE,SUPREME CARE SERVICES LTD,980.47,PHY LTS 18-64,HOMECARE - C&V,2103556139,1000059416
08.09.2022,ADULT SOCIAL CARE,SUPREME CARE SERVICES LTD,980.69,PHY LTS 18-64,HOMECARE - C&V,2103555940,1000059416
08.09.2022,ADULT SOCIAL CARE,SUPREME CARE SERVICES LTD,984.88,PHY LTS 18-64,HOMECARE - C&V,2103555971,1000059416
08.09.2022,ADULT SOCIAL CARE,SUPREME CARE SERVICES LTD,985.98,PHY LTS 18-64,HOMECARE - C&V,2103555869,1000059416
08.09.2022,ADULT SOCIAL CARE,SUPREME CARE SERVICES LTD,"1,002.21",PHY LTS 18-64,HOMECARE - C&V,2103555882,1000059416
08.09.2022,ADULT SOCIAL CARE,SUPREME CARE SERVICES LTD,"1,031.80",PHY LTS 18-64,HOMECARE - C&V,2103555927,1000059416
08.09.2022,ADULT SOCIAL CARE,SUPREME CARE SERVICES LTD,"1,036.86",PHY LTS 18-64,HOMECARE - C&V,2103556028,1000059416
08.09.2022,ADULT SOCIAL CARE,SUPREME CARE SERVICES LTD,"1,036.90",PHY LTS 18-64,HOMECARE - C&V,2103556244,1000059416
08.09.2022,ADULT SOCIAL CARE,SUPREME CARE SERVICES LTD,"1,045.97",PHY LTS 18-64,HOMECARE - C&V,2103555987,1000059416
08.09.2022,ADULT SOCIAL CARE,SUPREME CARE SERVICES LTD,"1,046.18",PHY LTS 18-64,HOMECARE - C&V,2103556206,1000059416
08.09.2022,ADULT SOCIAL CARE,SUPREME CARE SERVICES LTD,"1,047.44",PHY LTS 18-64,HOMECARE - C&V,2103556184,1000059416
08.09.2022,ADULT SOCIAL CARE,SUPREME CARE SERVICES LTD,"1,131.61",PHY LTS 18-64,HOMECARE - C&V,2103555964,1000059416
08.09.2022,ADULT SOCIAL CARE,SUPREME CARE SERVICES LTD,"1,179.54",PHY LTS 18-64,HOMECARE - C&V,2103556054,1000059416
08.09.2022,ADULT SOCIAL CARE,SUPREME CARE SERVICES LTD,"1,219.29",PHY LTS 18-64,HOMECARE - C&V,2103555956,1000059416
08.09.2022,ADULT SOCIAL CARE,SUPREME CARE SERVICES LTD,"1,223.71",PHY LTS 18-64,HOMECARE - C&V,2103555955,1000059416
08.09.2022,ADULT SOCIAL CARE,SUPREME CARE SERVICES LTD,"1,238.80",PHY LTS 18-64,HOMECARE - C&V,2103556164,1000059416
08.09.2022,ADULT SOCIAL CARE,SUPREME CARE SERVICES LTD,"1,244.09",PHY LTS 18-64,HOMECARE - C&V,2103556083,1000059416
08.09.2022,ADULT SOCIAL CARE,SUPREME CARE SERVICES LTD,"1,248.94",PHY LTS 18-64,HOMECARE - C&V,2103556052,1000059416
08.09.2022,ADULT SOCIAL CARE,SUPREME CARE SERVICES LTD,"1,347.23",PHY LTS 18-64,HOMECARE - C&V,2103556195,1000059416
08.09.2022,ADULT SOCIAL CARE,SUPREME CARE SERVICES LTD,"1,405.33",PHY LTS 18-64,HOMECARE - C&V,2103556120,1000059416
08.09.2022,ADULT SOCIAL CARE,SUPREME CARE SERVICES LTD,"1,492.76",PHY LTS 18-64,HOMECARE - C&V,2103556140,1000059416
08.09.2022,ADULT SOCIAL CARE,SUPREME CARE SERVICES LTD,"1,523.98",PHY LTS 18-64,HOMECARE - C&V,2103555863,1000059416
08.09.2022,ADULT SOCIAL CARE,SUPREME CARE SERVICES LTD,"1,667.88",PHY LTS 18-64,HOMECARE - C&V,2103556090,1000059416
08.09.2022,ADULT SOCIAL CARE,SUPREME CARE SERVICES LTD,"2,151.70",PHY LTS 18-64,HOMECARE - C&V,2103555961,1000059416
08.09.2022,ADULT SOCIAL CARE,SUPREME CARE SERVICES LTD,"2,213.00",PHY LTS 18-64,HOMECARE - C&V,2103555917,1000059416
08.09.2022,ADULT SOCIAL CARE,SUPREME CARE SERVICES LTD,"2,362.23",PHY LTS 18-64,HOMECARE - C&V,2103556045,1000059416
08.09.2022,ADULT SOCIAL CARE,SUPREME CARE SERVICES LTD,"2,373.43",PHY LTS 18-64,HOMECARE - C&V,2103556246,1000059416
08.09.2022,ADULT SOCIAL CARE,SUPREME CARE SERVICES LTD,"2,383.59",PHY LTS 18-64,HOMECARE - C&V,2103555974,1000059416
08.09.2022,ADULT SOCIAL CARE,SUPREME CARE SERVICES LTD,"2,644.97",PHY LTS 18-64,HOMECARE - C&V,2103555910,1000059416
08.09.2022,ADULT SOCIAL CARE,SUPREME CARE SERVICES LTD,"2,812.53",PHY LTS 18-64,HOMECARE - C&V,2103556158,1000059416
08.09.2022,ADULT SOCIAL CARE,SUPREME CARE SERVICES LTD,"2,976.35",PHY LTS 18-64,HOMECARE - C&V,2103555915,1000059416
08.09.2022,ADULT SOCIAL CARE,SUPREME CARE SERVICES LTD,"3,036.37",PHY LTS 18-64,HOMECARE - C&V,2103555948,1000059416
08.09.2022,ADULT SOCIAL CARE,CAREPOINT SERVICES LTD,252,PHY LTS 18-64,HOMECARE - C&V,2103555680,1000087914
08.09.2022,ADULT SOCIAL CARE,CAREPOINT SERVICES LTD,378,PHY LTS 18-64,HOMECARE - C&V,2103555682,1000087914
08.09.2022,ADULT SOCIAL CARE,CAREPOINT SERVICES LTD,684,PHY LTS 18-64,HOMECARE - C&V,2103555677,1000087914
08.09.2022,ADULT SOCIAL CARE,CAREPOINT SERVICES LTD,"1,479.88",PHY LTS 18-64,HOMECARE - C&V,2103555710,1000087914
08.09.2022,ADULT SOCIAL CARE,CAREPOINT SERVICES LTD,"2,772.00",PHY LTS 18-64,HOMECARE - C&V,2103555679,1000087914
08.09.2022,ADULT SOCIAL CARE,CAREPOINT SERVICES LTD,"2,870.64",PHY LTS 18-64,HOMECARE - C&V,2103555709,1000087914
08.09.2022,ADULT SOCIAL CARE,CARE DIRECT UK LTD,520.55,PHY LTS 18-64,HOMECARE - SPOT,2103555667,1000066322
08.09.2022,ADULT SOCIAL CARE,CARE DIRECT UK LTD,538.5,PHY LTS 18-64,HOMECARE - SPOT,2103555669,1000066322
08.09.2022,ADULT SOCIAL CARE,CAREPOINT SERVICES LTD,360,PHY LTS 18-64,HOMECARE - SPOT,2103555678,1000087914
08.09.2022,ADULT SOCIAL CARE,AGE CONCERN LEWISHAM & SOUTHWARK,260,PHY LTS 65+,DAYCARE,2103555751,1000057586
08.09.2022,ADULT SOCIAL CARE,AGE CONCERN LEWISHAM & SOUTHWARK,260,PHY LTS 65+,DAYCARE,2103555803,1000057586
08.09.2022,ADULT SOCIAL CARE,AGE CONCERN LEWISHAM & SOUTHWARK,325,PHY LTS 65+,DAYCARE,2103555715,1000057586
08.09.2022,ADULT SOCIAL CARE,AGE CONCERN LEWISHAM & SOUTHWARK,325,PHY LTS 65+,DAYCARE,2103555720,1000057586
08.09.2022,ADULT SOCIAL CARE,AGE CONCERN LEWISHAM & SOUTHWARK,325,PHY LTS 65+,DAYCARE,2103555729,1000057586
08.09.2022,ADULT SOCIAL CARE,AGE CONCERN LEWISHAM & SOUTHWARK,325,PHY LTS 65+,DAYCARE,2103555731,1000057586
08.09.2022,ADULT SOCIAL CARE,AGE CONCERN LEWISHAM & SOUTHWARK,325,PHY LTS 65+,DAYCARE,2103555776,1000057586
08.09.2022,ADULT SOCIAL CARE,AGE CONCERN LEWISHAM & SOUTHWARK,325,PHY LTS 65+,DAYCARE,2103555779,1000057586
08.09.2022,ADULT SOCIAL CARE,AGE CONCERN LEWISHAM & SOUTHWARK,325,PHY LTS 65+,DAYCARE,2103555786,1000057586
08.09.2022,ADULT SOCIAL CARE,AGE CONCERN LEWISHAM & SOUTHWARK,325,PHY LTS 65+,DAYCARE,2103555793,1000057586
08.09.2022,ADULT SOCIAL CARE,AGE CONCERN LEWISHAM & SOUTHWARK,325,PHY LTS 65+,DAYCARE,2103555801,1000057586
08.09.2022,ADULT SOCIAL CARE,AGE CONCERN LEWISHAM & SOUTHWARK,325,PHY LTS 65+,DAYCARE,2103555810,1000057586
08.09.2022,ADULT SOCIAL CARE,AGE CONCERN LEWISHAM & SOUTHWARK,325,PHY LTS 65+,DAYCARE,2103555822,1000057586
08.09.2022,ADULT SOCIAL CARE,AGE CONCERN LEWISHAM & SOUTHWARK,325,PHY LTS 65+,DAYCARE,2103555833,1000057586
08.09.2022,ADULT SOCIAL CARE,AGE CONCERN LEWISHAM & SOUTHWARK,325,PHY LTS 65+,DAYCARE,2103555848,1000057586
08.09.2022,ADULT SOCIAL CARE,AGE CONCERN LEWISHAM & SOUTHWARK,325,PHY LTS 65+,DAYCARE,2103555854,1000057586
08.09.2022,ADULT SOCIAL CARE,AGE CONCERN LEWISHAM & SOUTHWARK,325,PHY LTS 65+,DAYCARE,2103555855,1000057586
08.09.2022,ADULT SOCIAL CARE,AGE CONCERN LEWISHAM & SOUTHWARK,325,PHY LTS 65+,DAYCARE,2103555862,1000057586
08.09.2022,ADULT SOCIAL CARE,LONDON CARE LTD,266.03,PHY LTS 65+,HOMECARE - C&V,2103555632,1000003398
08.09.2022,ADULT SOCIAL CARE,LONDON CARE LTD,312.31,PHY LTS 65+,HOMECARE - C&V,2103555637,1000003398
08.09.2022,ADULT SOCIAL CARE,LONDON CARE LTD,376.58,PHY LTS 65+,HOMECARE - C&V,2103555625,1000003398
08.09.2022,ADULT SOCIAL CARE,LONDON CARE LTD,441.66,PHY LTS 65+,HOMECARE - C&V,2103555640,1000003398
08.09.2022,ADULT SOCIAL CARE,LONDON CARE LTD,486,PHY LTS 65+,HOMECARE - C&V,2103555676,1000003398
08.09.2022,ADULT SOCIAL CARE,LONDON CARE LTD,510.38,PHY LTS 65+,HOMECARE - C&V,2103555646,1000003398
08.09.2022,ADULT SOCIAL CARE,LONDON CARE LTD,564.2,PHY LTS 65+,HOMECARE - C&V,2103555630,1000003398
08.09.2022,ADULT SOCIAL CARE,LONDON CARE LTD,643.92,PHY LTS 65+,HOMECARE - C&V,2103555641,1000003398
08.09.2022,ADULT SOCIAL CARE,LONDON CARE LTD,718.32,PHY LTS 65+,HOMECARE - C&V,2103555638,1000003398
08.09.2022,ADULT SOCIAL CARE,LONDON CARE LTD,845.92,PHY LTS 65+,HOMECARE - C&V,2103555651,1000003398
08.09.2022,ADULT SOCIAL CARE,BLISSETT CARE LTD,263.58,PHY LTS 65+,HOMECARE - C&V,2103556287,1000042627
08.09.2022,ADULT SOCIAL CARE,BLISSETT CARE LTD,282.41,PHY LTS 65+,HOMECARE - C&V,2103556285,1000042627
08.09.2022,ADULT SOCIAL CARE,BLISSETT CARE LTD,310.66,PHY LTS 65+,HOMECARE - C&V,2103556321,1000042627
08.09.2022,ADULT SOCIAL CARE,BLISSETT CARE LTD,381.26,PHY LTS 65+,HOMECARE - C&V,2103556304,1000042627
08.09.2022,ADULT SOCIAL CARE,BLISSETT CARE LTD,395.36,PHY LTS 65+,HOMECARE - C&V,2103556323,1000042627
08.09.2022,ADULT SOCIAL CARE,BLISSETT CARE LTD,409.49,PHY LTS 65+,HOMECARE - C&V,2103556320,1000042627
08.09.2022,ADULT SOCIAL CARE,BLISSETT CARE LTD,494.38,PHY LTS 65+,HOMECARE - C&V,2103556316,1000042627
08.09.2022,ADULT SOCIAL CARE,BLISSETT CARE LTD,498.98,PHY LTS 65+,HOMECARE - C&V,2103556292,1000042627
08.09.2022,ADULT SOCIAL CARE,BLISSETT CARE LTD,546.14,PHY LTS 65+,HOMECARE - C&V,2103556311,1000042627
08.09.2022,ADULT SOCIAL CARE,BLISSETT CARE LTD,583.99,PHY LTS 65+,HOMECARE - C&V,2103556306,1000042627
08.09.2022,ADULT SOCIAL CARE,BLISSETT CARE LTD,588.46,PHY LTS 65+,HOMECARE - C&V,2103556295,1000042627
08.09.2022,ADULT SOCIAL CARE,BLISSETT CARE LTD,630.91,PHY LTS 65+,HOMECARE - C&V,2103556296,1000042627
08.09.2022,ADULT SOCIAL CARE,BLISSETT CARE LTD,795.64,PHY LTS 65+,HOMECARE - C&V,2103556288,1000042627
08.09.2022,ADULT SOCIAL CARE,BLISSETT CARE LTD,842.74,PHY LTS 65+,HOMECARE - C&V,2103556293,1000042627
08.09.2022,ADULT SOCIAL CARE,BLISSETT CARE LTD,904.08,PHY LTS 65+,HOMECARE - C&V,2103556330,1000042627
08.09.2022,ADULT SOCIAL CARE,BLISSETT CARE LTD,913.2,PHY LTS 65+,HOMECARE - C&V,2103556308,1000042627
08.09.2022,ADULT SOCIAL CARE,BLISSETT CARE LTD,931.99,PHY LTS 65+,HOMECARE - C&V,2103556324,1000042627
08.09.2022,ADULT SOCIAL CARE,BLISSETT CARE LTD,965.05,PHY LTS 65+,HOMECARE - C&V,2103556298,1000042627
08.09.2022,ADULT SOCIAL CARE,BLISSETT CARE LTD,969.91,PHY LTS 65+,HOMECARE - C&V,2103556322,1000042627
08.09.2022,ADULT SOCIAL CARE,BLISSETT CARE LTD,974.69,PHY LTS 65+,HOMECARE - C&V,2103556312,1000042627
08.09.2022,ADULT SOCIAL CARE,BLISSETT CARE LTD,983.81,PHY LTS 65+,HOMECARE - C&V,2103556318,1000042627
08.09.2022,ADULT SOCIAL CARE,BLISSETT CARE LTD,"1,026.47",PHY LTS 65+,HOMECARE - C&V,2103556297,1000042627
08.09.2022,ADULT SOCIAL CARE,BLISSETT CARE LTD,"1,054.67",PHY LTS 65+,HOMECARE - C&V,2103556291,1000042627
08.09.2022,ADULT SOCIAL CARE,BLISSETT CARE LTD,"1,148.92",PHY LTS 65+,HOMECARE - C&V,2103556290,1000042627
08.09.2022,ADULT SOCIAL CARE,BLISSETT CARE LTD,"1,336.51",PHY LTS 65+,HOMECARE - C&V,2103556325,1000042627
08.09.2022,ADULT SOCIAL CARE,BLISSETT CARE LTD,"1,365.06",PHY LTS 65+,HOMECARE - C&V,2103556317,1000042627
08.09.2022,ADULT SOCIAL CARE,BLISSETT CARE LTD,"2,594.49",PHY LTS 65+,HOMECARE - C&V,2103556313,1000042627
08.09.2022,ADULT SOCIAL CARE,SUPREME CARE SERVICES LTD,253.43,PHY LTS 65+,HOMECARE - C&V,2103556247,1000059416
08.09.2022,ADULT SOCIAL CARE,SUPREME CARE SERVICES LTD,262.66,PHY LTS 65+,HOMECARE - C&V,2103556105,1000059416
08.09.2022,ADULT SOCIAL CARE,SUPREME CARE SERVICES LTD,267.2,PHY LTS 65+,HOMECARE - C&V,2103555871,1000059416
08.09.2022,ADULT SOCIAL CARE,SUPREME CARE SERVICES LTD,267.26,PHY LTS 65+,HOMECARE - C&V,2103555925,1000059416
08.09.2022,ADULT SOCIAL CARE,SUPREME CARE SERVICES LTD,272.76,PHY LTS 65+,HOMECARE - C&V,2103556241,1000059416
08.09.2022,ADULT SOCIAL CARE,SUPREME CARE SERVICES LTD,276.4,PHY LTS 65+,HOMECARE - C&V,2103556103,1000059416
08.09.2022,ADULT SOCIAL CARE,SUPREME CARE SERVICES LTD,284.76,PHY LTS 65+,HOMECARE - C&V,2103556102,1000059416
08.09.2022,ADULT SOCIAL CARE,SUPREME CARE SERVICES LTD,294.87,PHY LTS 65+,HOMECARE - C&V,2103556089,1000059416
08.09.2022,ADULT SOCIAL CARE,SUPREME CARE SERVICES LTD,304.1,PHY LTS 65+,HOMECARE - C&V,2103556072,1000059416
08.09.2022,ADULT SOCIAL CARE,SUPREME CARE SERVICES LTD,328.98,PHY LTS 65+,HOMECARE - C&V,2103556254,1000059416
08.09.2022,ADULT SOCIAL CARE,SUPREME CARE SERVICES LTD,331.69,PHY LTS 65+,HOMECARE - C&V,2103556226,1000059416
08.09.2022,ADULT SOCIAL CARE,SUPREME CARE SERVICES LTD,331.74,PHY LTS 65+,HOMECARE - C&V,2103555689,1000059416
08.09.2022,ADULT SOCIAL CARE,SUPREME CARE SERVICES LTD,336.48,PHY LTS 65+,HOMECARE - C&V,2103556209,1000059416
08.09.2022,ADULT SOCIAL CARE,SUPREME CARE SERVICES LTD,359.41,PHY LTS 65+,HOMECARE - C&V,2103556255,1000059416
08.09.2022,ADULT SOCIAL CARE,SUPREME CARE SERVICES LTD,368.61,PHY LTS 65+,HOMECARE - C&V,2103555944,1000059416
08.09.2022,ADULT SOCIAL CARE,SUPREME CARE SERVICES LTD,382.41,PHY LTS 65+,HOMECARE - C&V,2103556175,1000059416
08.09.2022,ADULT SOCIAL CARE,SUPREME CARE SERVICES LTD,386.98,PHY LTS 65+,HOMECARE - C&V,2103556113,1000059416
08.09.2022,ADULT SOCIAL CARE,SUPREME CARE SERVICES LTD,387.03,PHY LTS 65+,HOMECARE - C&V,2103556123,1000059416
08.09.2022,ADULT SOCIAL CARE,SUPREME CARE SERVICES LTD,387.03,PHY LTS 65+,HOMECARE - C&V,2103556210,1000059416
08.09.2022,ADULT SOCIAL CARE,SUPREME CARE SERVICES LTD,388.05,PHY LTS 65+,HOMECARE - C&V,2103556150,1000059416
08.09.2022,ADULT SOCIAL CARE,SUPREME CARE SERVICES LTD,396.2,PHY LTS 65+,HOMECARE - C&V,2103556122,1000059416
08.09.2022,ADULT SOCIAL CARE,SUPREME CARE SERVICES LTD,405.4,PHY LTS 65+,HOMECARE - C&V,2103556217,1000059416
08.09.2022,ADULT SOCIAL CARE,SUPREME CARE SERVICES LTD,410.03,PHY LTS 65+,HOMECARE - C&V,2103556130,1000059416
08.09.2022,ADULT SOCIAL CARE,SUPREME CARE SERVICES LTD,414.61,PHY LTS 65+,HOMECARE - C&V,2103556127,1000059416
08.09.2022,ADULT SOCIAL CARE,SUPREME CARE SERVICES LTD,418.47,PHY LTS 65+,HOMECARE - C&V,2103556033,1000059416
08.09.2022,ADULT SOCIAL CARE,SUPREME CARE SERVICES LTD,430.58,PHY LTS 65+,HOMECARE - C&V,2103555939,1000059416
08.09.2022,ADULT SOCIAL CARE,SUPREME CARE SERVICES LTD,434.84,PHY LTS 65+,HOMECARE - C&V,2103555918,1000059416
08.09.2022,ADULT SOCIAL CARE,SUPREME CARE SERVICES LTD,437.69,PHY LTS 65+,HOMECARE - C&V,2103556095,1000059416
08.09.2022,ADULT SOCIAL CARE,SUPREME CARE SERVICES LTD,437.72,PHY LTS 65+,HOMECARE - C&V,2103556038,1000059416
08.09.2022,ADULT SOCIAL CARE,SUPREME CARE SERVICES LTD,446.06,PHY LTS 65+,HOMECARE - C&V,2103556082,1000059416
08.09.2022,ADULT SOCIAL CARE,SUPREME CARE SERVICES LTD,451.7,PHY LTS 65+,HOMECARE - C&V,2103556132,1000059416
08.09.2022,ADULT SOCIAL CARE,SUPREME CARE SERVICES LTD,455.85,PHY LTS 65+,HOMECARE - C&V,2103556066,1000059416
08.09.2022,ADULT SOCIAL CARE,SUPREME CARE SERVICES LTD,460.68,PHY LTS 65+,HOMECARE - C&V,2103556162,1000059416
08.09.2022,ADULT SOCIAL CARE,SUPREME CARE SERVICES LTD,460.77,PHY LTS 65+,HOMECARE - C&V,2103556235,1000059416
08.09.2022,ADULT SOCIAL CARE,SUPREME CARE SERVICES LTD,461.36,PHY LTS 65+,HOMECARE - C&V,2103556057,1000059416
08.09.2022,ADULT SOCIAL CARE,SUPREME CARE SERVICES LTD,467.16,PHY LTS 65+,HOMECARE - C&V,2103556067,1000059416
08.09.2022,ADULT SOCIAL CARE,SUPREME CARE SERVICES LTD,473.65,PHY LTS 65+,HOMECARE - C&V,2103556104,1000059416
08.09.2022,ADULT SOCIAL CARE,SUPREME CARE SERVICES LTD,480.32,PHY LTS 65+,HOMECARE - C&V,2103555909,1000059416
08.09.2022,ADULT SOCIAL CARE,SUPREME CARE SERVICES LTD,492.95,PHY LTS 65+,HOMECARE - C&V,2103556049,1000059416
08.09.2022,ADULT SOCIAL CARE,SUPREME CARE SERVICES LTD,493.09,PHY LTS 65+,HOMECARE - C&V,2103556239,1000059416
08.09.2022,ADULT SOCIAL CARE,SUPREME CARE SERVICES LTD,495.79,PHY LTS 65+,HOMECARE - C&V,2103556094,1000059416
08.09.2022,ADULT SOCIAL CARE,SUPREME CARE SERVICES LTD,496.99,PHY LTS 65+,HOMECARE - C&V,2103556196,1000059416
08.09.2022,ADULT SOCIAL CARE,SUPREME CARE SERVICES LTD,499.98,PHY LTS 65+,HOMECARE - C&V,2103556006,1000059416
08.09.2022,ADULT SOCIAL CARE,SUPREME CARE SERVICES LTD,502.26,PHY LTS 65+,HOMECARE - C&V,2103555988,1000059416
08.09.2022,ADULT SOCIAL CARE,SUPREME CARE SERVICES LTD,502.97,PHY LTS 65+,HOMECARE - C&V,2103556275,1000059416
08.09.2022,ADULT SOCIAL CARE,SUPREME CARE SERVICES LTD,515.96,PHY LTS 65+,HOMECARE - C&V,2103556204,1000059416
08.09.2022,ADULT SOCIAL CARE,SUPREME CARE SERVICES LTD,516.04,PHY LTS 65+,HOMECARE - C&V,2103556106,1000059416
08.09.2022,ADULT SOCIAL CARE,SUPREME CARE SERVICES LTD,516.04,PHY LTS 65+,HOMECARE - C&V,2103556171,1000059416
08.09.2022,ADULT SOCIAL CARE,SUPREME CARE SERVICES LTD,529.87,PHY LTS 65+,HOMECARE - C&V,2103556197,1000059416
08.09.2022,ADULT SOCIAL CARE,SUPREME CARE SERVICES LTD,530.05,PHY LTS 65+,HOMECARE - C&V,2103556157,1000059416
08.09.2022,ADULT SOCIAL CARE,SUPREME CARE SERVICES LTD,530.12,PHY LTS 65+,HOMECARE - C&V,2103556224,1000059416
08.09.2022,ADULT SOCIAL CARE,SUPREME CARE SERVICES LTD,530.24,PHY LTS 65+,HOMECARE - C&V,2103556274,1000059416
08.09.2022,ADULT SOCIAL CARE,SUPREME CARE SERVICES LTD,539.14,PHY LTS 65+,HOMECARE - C&V,2103556176,1000059416
08.09.2022,ADULT SOCIAL CARE,SUPREME CARE SERVICES LTD,543.63,PHY LTS 65+,HOMECARE - C&V,2103556116,1000059416
08.09.2022,ADULT SOCIAL CARE,SUPREME CARE SERVICES LTD,543.87,PHY LTS 65+,HOMECARE - C&V,2103556016,1000059416
08.09.2022,ADULT SOCIAL CARE,SUPREME CARE SERVICES LTD,560.81,PHY LTS 65+,HOMECARE - C&V,2103555887,1000059416
08.09.2022,ADULT SOCIAL CARE,SUPREME CARE SERVICES LTD,562.15,PHY LTS 65+,HOMECARE - C&V,2103556055,1000059416
08.09.2022,ADULT SOCIAL CARE,SUPREME CARE SERVICES LTD,563.66,PHY LTS 65+,HOMECARE - C&V,2103555875,1000059416
08.09.2022,ADULT SOCIAL CARE,SUPREME CARE SERVICES LTD,566.67,PHY LTS 65+,HOMECARE - C&V,2103555993,1000059416
08.09.2022,ADULT SOCIAL CARE,SUPREME CARE SERVICES LTD,571.4,PHY LTS 65+,HOMECARE - C&V,2103556074,1000059416
08.09.2022,ADULT SOCIAL CARE,SUPREME CARE SERVICES LTD,571.56,PHY LTS 65+,HOMECARE - C&V,2103556079,1000059416
08.09.2022,ADULT SOCIAL CARE,SUPREME CARE SERVICES LTD,588.44,PHY LTS 65+,HOMECARE - C&V,2103555880,1000059416
08.09.2022,ADULT SOCIAL CARE,SUPREME CARE SERVICES LTD,589.81,PHY LTS 65+,HOMECARE - C&V,2103556220,1000059416
08.09.2022,ADULT SOCIAL CARE,SUPREME CARE SERVICES LTD,590.02,PHY LTS 65+,HOMECARE - C&V,2103556186,1000059416
08.09.2022,ADULT SOCIAL CARE,SUPREME CARE SERVICES LTD,591.6,PHY LTS 65+,HOMECARE - C&V,2103556002,1000059416
08.09.2022,ADULT SOCIAL CARE,SUPREME CARE SERVICES LTD,594.42,PHY LTS 65+,HOMECARE - C&V,2103556167,1000059416
08.09.2022,ADULT SOCIAL CARE,SUPREME CARE SERVICES LTD,605.48,PHY LTS 65+,HOMECARE - C&V,2103555897,1000059416
08.09.2022,ADULT SOCIAL CARE,SUPREME CARE SERVICES LTD,608.32,PHY LTS 65+,HOMECARE - C&V,2103556248,1000059416
08.09.2022,ADULT SOCIAL CARE,SUPREME CARE SERVICES LTD,612.82,PHY LTS 65+,HOMECARE - C&V,2103556218,1000059416
08.09.2022,ADULT SOCIAL CARE,SUPREME CARE SERVICES LTD,614.01,PHY LTS 65+,HOMECARE - C&V,2103555950,1000059416
08.09.2022,ADULT SOCIAL CARE,SUPREME CARE SERVICES LTD,619.9,PHY LTS 65+,HOMECARE - C&V,2103556009,1000059416
08.09.2022,ADULT SOCIAL CARE,SUPREME CARE SERVICES LTD,624.16,PHY LTS 65+,HOMECARE - C&V,2103556151,1000059416
08.09.2022,ADULT SOCIAL CARE,SUPREME CARE SERVICES LTD,631.38,PHY LTS 65+,HOMECARE - C&V,2103555870,1000059416
08.09.2022,ADULT SOCIAL CARE,SUPREME CARE SERVICES LTD,631.4,PHY LTS 65+,HOMECARE - C&V,2103556003,1000059416
08.09.2022,ADULT SOCIAL CARE,SUPREME CARE SERVICES LTD,632.16,PHY LTS 65+,HOMECARE - C&V,2103556111,1000059416
08.09.2022,ADULT SOCIAL CARE,SUPREME CARE SERVICES LTD,634.62,PHY LTS 65+,HOMECARE - C&V,2103556152,1000059416
08.09.2022,ADULT SOCIAL CARE,SUPREME CARE SERVICES LTD,636.45,PHY LTS 65+,HOMECARE - C&V,2103556059,1000059416
08.09.2022,ADULT SOCIAL CARE,SUPREME CARE SERVICES LTD,637.41,PHY LTS 65+,HOMECARE - C&V,2103556109,1000059416
08.09.2022,ADULT SOCIAL CARE,SUPREME CARE SERVICES LTD,638.33,PHY LTS 65+,HOMECARE - C&V,2103556178,1000059416
08.09.2022,ADULT SOCIAL CARE,SUPREME CARE SERVICES LTD,640.51,PHY LTS 65+,HOMECARE - C&V,2103556240,1000059416
08.09.2022,ADULT SOCIAL CARE,SUPREME CARE SERVICES LTD,642.62,PHY LTS 65+,HOMECARE - C&V,2103556044,1000059416
08.09.2022,ADULT SOCIAL CARE,SUPREME CARE SERVICES LTD,650.6,PHY LTS 65+,HOMECARE - C&V,2103556221,1000059416
08.09.2022,ADULT SOCIAL CARE,SUPREME CARE SERVICES LTD,654.34,PHY LTS 65+,HOMECARE - C&V,2103556124,1000059416
08.09.2022,ADULT SOCIAL CARE,SUPREME CARE SERVICES LTD,656.59,PHY LTS 65+,HOMECARE - C&V,2103555933,1000059416
08.09.2022,ADULT SOCIAL CARE,SUPREME CARE SERVICES LTD,660.42,PHY LTS 65+,HOMECARE - C&V,2103556085,1000059416
08.09.2022,ADULT SOCIAL CARE,SUPREME CARE SERVICES LTD,663.5,PHY LTS 65+,HOMECARE - C&V,2103555958,1000059416
08.09.2022,ADULT SOCIAL CARE,SUPREME CARE SERVICES LTD,663.52,PHY LTS 65+,HOMECARE - C&V,2103555894,1000059416
08.09.2022,ADULT SOCIAL CARE,SUPREME CARE SERVICES LTD,663.54,PHY LTS 65+,HOMECARE - C&V,2103556159,1000059416
08.09.2022,ADULT SOCIAL CARE,SUPREME CARE SERVICES LTD,673.95,PHY LTS 65+,HOMECARE - C&V,2103556253,1000059416
08.09.2022,ADULT SOCIAL CARE,SUPREME CARE SERVICES LTD,677.3,PHY LTS 65+,HOMECARE - C&V,2103556060,1000059416
08.09.2022,ADULT SOCIAL CARE,SUPREME CARE SERVICES LTD,680.74,PHY LTS 65+,HOMECARE - C&V,2103555885,1000059416
08.09.2022,ADULT SOCIAL CARE,SUPREME CARE SERVICES LTD,682.01,PHY LTS 65+,HOMECARE - C&V,2103555905,1000059416
08.09.2022,ADULT SOCIAL CARE,SUPREME CARE SERVICES LTD,686.87,PHY LTS 65+,HOMECARE - C&V,2103556144,1000059416
08.09.2022,ADULT SOCIAL CARE,SUPREME CARE SERVICES LTD,689.3,PHY LTS 65+,HOMECARE - C&V,2103556018,1000059416
08.09.2022,ADULT SOCIAL CARE,SUPREME CARE SERVICES LTD,690.72,PHY LTS 65+,HOMECARE - C&V,2103555902,1000059416
08.09.2022,ADULT SOCIAL CARE,SUPREME CARE SERVICES LTD,691.18,PHY LTS 65+,HOMECARE - C&V,2103556053,1000059416
08.09.2022,ADULT SOCIAL CARE,SUPREME CARE SERVICES LTD,705.01,PHY LTS 65+,HOMECARE - C&V,2103555999,1000059416
08.09.2022,ADULT SOCIAL CARE,SUPREME CARE SERVICES LTD,711.44,PHY LTS 65+,HOMECARE - C&V,2103556026,1000059416
08.09.2022,ADULT SOCIAL CARE,SUPREME CARE SERVICES LTD,723.43,PHY LTS 65+,HOMECARE - C&V,2103556231,1000059416
08.09.2022,ADULT SOCIAL CARE,SUPREME CARE SERVICES LTD,739.38,PHY LTS 65+,HOMECARE - C&V,2103556036,1000059416
08.09.2022,ADULT SOCIAL CARE,SUPREME CARE SERVICES LTD,748.61,PHY LTS 65+,HOMECARE - C&V,2103556250,1000059416
08.09.2022,ADULT SOCIAL CARE,SUPREME CARE SERVICES LTD,750.34,PHY LTS 65+,HOMECARE - C&V,2103555930,1000059416
08.09.2022,ADULT SOCIAL CARE,SUPREME CARE SERVICES LTD,751.08,PHY LTS 65+,HOMECARE - C&V,2103556022,1000059416
08.09.2022,ADULT SOCIAL CARE,SUPREME CARE SERVICES LTD,760.33,PHY LTS 65+,HOMECARE - C&V,2103556268,1000059416
08.09.2022,ADULT SOCIAL CARE,SUPREME CARE SERVICES LTD,769.48,PHY LTS 65+,HOMECARE - C&V,2103556114,1000059416
08.09.2022,ADULT SOCIAL CARE,SUPREME CARE SERVICES LTD,774.12,PHY LTS 65+,HOMECARE - C&V,2103556078,1000059416
08.09.2022,ADULT SOCIAL CARE,SUPREME CARE SERVICES LTD,778.7,PHY LTS 65+,HOMECARE - C&V,2103556194,1000059416
08.09.2022,ADULT SOCIAL CARE,SUPREME CARE SERVICES LTD,792.57,PHY LTS 65+,HOMECARE - C&V,2103556137,1000059416
08.09.2022,ADULT SOCIAL CARE,SUPREME CARE SERVICES LTD,797.09,PHY LTS 65+,HOMECARE - C&V,2103556278,1000059416
08.09.2022,ADULT SOCIAL CARE,SUPREME CARE SERVICES LTD,806.68,PHY LTS 65+,HOMECARE - C&V,2103556225,1000059416
08.09.2022,ADULT SOCIAL CARE,SUPREME CARE SERVICES LTD,814.17,PHY LTS 65+,HOMECARE - C&V,2103556277,1000059416
08.09.2022,ADULT SOCIAL CARE,SUPREME CARE SERVICES LTD,815.2,PHY LTS 65+,HOMECARE - C&V,2103555888,1000059416
08.09.2022,ADULT SOCIAL CARE,SUPREME CARE SERVICES LTD,818.52,PHY LTS 65+,HOMECARE - C&V,2103555919,1000059416
08.09.2022,ADULT SOCIAL CARE,SUPREME CARE SERVICES LTD,829.35,PHY LTS 65+,HOMECARE - C&V,2103556168,1000059416
08.09.2022,ADULT SOCIAL CARE,SUPREME CARE SERVICES LTD,838.64,PHY LTS 65+,HOMECARE - C&V,2103555906,1000059416
08.09.2022,ADULT SOCIAL CARE,SUPREME CARE SERVICES LTD,843.17,PHY LTS 65+,HOMECARE - C&V,2103556001,1000059416
08.09.2022,ADULT SOCIAL CARE,SUPREME CARE SERVICES LTD,846.92,PHY LTS 65+,HOMECARE - C&V,2103556211,1000059416
08.09.2022,ADULT SOCIAL CARE,SUPREME CARE SERVICES LTD,847.92,PHY LTS 65+,HOMECARE - C&V,2103555907,1000059416
